BIOGUIDE_ID,OFFICE,QUARTER,PROGRAM,CATEGORY,SORT SEQUENCE,DATE,TRANSCODE,RECORDID,PAYEE,START DATE,END DATE,PURPOSE,AMOUNT                                                                                                                                           ,YEAR
,2018 OFFICE OF THE SPEAKER,Q1,GENERAL EXPENDITURES,PERSONNEL COMPENSATION,DETAIL,   ,   ,   ,ALTHOUSE JOSHUA S,2018-01-03,2018-03-31,CONSERVATIVE OUTREACH DIRECTOR,19555.57,2018
,2018 OFFICE OF THE SPEAKER,,GENERAL EXPENDITURES,PERSONNEL COMPENSATION,DETAIL,   ,   ,   ,ANDRES DOUGLAS R,2018-01-03,2018-03-31,PRESS SECRETARY,27399.78,2018
,2018 OFFICE OF THE SPEAKER,,GENERAL EXPENDITURES,PERSONNEL COMPENSATION,DETAIL,   ,   ,   ,ANDREWS THOMAS S,2018-01-03,2018-03-31,MEMBER SERVICES DIRECTOR,31777.77,2018
,2018 OFFICE OF THE SPEAKER,,GENERAL EXPENDITURES,PERSONNEL COMPENSATION,DETAIL,   ,   ,   ,ANTELL GEOFFREY,2018-01-03,2018-03-31,ASST TO THE SPEAKER FOR POLICY,41099.66,2018
,2018 OFFICE OF THE SPEAKER,,GENERAL EXPENDITURES,PERSONNEL COMPENSATION,DETAIL,   ,   ,   ,BARKLEY RACHEL K,2018-01-03,2018-03-31,SHARED EMPLOYEE,24444.43,2018
,2018 OFFICE OF THE SPEAKER,,GENERAL EXPENDITURES,PERSONNEL COMPENSATION,DETAIL,   ,   ,   ,BENJAMIN WILLIAM C.,2018-01-03,2018-03-31,SYSTEM ADMINISTRATOR,12955.57,2018
,2018 OFFICE OF THE SPEAKER,,GENERAL EXPENDITURES,PERSONNEL COMPENSATION,DETAIL,   ,   ,   ,BLAKE KRISTENE,2018-01-03,2018-03-31,DIR OF ADMIN OPERATIONS,33000,2018
,2018 OFFICE OF THE SPEAKER,,GENERAL EXPENDITURES,PERSONNEL COMPENSATION,DETAIL,   ,   ,   ,BLANKENSHIP APRIL L.,2018-01-03,2018-03-31,FINANCIAL ADMINISTRATOR,5576.03,2018
,2018 OFFICE OF THE SPEAKER,,GENERAL EXPENDITURES,PERSONNEL COMPENSATION,DETAIL,   ,   ,   ,BUCK BRENDAN K,2018-01-03,2018-03-31,COUNSELOR TO THE SPEAKER,42166.67,2018
,2018 OFFICE OF THE SPEAKER,,GENERAL EXPENDITURES,PERSONNEL COMPENSATION,DETAIL,   ,   ,   ,BURKS JONATHAN,2018-01-03,2018-03-31,CHIEF OF STAFF,42166.67,2018
,2018 OFFICE OF THE SPEAKER,,GENERAL EXPENDITURES,PERSONNEL COMPENSATION,DETAIL,   ,   ,   ,BUSH NICHOLAS J,2018-01-03,2018-03-31,SHARED EMPLOYEE,24444.43,2018
,2018 OFFICE OF THE SPEAKER,,GENERAL EXPENDITURES,PERSONNEL COMPENSATION,DETAIL,   ,   ,   ,CALLAS GEORGE A,2018-01-03,2018-03-31,CHIEF TAX COUNSEL,41725.7,2018
,2018 OFFICE OF THE SPEAKER,,GENERAL EXPENDITURES,PERSONNEL COMPENSATION,DETAIL,   ,   ,   ,CAMERON JESSICA E,2018-01-03,2018-03-31,LAW CLERK,13444.43,2018
,2018 OFFICE OF THE SPEAKER,,GENERAL EXPENDITURES,PERSONNEL COMPENSATION,DETAIL,   ,   ,   ,CHAMBERS KELLY A.,2018-01-03,2018-03-31,SHARED EMPLOYEE,24444.43,2018
,2018 OFFICE OF THE SPEAKER,,GENERAL EXPENDITURES,PERSONNEL COMPENSATION,DETAIL,   ,   ,   ,COYLE SARAH M,2018-01-03,2018-03-31,FLOOR ASSISTANT,12454.44,2018
,2018 OFFICE OF THE SPEAKER,,GENERAL EXPENDITURES,PERSONNEL COMPENSATION,DETAIL,   ,   ,   ,DEN HERDER ALEXA S,2018-01-03,2018-03-27,STAFF ASSISTANT,8263.9,2018
,2018 OFFICE OF THE SPEAKER,,GENERAL EXPENDITURES,PERSONNEL COMPENSATION,DETAIL,   ,   ,   ,DEN HERDER ALEXA S,2018-01-01,2018-01-31,STAFF ASSISTANT (OVERTIME),12.62,2018
,2018 OFFICE OF THE SPEAKER,,GENERAL EXPENDITURES,PERSONNEL COMPENSATION,DETAIL,   ,   ,   ,DOCKERY DERRICK D,2018-01-03,2018-03-31,INTERGOVERNMENTAL OUTREACH DIR,19555.57,2018
,2018 OFFICE OF THE SPEAKER,,GENERAL EXPENDITURES,PERSONNEL COMPENSATION,DETAIL,   ,   ,   ,DRESSLER JEFFREY A,2018-01-03,2018-03-31,ASST TO THE SPEAKER FOR POLICY,27399.78,2018
,2018 OFFICE OF THE SPEAKER,,GENERAL EXPENDITURES,PERSONNEL COMPENSATION,DETAIL,   ,   ,   ,EASBY-SMITH ANNE S.,2018-01-03,2018-03-31,SPECIAL EVENTS COORDINATOR,23663.44,2018
,2018 OFFICE OF THE SPEAKER,,GENERAL EXPENDITURES,PERSONNEL COMPENSATION,DETAIL,   ,   ,   ,EDWARDS SPENCER M,2018-01-03,2018-01-30,DEP PRESS SEC/HEAD OF ADVANCE,6002.5,2018
,2018 OFFICE OF THE SPEAKER,,GENERAL EXPENDITURES,PERSONNEL COMPENSATION,DETAIL,   ,   ,   ,EDWARDS SPENCER M,2018-02-01,2018-03-31,DIRECTOR OF PRESS OPERATIONS,13095.34,2018
,2018 OFFICE OF THE SPEAKER,,GENERAL EXPENDITURES,PERSONNEL COMPENSATION,DETAIL,   ,   ,   ,EICHHORN JARED D.,2018-01-03,2018-03-31,CLOAKROOM DIRECTOR,24444.43,2018
,2018 OFFICE OF THE SPEAKER,,GENERAL EXPENDITURES,PERSONNEL COMPENSATION,DETAIL,   ,   ,   ,EPLEY MARK D,2018-01-03,2018-01-30,GENERAL COUNSEL/OVERSIGHT,13416.67,2018
,2018 OFFICE OF THE SPEAKER,,GENERAL EXPENDITURES,PERSONNEL COMPENSATION,DETAIL,   ,   ,   ,EPLEY MARK D,2018-02-01,2018-03-31,SENIOR ADVISOR AND GENERAL COU,28750,2018
,2018 OFFICE OF THE SPEAKER,,GENERAL EXPENDITURES,PERSONNEL COMPENSATION,DETAIL,   ,   ,   ,FOLTZ DEVON N,2018-01-03,2018-03-31,DEPUTY FLOOR DIRECTOR/COUNSEL,34222.23,2018
,2018 OFFICE OF THE SPEAKER,,GENERAL EXPENDITURES,PERSONNEL COMPENSATION,DETAIL,   ,   ,   ,GILLESPIE JAMES M,2018-01-03,2018-03-31,FLOOR ASSISTANT,11488.9,2018
,2018 OFFICE OF THE SPEAKER,,GENERAL EXPENDITURES,PERSONNEL COMPENSATION,DETAIL,   ,   ,   ,HALPERN HUGH N.,2018-01-03,2018-03-31,FLOOR DIRECTOR - STATUTORY,42166.67,2018
,2018 OFFICE OF THE SPEAKER,,GENERAL EXPENDITURES,PERSONNEL COMPENSATION,DETAIL,   ,   ,   ,HEMINGWAY JENNIFER A,2018-01-03,2018-03-31,DIRECTOR OF HOUSE OPERATIONS,42166.67,2018
,2018 OFFICE OF THE SPEAKER,,GENERAL EXPENDITURES,PERSONNEL COMPENSATION,DETAIL,   ,   ,   ,HERRLE CYNTHIA A.,2018-01-03,2018-03-31,ASST TO THE SPEAKER FOR POLICY,41066.67,2018
,2018 OFFICE OF THE SPEAKER,,GENERAL EXPENDITURES,PERSONNEL COMPENSATION,DETAIL,   ,   ,   ,HIGGINS CASEY,2018-01-03,2018-03-31,ASSIST TO SPEAKER FOR POLICY,38723.67,2018
,2018 OFFICE OF THE SPEAKER,,GENERAL EXPENDITURES,PERSONNEL COMPENSATION,DETAIL,   ,   ,   ,HOFMAN RYAN,2018-01-03,2018-03-31,SHARED EMPLOYEE,5590,2018
,2018 OFFICE OF THE SPEAKER,,GENERAL EXPENDITURES,PERSONNEL COMPENSATION,DETAIL,   ,   ,   ,HUSTON JOHNATHON B,2018-02-14,2018-02-28,SHARED EMPLOYEE,396.67,2018
,2018 OFFICE OF THE SPEAKER,,GENERAL EXPENDITURES,PERSONNEL COMPENSATION,DETAIL,   ,   ,   ,HUSTON JOHNATHON B,2018-03-01,2018-03-31,SHARED EMPLOYEE,700,2018
,2018 OFFICE OF THE SPEAKER,,GENERAL EXPENDITURES,PERSONNEL COMPENSATION,DETAIL,   ,   ,   ,KEARNEY EMILY M,2018-01-03,2018-03-31,SPECIAL EVENTS SCHEDULING ASST,8555.57,2018
,2018 OFFICE OF THE SPEAKER,,GENERAL EXPENDITURES,PERSONNEL COMPENSATION,DETAIL,   ,   ,   ,KEARNEY EMILY M,2018-01-01,2018-01-31,SPECIAL EVENTS SCHEDULING ASST (OVERTIME),416.46,2018
,2018 OFFICE OF THE SPEAKER,,GENERAL EXPENDITURES,PERSONNEL COMPENSATION,DETAIL,   ,   ,   ,KOHLER JOHN D,2018-01-03,2018-03-31,CORRESPONDENCE ASSISTANT,6111.12,2018
,2018 OFFICE OF THE SPEAKER,,GENERAL EXPENDITURES,PERSONNEL COMPENSATION,DETAIL,   ,   ,   ,LARSON SALLY R,2018-01-03,2018-03-31,SHARED EMPLOYEE,24444.43,2018
,2018 OFFICE OF THE SPEAKER,,GENERAL EXPENDITURES,PERSONNEL COMPENSATION,DETAIL,   ,   ,   ,LETSCH ANDREW D,2018-01-03,2018-03-31,STAFF ASSISTANT,8555.57,2018
,2018 OFFICE OF THE SPEAKER,,GENERAL EXPENDITURES,PERSONNEL COMPENSATION,DETAIL,   ,   ,   ,LETSCH ANDREW D,2018-01-01,2018-01-31,STAFF ASSISTANT (OVERTIME),391.22,2018
,2018 OFFICE OF THE SPEAKER,,GENERAL EXPENDITURES,PERSONNEL COMPENSATION,DETAIL,   ,   ,   ,MAHAN ROGER A,2018-01-03,2018-03-31,ASSISTANT TO THE SPEAKER FOR P,22000,2018
,2018 OFFICE OF THE SPEAKER,,GENERAL EXPENDITURES,PERSONNEL COMPENSATION,DETAIL,   ,   ,   ,MANECKE KIMBERLY,2018-01-03,2018-03-31,DEPUTY DIRECTOR OF SCHEDULING,15155.57,2018
,2018 OFFICE OF THE SPEAKER,,GENERAL EXPENDITURES,PERSONNEL COMPENSATION,DETAIL,   ,   ,   ,MCCANN EDWARD D.,2018-01-03,2018-03-31,ASSIST TO SPEAKER FOR POLICY,39854.22,2018
,2018 OFFICE OF THE SPEAKER,,GENERAL EXPENDITURES,PERSONNEL COMPENSATION,DETAIL,   ,   ,   ,MILLER WILLIAM,2018-01-03,2018-03-31,SPECIAL ASSISTANT TO THE SPEAK,18930.76,2018
,2018 OFFICE OF THE SPEAKER,,GENERAL EXPENDITURES,PERSONNEL COMPENSATION,DETAIL,   ,   ,   ,MUNDAY J M.,2018-01-03,2018-03-31,DIRECTOR OF INFORMATION TECHNO,35586.11,2018
,2018 OFFICE OF THE SPEAKER,,GENERAL EXPENDITURES,PERSONNEL COMPENSATION,DETAIL,   ,   ,   ,O'TOOLE RYAN T,2018-01-03,2018-03-31,FLOOR ASSISTANT,14666.67,2018
,2018 OFFICE OF THE SPEAKER,,GENERAL EXPENDITURES,PERSONNEL COMPENSATION,DETAIL,   ,   ,   ,PARKS STEPHANIE M,2018-01-03,2018-03-31,ASSISTANT TO SPEAKER FOR POLIC,30555.57,2018
,2018 OFFICE OF THE SPEAKER,,GENERAL EXPENDITURES,PERSONNEL COMPENSATION,DETAIL,   ,   ,   ,PIATT AUSTIN W,2018-01-03,2018-03-31,STAFF ASSISTANT,8555.57,2018
,2018 OFFICE OF THE SPEAKER,,GENERAL EXPENDITURES,PERSONNEL COMPENSATION,DETAIL,   ,   ,   ,PIATT AUSTIN W,2018-01-01,2018-01-31,STAFF ASSISTANT (OVERTIME),353.36,2018
,2018 OFFICE OF THE SPEAKER,,GENERAL EXPENDITURES,PERSONNEL COMPENSATION,DETAIL,   ,   ,   ,POINTER KATHERINE C,2018-01-03,2018-03-31,FLOOR ASSISTANT,14666.67,2018
,2018 OFFICE OF THE SPEAKER,,GENERAL EXPENDITURES,PERSONNEL COMPENSATION,DETAIL,   ,   ,   ,REISING JOHN B,2018-01-03,2018-03-31,SHARED EMPLOYEE,24444.43,2018
,2018 OFFICE OF THE SPEAKER,,GENERAL EXPENDITURES,PERSONNEL COMPENSATION,DETAIL,   ,   ,   ,RICCI MICHAEL,2018-01-03,2018-03-31,DIRECTOR OF COMMUNICATIONS,41167.14,2018
,2018 OFFICE OF THE SPEAKER,,GENERAL EXPENDITURES,PERSONNEL COMPENSATION,DETAIL,   ,   ,   ,ROMAN MARK J.,2018-01-03,2018-03-31,SHARED EMPLOYEE,24444.43,2018
,2018 OFFICE OF THE SPEAKER,,GENERAL EXPENDITURES,PERSONNEL COMPENSATION,DETAIL,   ,   ,   ,RYAN MADELINE E,2018-01-03,2018-03-31,STAFF ASSISTANT,8555.57,2018
,2018 OFFICE OF THE SPEAKER,,GENERAL EXPENDITURES,PERSONNEL COMPENSATION,DETAIL,   ,   ,   ,SAKWA JENNA P,2018-01-03,2018-03-31,MEDIA AFFAIRS DIRECTOR,26154.34,2018
,2018 OFFICE OF THE SPEAKER,,GENERAL EXPENDITURES,PERSONNEL COMPENSATION,DETAIL,   ,   ,   ,SHAPIRO MICHAEL I.,2018-01-03,2018-02-09,COMMUNICATIONS ADVISOR,8378.46,2018
,2018 OFFICE OF THE SPEAKER,,GENERAL EXPENDITURES,PERSONNEL COMPENSATION,DETAIL,   ,   ,   ,SLINGSBY JULIA K.,2018-01-03,2018-03-18,DEPUTY COMMUNICATIONS DIRECTOR,22587.84,2018
,2018 OFFICE OF THE SPEAKER,,GENERAL EXPENDITURES,PERSONNEL COMPENSATION,DETAIL,   ,   ,   ,SMITH CALEB J,2018-01-03,2018-03-31,DIGITAL COMMUNICATIONS DIRECTO,32381.56,2018
,2018 OFFICE OF THE SPEAKER,,GENERAL EXPENDITURES,PERSONNEL COMPENSATION,DETAIL,   ,   ,   ,SMYTHE AUGUSTINE,2018-01-03,2018-03-31,POLICY DIRECTOR,42166.67,2018
,2018 OFFICE OF THE SPEAKER,,GENERAL EXPENDITURES,PERSONNEL COMPENSATION,DETAIL,   ,   ,   ,SPETH ANDREW D.,2018-01-03,2018-03-31,DEPUTY CHIEF OF STAFF,29333.33,2018
,2018 OFFICE OF THE SPEAKER,,GENERAL EXPENDITURES,PERSONNEL COMPENSATION,DETAIL,   ,   ,   ,STRONG ASHLEE A,2018-01-03,2018-03-31,PRESS SECRETARY,38608.78,2018
,2018 OFFICE OF THE SPEAKER,,GENERAL EXPENDITURES,PERSONNEL COMPENSATION,DETAIL,   ,   ,   ,VANDEHEY VANESSA P,2018-01-03,2018-03-31,SENIOR STAFF ASSISTANT,7822.24,2018
,2018 OFFICE OF THE SPEAKER,,GENERAL EXPENDITURES,PERSONNEL COMPENSATION,DETAIL,   ,   ,   ,VREEBURG JACOBUS A,2018-01-03,2018-03-31,SHARED EMPLOYEE,19555.57,2018
,2018 OFFICE OF THE SPEAKER,,GENERAL EXPENDITURES,PERSONNEL COMPENSATION,DETAIL,   ,   ,   ,WALTZ PAIGE M,2018-01-03,2018-03-31,DIGITAL MEDIA COORDINATOR,13511.33,2018
,2018 OFFICE OF THE SPEAKER,,GENERAL EXPENDITURES,PERSONNEL COMPENSATION,DETAIL,   ,   ,   ,WEAVER KIEL P.,2018-01-03,2018-03-31,ASST TO SPEAKER FOR POLICY,41099.66,2018
,2018 OFFICE OF THE SPEAKER,,GENERAL EXPENDITURES,PERSONNEL COMPENSATION,DETAIL,   ,   ,   ,WICKISER VICTORIA H,2018-01-03,2018-03-31,DIRECTOR OF SCHEDULING,27399.78,2018
,2018 OFFICE OF THE SPEAKER,,GENERAL EXPENDITURES,PERSONNEL COMPENSATION,DETAIL,   ,   ,   ,YANTKO DOMINIQUE G,2018-01-03,2018-02-02,SHARED EMPLOYEE,3750,2018
,2018 OFFICE OF THE SPEAKER,,GENERAL EXPENDITURES,PERSONNEL COMPENSATION,SUBTOTAL,   ,   ,   ,   ,   ,   ,PERSONNEL COMPENSATION TOTALS:,1437941.31,2018
,2018 OFFICE OF THE SPEAKER,,GENERAL EXPENDITURES,TRAVEL,DETAIL,2018-02-01,AP,E0595216,ALTHOUSE JOSHUA,2018-01-10,2018-01-19,TAXI/PARKING/TOLLS,54.62,2018
,2018 OFFICE OF THE SPEAKER,,GENERAL EXPENDITURES,TRAVEL,DETAIL,2018-02-12,AP,E0597442,WALTZ PAIGE M.,2018-01-11,2018-01-13,COMMERCIAL TRANSPORTATION,60,2018
,2018 OFFICE OF THE SPEAKER,,GENERAL EXPENDITURES,TRAVEL,DETAIL,2018-02-12,AP,E0597442,WALTZ PAIGE M.,2018-01-11,2018-01-12,LODGING,125.46,2018
,2018 OFFICE OF THE SPEAKER,,GENERAL EXPENDITURES,TRAVEL,DETAIL,2018-02-12,AP,E0597442,WALTZ PAIGE M.,2018-01-12,2018-01-12,MEALS,27.21,2018
,2018 OFFICE OF THE SPEAKER,,GENERAL EXPENDITURES,TRAVEL,DETAIL,2018-02-12,AP,E0597442,WALTZ PAIGE M.,2018-01-11,2018-01-12,CAR RENTAL,65.17,2018
,2018 OFFICE OF THE SPEAKER,,GENERAL EXPENDITURES,TRAVEL,DETAIL,2018-02-12,AP,E0597442,WALTZ PAIGE M.,2018-01-12,2018-01-12,GASOLINE,3.53,2018
,2018 OFFICE OF THE SPEAKER,,GENERAL EXPENDITURES,TRAVEL,DETAIL,2018-02-12,AP,E0597442,WALTZ PAIGE M.,2018-01-11,2018-01-13,TAXI/PARKING/TOLLS,80,2018
,2018 OFFICE OF THE SPEAKER,,GENERAL EXPENDITURES,TRAVEL,DETAIL,2018-02-22,AP,E0601291,SMITH CALEB,2018-01-16,2018-01-16,TAXI/PARKING/TOLLS,8.85,2018
,2018 OFFICE OF THE SPEAKER,,GENERAL EXPENDITURES,TRAVEL,DETAIL,2018-02-27,AP,E0602049,CITIBANK GOV CARD SERVICE,2018-01-11,2018-01-12,COMMERCIAL TRANSPORTATION,494.48,2018
,2018 OFFICE OF THE SPEAKER,,GENERAL EXPENDITURES,TRAVEL,DETAIL,2018-02-27,AP,E0602049,CITIBANK GOV CARD SERVICE,2018-01-05,2018-01-06,LODGING,104.16,2018
,2018 OFFICE OF THE SPEAKER,,GENERAL EXPENDITURES,TRAVEL,DETAIL,2018-03-22,AP,E0608464,SMITH CALEB,2018-03-08,2018-03-08,COMMERCIAL TRANSPORTATION,351.96,2018
,2018 OFFICE OF THE SPEAKER,,GENERAL EXPENDITURES,TRAVEL,DETAIL,2018-03-22,AP,E0608464,SMITH CALEB,2018-03-08,2018-03-08,MEALS,30.05,2018
,2018 OFFICE OF THE SPEAKER,,GENERAL EXPENDITURES,TRAVEL,DETAIL,2018-03-22,AP,E0608464,SMITH CALEB,2018-03-01,2018-03-08,PRIVATE AUTO MILEAGE,7.67,2018
,2018 OFFICE OF THE SPEAKER,,GENERAL EXPENDITURES,TRAVEL,DETAIL,2018-03-22,AP,E0608464,SMITH CALEB,2018-02-21,2018-03-08,TAXI/PARKING/TOLLS,77.94,2018
,2018 OFFICE OF THE SPEAKER,,GENERAL EXPENDITURES,TRAVEL,DETAIL,2018-03-23,AP,E0609468,EDWARDS SPENCER M.,2018-03-07,2018-03-08,MEALS,53.74,2018
,2018 OFFICE OF THE SPEAKER,,GENERAL EXPENDITURES,TRAVEL,DETAIL,2018-03-23,AP,E0609468,EDWARDS SPENCER M.,2018-03-07,2018-03-08,TAXI/PARKING/TOLLS,116.87,2018
,2018 OFFICE OF THE SPEAKER,,GENERAL EXPENDITURES,TRAVEL,DETAIL,2018-03-24,AP,E0609998,DRESSLER JEFFREY A.,2018-02-21,2018-02-21,COMMERCIAL TRANSPORTATION,25,2018
,2018 OFFICE OF THE SPEAKER,,GENERAL EXPENDITURES,TRAVEL,DETAIL,2018-03-24,AP,E0609998,DRESSLER JEFFREY A.,2018-02-20,2018-02-21,MEALS,26.47,2018
,2018 OFFICE OF THE SPEAKER,,GENERAL EXPENDITURES,TRAVEL,DETAIL,2018-03-24,AP,E0609998,DRESSLER JEFFREY A.,2018-02-20,2018-02-28,TAXI/PARKING/TOLLS,55.75,2018
,2018 OFFICE OF THE SPEAKER,,GENERAL EXPENDITURES,TRAVEL,DETAIL,2018-03-26,AP,E0610265,DRESSLER JEFFREY A.,2018-02-07,2018-02-07,TAXI/PARKING/TOLLS,13,2018
,2018 OFFICE OF THE SPEAKER,,GENERAL EXPENDITURES,TRAVEL,SUBTOTAL,   ,   ,   ,   ,   ,   ,TRAVEL TOTALS:,1781.93,2018
,2018 OFFICE OF THE SPEAKER,,GENERAL EXPENDITURES,RENT  COMMUNICATION  UTILITIES,DETAIL,2018-03-19,AP,E0608470,FEDEX,2018-01-30,2018-01-30,POSTAGE / COURIER / BOX RENTAL,2.57,2018
,2018 OFFICE OF THE SPEAKER,,GENERAL EXPENDITURES,RENT  COMMUNICATION  UTILITIES,DETAIL,2018-03-20,AP,E0609524,AT&T,2018-02-10,2018-03-09,TELECOMSRV/EQ/TOLL CHARGE,194.53,2018
,2018 OFFICE OF THE SPEAKER,,GENERAL EXPENDITURES,RENT  COMMUNICATION  UTILITIES,DETAIL,2018-03-21,AP,E0608469,DESIGN CUISINE,2018-01-30,2018-01-30,EQUIP RENTAL (EFF 1/3/03),1400,2018
,2018 OFFICE OF THE SPEAKER,,GENERAL EXPENDITURES,RENT  COMMUNICATION  UTILITIES,SUBTOTAL,   ,   ,   ,   ,   ,   ,RENT  COMMUNICATION  UTILITIES TOTALS:,1597.1,2018
,2018 OFFICE OF THE SPEAKER,,GENERAL EXPENDITURES,PRINTING AND REPRODUCTION,DETAIL,2018-01-26,GL,PIX0075057, ,2018-01-01,2018-01-31,PHOTOGRAPHIC (TRANSFER),282.8,2018
,2018 OFFICE OF THE SPEAKER,,GENERAL EXPENDITURES,PRINTING AND REPRODUCTION,DETAIL,2018-02-22,GL,PIX0075827, ,2018-02-01,2018-02-28,PHOTOGRAPHIC (TRANSFER),96.5,2018
,2018 OFFICE OF THE SPEAKER,,GENERAL EXPENDITURES,PRINTING AND REPRODUCTION,DETAIL,2018-03-26,GL,PIX0076761, ,2018-03-01,2018-03-31,PHOTOGRAPHIC (TRANSFER),272.3,2018
,2018 OFFICE OF THE SPEAKER,,GENERAL EXPENDITURES,PRINTING AND REPRODUCTION,SUBTOTAL,   ,   ,   ,   ,   ,   ,PRINTING AND REPRODUCTION TOTALS:,651.6,2018
,2018 OFFICE OF THE SPEAKER,,GENERAL EXPENDITURES,OTHER SERVICES,DETAIL,2018-02-21,AP,E0601294,NEW TARGET INC,2018-01-08,2018-01-31,WEB DEV HST EMAIL & RLTD SERV,3406.59,2018
,2018 OFFICE OF THE SPEAKER,,GENERAL EXPENDITURES,OTHER SERVICES,DETAIL,2018-03-15,AP,978920,CITI PCARD-ADOBE SYSTEMS INC.,2018-01-27,2018-02-28,NON-TECHNOLOGY SERVICE CONTR,148.03,2018
,2018 OFFICE OF THE SPEAKER,,GENERAL EXPENDITURES,OTHER SERVICES,DETAIL,2018-03-15,AP,978920,CITI PCARD-PREMIUMBEAT.COM,2018-01-27,2018-02-28,MISCELLANEOUS OTHER SERVICES,49,2018
,2018 OFFICE OF THE SPEAKER,,GENERAL EXPENDITURES,OTHER SERVICES,DETAIL,2018-03-15,AP,978920,CITI PCARD-SPROUT SOCIAL,2018-01-27,2018-02-28,CONSULTANT CONTRACT SERVICE,59,2018
,2018 OFFICE OF THE SPEAKER,,GENERAL EXPENDITURES,OTHER SERVICES,SUBTOTAL,   ,   ,   ,   ,   ,   ,OTHER SERVICES TOTALS:,3662.62,2018
,2018 OFFICE OF THE SPEAKER,,GENERAL EXPENDITURES,SUPPLIES AND MATERIALS,DETAIL,2018-01-24,AP,E0594195,FIRST CHOICE COFFEE SERVICES,2018-01-10,2018-01-10,FOOD & BEVERAGE,704.57,2018
,2018 OFFICE OF THE SPEAKER,,GENERAL EXPENDITURES,SUPPLIES AND MATERIALS,DETAIL,2018-01-29,AP,E0594941,FIRST CHOICE COFFEE SERVICES,2018-01-17,2018-01-17,FOOD & BEVERAGE,491.61,2018
,2018 OFFICE OF THE SPEAKER,,GENERAL EXPENDITURES,SUPPLIES AND MATERIALS,DETAIL,2018-01-29,AP,E0594943,FIRST CHOICE COFFEE SERVICES,2018-01-12,2018-01-12,FOOD & BEVERAGE,53.56,2018
,2018 OFFICE OF THE SPEAKER,,GENERAL EXPENDITURES,SUPPLIES AND MATERIALS,DETAIL,2018-01-29,AP,E0594944,FIRST CHOICE COFFEE SERVICES,2018-01-12,2018-01-12,FOOD & BEVERAGE,128.75,2018
,2018 OFFICE OF THE SPEAKER,,GENERAL EXPENDITURES,SUPPLIES AND MATERIALS,DETAIL,2018-01-29,AP,E0594946,COCA-COLA BOTTLING COMPANY CONSOLIDATED,2018-01-26,2018-01-26,FOOD & BEVERAGE,60,2018
,2018 OFFICE OF THE SPEAKER,,GENERAL EXPENDITURES,SUPPLIES AND MATERIALS,DETAIL,2018-01-29,AP,E0594947,FIRST CHOICE COFFEE SERVICES,2018-01-26,2018-01-26,FOOD & BEVERAGE,608.68,2018
,2018 OFFICE OF THE SPEAKER,,GENERAL EXPENDITURES,SUPPLIES AND MATERIALS,DETAIL,2018-02-06,AP,E0595241,DESIGN CUISINE,2018-01-10,2018-01-10,FOOD & BEVERAGE,17177.5,2018
,2018 OFFICE OF THE SPEAKER,,GENERAL EXPENDITURES,SUPPLIES AND MATERIALS,DETAIL,2018-02-06,AP,E0597071,FIRST CHOICE COFFEE SERVICES,2018-02-01,2018-02-01,FOOD & BEVERAGE,723.27,2018
,2018 OFFICE OF THE SPEAKER,,GENERAL EXPENDITURES,SUPPLIES AND MATERIALS,DETAIL,2018-02-15,AP,E0599777,COCA-COLA BOTTLING COMPANY CONSOLIDATED,2018-02-09,2018-02-09,FOOD & BEVERAGE,95.94,2018
,2018 OFFICE OF THE SPEAKER,,GENERAL EXPENDITURES,SUPPLIES AND MATERIALS,DETAIL,2018-02-19,AP,974834,CITI PCARD-ALEXANDRIA FAMOUS DAVE,2017-12-29,2018-01-26,FOOD & BEVERAGE,400.13,2018
,2018 OFFICE OF THE SPEAKER,,GENERAL EXPENDITURES,SUPPLIES AND MATERIALS,DETAIL,2018-02-19,AP,974834,CITI PCARD-BUCA DI BEPPO,2017-12-29,2018-01-26,FOOD & BEVERAGE,1019.85,2018
,2018 OFFICE OF THE SPEAKER,,GENERAL EXPENDITURES,SUPPLIES AND MATERIALS,DETAIL,2018-02-19,AP,974834,CITI PCARD-CAFE RIO FALLS CHURCH,2017-12-29,2018-01-26,FOOD & BEVERAGE,325.26,2018
,2018 OFFICE OF THE SPEAKER,,GENERAL EXPENDITURES,SUPPLIES AND MATERIALS,DETAIL,2018-02-19,AP,974834,CITI PCARD-DT 656 CATERING,2017-12-29,2018-01-26,FOOD & BEVERAGE,2269.66,2018
,2018 OFFICE OF THE SPEAKER,,GENERAL EXPENDITURES,SUPPLIES AND MATERIALS,DETAIL,2018-02-19,AP,974834,CITI PCARD-PF CHANGS,2017-12-29,2018-01-26,FOOD & BEVERAGE,308.74,2018
,2018 OFFICE OF THE SPEAKER,,GENERAL EXPENDITURES,SUPPLIES AND MATERIALS,DETAIL,2018-02-19,AP,974834,CITI PCARD-TAYLOR GOUR BALLPARK,2017-12-29,2018-01-26,FOOD & BEVERAGE,84.03,2018
,2018 OFFICE OF THE SPEAKER,,GENERAL EXPENDITURES,SUPPLIES AND MATERIALS,DETAIL,2018-02-19,AP,974834,CITI PCARD-WHOLEFOODS.COM,2017-12-29,2018-01-26,FOOD & BEVERAGE,310.95,2018
,2018 OFFICE OF THE SPEAKER,,GENERAL EXPENDITURES,SUPPLIES AND MATERIALS,DETAIL,2018-02-19,AP,974834,CITI PCARD-WWW COSTCO COM,2017-12-29,2018-01-26,FOOD & BEVERAGE,379.8,2018
,2018 OFFICE OF THE SPEAKER,,GENERAL EXPENDITURES,SUPPLIES AND MATERIALS,DETAIL,2018-02-20,AP,E0599776,FIRST CHOICE COFFEE SERVICES,2018-02-07,2018-02-07,FOOD & BEVERAGE,298.01,2018
,2018 OFFICE OF THE SPEAKER,,GENERAL EXPENDITURES,SUPPLIES AND MATERIALS,DETAIL,2018-03-15,AP,978920,CITI PCARD-BUCA DI BEPPO,2018-01-27,2018-02-28,FOOD & BEVERAGE,357.33,2018
,2018 OFFICE OF THE SPEAKER,,GENERAL EXPENDITURES,SUPPLIES AND MATERIALS,DETAIL,2018-03-15,AP,978920,CITI PCARD-CAFE RIO FALLS CHURCH,2018-01-27,2018-02-28,FOOD & BEVERAGE,1456.5,2018
,2018 OFFICE OF THE SPEAKER,,GENERAL EXPENDITURES,SUPPLIES AND MATERIALS,DETAIL,2018-03-15,AP,978920,CITI PCARD-DT 656 CATERING,2018-01-27,2018-02-28,FOOD & BEVERAGE,-164.7,2018
,2018 OFFICE OF THE SPEAKER,,GENERAL EXPENDITURES,SUPPLIES AND MATERIALS,DETAIL,2018-03-15,AP,978920,CITI PCARD-EINSTEIN BROS-ONLINE C,2018-01-27,2018-02-28,FOOD & BEVERAGE,279.23,2018
,2018 OFFICE OF THE SPEAKER,,GENERAL EXPENDITURES,SUPPLIES AND MATERIALS,DETAIL,2018-03-15,AP,978920,CITI PCARD-FTP FINANCIAL TIMES,2018-01-27,2018-02-28,OFFICE SUPPLIES (OUTSIDE),335.4,2018
,2018 OFFICE OF THE SPEAKER,,GENERAL EXPENDITURES,SUPPLIES AND MATERIALS,DETAIL,2018-03-15,AP,978920,CITI PCARD-MAILCHIMP    MONTHLY,2018-01-27,2018-02-28,PUBLICATIONS/REFERENCE MAT'L,2029.95,2018
,2018 OFFICE OF THE SPEAKER,,GENERAL EXPENDITURES,SUPPLIES AND MATERIALS,DETAIL,2018-03-15,AP,978920,CITI PCARD-MEDIUM RARE BARRAC,2018-01-27,2018-02-28,FOOD & BEVERAGE,222.92,2018
,2018 OFFICE OF THE SPEAKER,,GENERAL EXPENDITURES,SUPPLIES AND MATERIALS,DETAIL,2018-03-15,AP,978920,CITI PCARD-NEW YORK TIMES DIGITAL,2018-01-27,2018-02-28,PUBLICATIONS/REFERENCE MAT'L,17.97,2018
,2018 OFFICE OF THE SPEAKER,,GENERAL EXPENDITURES,SUPPLIES AND MATERIALS,DETAIL,2018-03-15,AP,978920,CITI PCARD-PF CHANGS,2018-01-27,2018-02-28,FOOD & BEVERAGE,363.08,2018
,2018 OFFICE OF THE SPEAKER,,GENERAL EXPENDITURES,SUPPLIES AND MATERIALS,DETAIL,2018-03-15,AP,978920,CITI PCARD-TARGET,2018-01-27,2018-02-28,FOOD & BEVERAGE,87.08,2018
,2018 OFFICE OF THE SPEAKER,,GENERAL EXPENDITURES,SUPPLIES AND MATERIALS,DETAIL,2018-03-15,AP,978920,CITI PCARD-TLF CONKLYNS FLORIST,2018-01-27,2018-02-28,HABITATION EXPENSE,800,2018
,2018 OFFICE OF THE SPEAKER,,GENERAL EXPENDITURES,SUPPLIES AND MATERIALS,DETAIL,2018-03-15,AP,978920,CITI PCARD-WHOLEFDS HST,2018-01-27,2018-02-28,FOOD & BEVERAGE,37.9,2018
,2018 OFFICE OF THE SPEAKER,,GENERAL EXPENDITURES,SUPPLIES AND MATERIALS,DETAIL,2018-03-15,AP,978920,CITI PCARD-WWW COSTCO COM,2018-01-27,2018-02-28,OFFICE SUPPLIES (OUTSIDE),379.8,2018
,2018 OFFICE OF THE SPEAKER,,GENERAL EXPENDITURES,SUPPLIES AND MATERIALS,DETAIL,2018-03-19,AP,E0608460,FIRST CHOICE COFFEE SERVICES,2018-02-22,2018-02-22,FOOD & BEVERAGE,465.75,2018
,2018 OFFICE OF THE SPEAKER,,GENERAL EXPENDITURES,SUPPLIES AND MATERIALS,DETAIL,2018-03-19,AP,E0608465,FIRST CHOICE COFFEE SERVICES,2018-03-08,2018-03-08,FOOD & BEVERAGE,267.37,2018
,2018 OFFICE OF THE SPEAKER,,GENERAL EXPENDITURES,SUPPLIES AND MATERIALS,DETAIL,2018-03-19,AP,E0608466,FIRST CHOICE COFFEE SERVICES,2018-02-15,2018-02-15,FOOD & BEVERAGE,632.98,2018
,2018 OFFICE OF THE SPEAKER,,GENERAL EXPENDITURES,SUPPLIES AND MATERIALS,DETAIL,2018-03-19,AP,E0608473,FIRST CHOICE COFFEE SERVICES,2018-03-01,2018-03-01,FOOD & BEVERAGE,558.41,2018
,2018 OFFICE OF THE SPEAKER,,GENERAL EXPENDITURES,SUPPLIES AND MATERIALS,DETAIL,2018-03-20,AP,E0608468,VREEBURG JACOBUS A.,2018-03-05,2018-03-05,FOOD & BEVERAGE,228.78,2018
,2018 OFFICE OF THE SPEAKER,,GENERAL EXPENDITURES,SUPPLIES AND MATERIALS,DETAIL,2018-03-20,AP,E0608471,COCA-COLA BOTTLING COMPANY CONSOLIDATED,2018-03-02,2018-03-02,FOOD & BEVERAGE,73.8,2018
,2018 OFFICE OF THE SPEAKER,,GENERAL EXPENDITURES,SUPPLIES AND MATERIALS,DETAIL,2018-03-20,AP,E0609472,FIRST CHOICE COFFEE SERVICES,2018-03-15,2018-03-15,FOOD & BEVERAGE,387.1,2018
,2018 OFFICE OF THE SPEAKER,,GENERAL EXPENDITURES,SUPPLIES AND MATERIALS,DETAIL,2018-03-21,AP,E0608469,DESIGN CUISINE,2018-01-30,2018-01-30,FOOD & BEVERAGE,4749,2018
,2018 OFFICE OF THE SPEAKER,,GENERAL EXPENDITURES,SUPPLIES AND MATERIALS,DETAIL,2018-03-27,AP,E0611238,FIRST CHOICE COFFEE SERVICES,2018-03-22,2018-03-22,FOOD & BEVERAGE,356.64,2018
,2018 OFFICE OF THE SPEAKER,,GENERAL EXPENDITURES,SUPPLIES AND MATERIALS,DETAIL,2018-03-28,AP,E0611237,COCA-COLA BOTTLING COMPANY CONSOLIDATED,2018-03-23,2018-03-23,FOOD & BEVERAGE,44.28,2018
,2018 OFFICE OF THE SPEAKER,,GENERAL EXPENDITURES,SUPPLIES AND MATERIALS,SUBTOTAL,   ,   ,   ,   ,   ,   ,SUPPLIES AND MATERIALS TOTALS:,39406.88,2018
,2018 OFFICE OF THE SPEAKER,,GENERAL EXPENDITURES,SUPPLIES AND MATERIALS,SUBTOTAL,   ,   ,   ,   ,   ,   ,GENERAL EXPENDITURES TOTALS:,1485041.44,2018
,2018 OFFICE OF THE SPEAKER,,GENERAL EXPENDITURES,SUPPLIES AND MATERIALS,GRAND TOTAL FOR ORGANIZATION,   ,   ,   ,   ,   ,   ,OFFICE TOTALS: ,1485041.44,2018
,2017 OFFICE OF THE SPEAKER,,GENERAL EXPENDITURES,PERSONNEL COMPENSATION,DETAIL,   ,   ,   ,ALTHOUSE JOSHUA S,2018-01-01,2018-01-02,CONSERVATIVE OUTREACH DIRECTOR,444.44,2017
,2017 OFFICE OF THE SPEAKER,,GENERAL EXPENDITURES,PERSONNEL COMPENSATION,DETAIL,   ,   ,   ,ANDRES DOUGLAS R,2018-01-01,2018-01-02,PRESS SECRETARY,622.72,2017
,2017 OFFICE OF THE SPEAKER,,GENERAL EXPENDITURES,PERSONNEL COMPENSATION,DETAIL,   ,   ,   ,ANDREWS THOMAS S,2018-01-01,2018-01-02,MEMBER SERVICES DIRECTOR,722.22,2017
,2017 OFFICE OF THE SPEAKER,,GENERAL EXPENDITURES,PERSONNEL COMPENSATION,DETAIL,   ,   ,   ,ANTELL GEOFFREY,2018-01-01,2018-01-02,ASST TO THE SPEAKER FOR POLICY,934.09,2017
,2017 OFFICE OF THE SPEAKER,,GENERAL EXPENDITURES,PERSONNEL COMPENSATION,DETAIL,   ,   ,   ,BARKLEY RACHEL K,2018-01-01,2018-01-02,SHARED EMPLOYEE,555.56,2017
,2017 OFFICE OF THE SPEAKER,,GENERAL EXPENDITURES,PERSONNEL COMPENSATION,DETAIL,   ,   ,   ,BENJAMIN WILLIAM C.,2018-01-01,2018-01-02,SYSTEM ADMINISTRATOR,294.44,2017
,2017 OFFICE OF THE SPEAKER,,GENERAL EXPENDITURES,PERSONNEL COMPENSATION,DETAIL,   ,   ,   ,BLAKE KRISTENE,2018-01-01,2018-01-02,DIR OF ADMIN OPERATIONS,750,2017
,2017 OFFICE OF THE SPEAKER,,GENERAL EXPENDITURES,PERSONNEL COMPENSATION,DETAIL,   ,   ,   ,BLANKENSHIP APRIL L.,2018-01-01,2018-01-02,FINANCIAL ADMINISTRATOR,126.73,2017
,2017 OFFICE OF THE SPEAKER,,GENERAL EXPENDITURES,PERSONNEL COMPENSATION,DETAIL,   ,   ,   ,BUCK BRENDAN K,2018-01-01,2018-01-02,COUNSELOR TO THE SPEAKER,958.33,2017
,2017 OFFICE OF THE SPEAKER,,GENERAL EXPENDITURES,PERSONNEL COMPENSATION,DETAIL,   ,   ,   ,BURKS JONATHAN,2018-01-01,2018-01-02,CHIEF OF STAFF,958.33,2017
,2017 OFFICE OF THE SPEAKER,,GENERAL EXPENDITURES,PERSONNEL COMPENSATION,DETAIL,   ,   ,   ,BUSH NICHOLAS J,2018-01-01,2018-01-02,SHARED EMPLOYEE,555.56,2017
,2017 OFFICE OF THE SPEAKER,,GENERAL EXPENDITURES,PERSONNEL COMPENSATION,DETAIL,   ,   ,   ,CALLAS GEORGE A,2018-01-01,2018-01-02,CHIEF TAX COUNSEL,948.31,2017
,2017 OFFICE OF THE SPEAKER,,GENERAL EXPENDITURES,PERSONNEL COMPENSATION,DETAIL,   ,   ,   ,CAMERON JESSICA E,2018-01-01,2018-01-02,LAW CLERK,305.56,2017
,2017 OFFICE OF THE SPEAKER,,GENERAL EXPENDITURES,PERSONNEL COMPENSATION,DETAIL,   ,   ,   ,CHAMBERS KELLY A.,2018-01-01,2018-01-02,SHARED EMPLOYEE,555.56,2017
,2017 OFFICE OF THE SPEAKER,,GENERAL EXPENDITURES,PERSONNEL COMPENSATION,DETAIL,   ,   ,   ,COYLE SARAH M,2018-01-01,2018-01-02,FLOOR ASSISTANT,283.06,2017
,2017 OFFICE OF THE SPEAKER,,GENERAL EXPENDITURES,PERSONNEL COMPENSATION,DETAIL,   ,   ,   ,DEN HERDER ALEXA S,2018-01-01,2018-01-02,STAFF ASSISTANT,194.44,2017
,2017 OFFICE OF THE SPEAKER,,GENERAL EXPENDITURES,PERSONNEL COMPENSATION,DETAIL,   ,   ,   ,DEN HERDER ALEXA S,2017-12-01,2017-12-31,STAFF ASSISTANT (OVERTIME),151.44,2017
,2017 OFFICE OF THE SPEAKER,,GENERAL EXPENDITURES,PERSONNEL COMPENSATION,DETAIL,   ,   ,   ,DOCKERY DERRICK D,2018-01-01,2018-01-02,INTERGOVERNMENTAL OUTREACH DIR,444.44,2017
,2017 OFFICE OF THE SPEAKER,,GENERAL EXPENDITURES,PERSONNEL COMPENSATION,DETAIL,   ,   ,   ,DRESSLER JEFFREY A,2018-01-01,2018-01-02,ASST TO THE SPEAKER FOR POLICY,622.72,2017
,2017 OFFICE OF THE SPEAKER,,GENERAL EXPENDITURES,PERSONNEL COMPENSATION,DETAIL,   ,   ,   ,EASBY-SMITH ANNE S.,2018-01-01,2018-01-02,SPECIAL EVENTS COORDINATOR,537.81,2017
,2017 OFFICE OF THE SPEAKER,,GENERAL EXPENDITURES,PERSONNEL COMPENSATION,DETAIL,   ,   ,   ,EDWARDS SPENCER M,2018-01-01,2018-01-02,DEP PRESS SEC/HEAD OF ADVANCE,428.75,2017
,2017 OFFICE OF THE SPEAKER,,GENERAL EXPENDITURES,PERSONNEL COMPENSATION,DETAIL,   ,   ,   ,EICHHORN JARED D.,2018-01-01,2018-01-02,CLOAKROOM DIRECTOR,555.56,2017
,2017 OFFICE OF THE SPEAKER,,GENERAL EXPENDITURES,PERSONNEL COMPENSATION,DETAIL,   ,   ,   ,EPLEY MARK D,2018-01-01,2018-01-02,GENERAL COUNSEL/OVERSIGHT,958.33,2017
,2017 OFFICE OF THE SPEAKER,,GENERAL EXPENDITURES,PERSONNEL COMPENSATION,DETAIL,   ,   ,   ,FOLTZ DEVON N,2018-01-01,2018-01-02,DEPUTY FLOOR DIRECTOR/COUNSEL,777.78,2017
,2017 OFFICE OF THE SPEAKER,,GENERAL EXPENDITURES,PERSONNEL COMPENSATION,DETAIL,   ,   ,   ,GILLESPIE JAMES M,2018-01-01,2018-01-02,FLOOR ASSISTANT,261.11,2017
,2017 OFFICE OF THE SPEAKER,,GENERAL EXPENDITURES,PERSONNEL COMPENSATION,DETAIL,   ,   ,   ,HALPERN HUGH N.,2018-01-01,2018-01-02,FLOOR DIRECTOR - STATUTORY,958.33,2017
,2017 OFFICE OF THE SPEAKER,,GENERAL EXPENDITURES,PERSONNEL COMPENSATION,DETAIL,   ,   ,   ,HEMINGWAY JENNIFER A,2018-01-01,2018-01-02,DIRECTOR OF HOUSE OPERATIONS,958.33,2017
,2017 OFFICE OF THE SPEAKER,,GENERAL EXPENDITURES,PERSONNEL COMPENSATION,DETAIL,   ,   ,   ,HERRLE CYNTHIA A.,2018-01-01,2018-01-02,ASST TO THE SPEAKER FOR POLICY,933.33,2017
,2017 OFFICE OF THE SPEAKER,,GENERAL EXPENDITURES,PERSONNEL COMPENSATION,DETAIL,   ,   ,   ,HIGGINS CASEY,2018-01-01,2018-01-02,ASSIST TO SPEAKER FOR POLICY,880.08,2017
,2017 OFFICE OF THE SPEAKER,,GENERAL EXPENDITURES,PERSONNEL COMPENSATION,DETAIL,   ,   ,   ,HOFMAN RYAN,2018-01-01,2018-01-02,SHARED EMPLOYEE,60,2017
,2017 OFFICE OF THE SPEAKER,,GENERAL EXPENDITURES,PERSONNEL COMPENSATION,DETAIL,   ,   ,   ,KEARNEY EMILY M,2018-01-01,2018-01-02,SPECIAL EVENTS SCHEDULING ASST,194.44,2017
,2017 OFFICE OF THE SPEAKER,,GENERAL EXPENDITURES,PERSONNEL COMPENSATION,DETAIL,   ,   ,   ,KEARNEY EMILY M,2017-12-01,2017-12-31,SPECIAL EVENTS SCHEDULING ASST (OVERTIME),795.06,2017
,2017 OFFICE OF THE SPEAKER,,GENERAL EXPENDITURES,PERSONNEL COMPENSATION,DETAIL,   ,   ,   ,KOHLER JOHN D,2018-01-01,2018-01-02,CORRESPONDENCE ASSISTANT,138.88,2017
,2017 OFFICE OF THE SPEAKER,,GENERAL EXPENDITURES,PERSONNEL COMPENSATION,DETAIL,   ,   ,   ,LARSON SALLY R,2018-01-01,2018-01-02,SHARED EMPLOYEE,555.56,2017
,2017 OFFICE OF THE SPEAKER,,GENERAL EXPENDITURES,PERSONNEL COMPENSATION,DETAIL,   ,   ,   ,LETSCH ANDREW D,2018-01-01,2018-01-02,STAFF ASSISTANT,194.44,2017
,2017 OFFICE OF THE SPEAKER,,GENERAL EXPENDITURES,PERSONNEL COMPENSATION,DETAIL,   ,   ,   ,LETSCH ANDREW D,2017-12-01,2017-12-31,STAFF ASSISTANT (OVERTIME),504.8,2017
,2017 OFFICE OF THE SPEAKER,,GENERAL EXPENDITURES,PERSONNEL COMPENSATION,DETAIL,   ,   ,   ,MAHAN ROGER A,2018-01-01,2018-01-02,ASSISTANT TO THE SPEAKER FOR P,500,2017
,2017 OFFICE OF THE SPEAKER,,GENERAL EXPENDITURES,PERSONNEL COMPENSATION,DETAIL,   ,   ,   ,MANECKE KIMBERLY,2018-01-01,2018-01-02,DEPUTY DIRECTOR OF SCHEDULING,344.44,2017
,2017 OFFICE OF THE SPEAKER,,GENERAL EXPENDITURES,PERSONNEL COMPENSATION,DETAIL,   ,   ,   ,MCCANN EDWARD D.,2018-01-01,2018-01-02,ASSIST TO SPEAKER FOR POLICY,905.78,2017
,2017 OFFICE OF THE SPEAKER,,GENERAL EXPENDITURES,PERSONNEL COMPENSATION,DETAIL,   ,   ,   ,MILLER WILLIAM,2018-01-01,2018-01-02,SPECIAL ASSISTANT TO THE SPEAK,430.24,2017
,2017 OFFICE OF THE SPEAKER,,GENERAL EXPENDITURES,PERSONNEL COMPENSATION,DETAIL,   ,   ,   ,MUNDAY J M.,2018-01-01,2018-01-02,DIRECTOR OF INFORMATION TECHNO,722.22,2017
,2017 OFFICE OF THE SPEAKER,,GENERAL EXPENDITURES,PERSONNEL COMPENSATION,DETAIL,   ,   ,   ,O'TOOLE RYAN T,2018-01-01,2018-01-02,FLOOR ASSISTANT,333.33,2017
,2017 OFFICE OF THE SPEAKER,,GENERAL EXPENDITURES,PERSONNEL COMPENSATION,DETAIL,   ,   ,   ,PARKS STEPHANIE M,2018-01-01,2018-01-02,ASSISTANT TO SPEAKER FOR POLIC,694.44,2017
,2017 OFFICE OF THE SPEAKER,,GENERAL EXPENDITURES,PERSONNEL COMPENSATION,DETAIL,   ,   ,   ,PIATT AUSTIN W,2018-01-01,2018-01-02,STAFF ASSISTANT,194.44,2017
,2017 OFFICE OF THE SPEAKER,,GENERAL EXPENDITURES,PERSONNEL COMPENSATION,DETAIL,   ,   ,   ,PIATT AUSTIN W,2017-12-01,2017-12-31,STAFF ASSISTANT (OVERTIME),75.72,2017
,2017 OFFICE OF THE SPEAKER,,GENERAL EXPENDITURES,PERSONNEL COMPENSATION,DETAIL,   ,   ,   ,POINTER KATHERINE C,2018-01-01,2018-01-02,FLOOR ASSISTANT,333.33,2017
,2017 OFFICE OF THE SPEAKER,,GENERAL EXPENDITURES,PERSONNEL COMPENSATION,DETAIL,   ,   ,   ,REISING JOHN B,2018-01-01,2018-01-02,SHARED EMPLOYEE,555.56,2017
,2017 OFFICE OF THE SPEAKER,,GENERAL EXPENDITURES,PERSONNEL COMPENSATION,DETAIL,   ,   ,   ,RICCI MICHAEL,2018-01-01,2018-01-02,DIRECTOR OF COMMUNICATIONS,935.61,2017
,2017 OFFICE OF THE SPEAKER,,GENERAL EXPENDITURES,PERSONNEL COMPENSATION,DETAIL,   ,   ,   ,ROMAN MARK J.,2018-01-01,2018-01-02,SHARED EMPLOYEE,555.56,2017
,2017 OFFICE OF THE SPEAKER,,GENERAL EXPENDITURES,PERSONNEL COMPENSATION,DETAIL,   ,   ,   ,RYAN MADELINE E,2018-01-01,2018-01-02,STAFF ASSISTANT,194.44,2017
,2017 OFFICE OF THE SPEAKER,,GENERAL EXPENDITURES,PERSONNEL COMPENSATION,DETAIL,   ,   ,   ,RYAN MADELINE E,2017-12-01,2017-12-31,STAFF ASSISTANT (OVERTIME),54.27,2017
,2017 OFFICE OF THE SPEAKER,,GENERAL EXPENDITURES,PERSONNEL COMPENSATION,DETAIL,   ,   ,   ,SAKWA JENNA P,2018-01-01,2018-01-02,MEDIA AFFAIRS DIRECTOR,594.41,2017
,2017 OFFICE OF THE SPEAKER,,GENERAL EXPENDITURES,PERSONNEL COMPENSATION,DETAIL,   ,   ,   ,SHAPIRO MICHAEL I.,2018-01-01,2018-01-02,COMMUNICATIONS ADVISOR,452.88,2017
,2017 OFFICE OF THE SPEAKER,,GENERAL EXPENDITURES,PERSONNEL COMPENSATION,DETAIL,   ,   ,   ,SLINGSBY JULIA K.,2018-01-01,2018-01-02,DEPUTY COMMUNICATIONS DIRECTOR,594.41,2017
,2017 OFFICE OF THE SPEAKER,,GENERAL EXPENDITURES,PERSONNEL COMPENSATION,DETAIL,   ,   ,   ,SMITH CALEB J,2018-01-01,2018-01-02,DIGITAL COMMUNICATIONS DIRECTO,735.94,2017
,2017 OFFICE OF THE SPEAKER,,GENERAL EXPENDITURES,PERSONNEL COMPENSATION,DETAIL,   ,   ,   ,SMYTHE AUGUSTINE,2018-01-01,2018-01-02,POLICY DIRECTOR,958.33,2017
,2017 OFFICE OF THE SPEAKER,,GENERAL EXPENDITURES,PERSONNEL COMPENSATION,DETAIL,   ,   ,   ,SPETH ANDREW D.,2018-01-01,2018-01-02,DEPUTY CHIEF OF STAFF,666.67,2017
,2017 OFFICE OF THE SPEAKER,,GENERAL EXPENDITURES,PERSONNEL COMPENSATION,DETAIL,   ,   ,   ,STRONG ASHLEE A,2018-01-01,2018-01-02,PRESS SECRETARY,877.47,2017
,2017 OFFICE OF THE SPEAKER,,GENERAL EXPENDITURES,PERSONNEL COMPENSATION,DETAIL,   ,   ,   ,VANDEHEY VANESSA P,2018-01-01,2018-01-02,SENIOR STAFF ASSISTANT,177.77,2017
,2017 OFFICE OF THE SPEAKER,,GENERAL EXPENDITURES,PERSONNEL COMPENSATION,DETAIL,   ,   ,   ,VREEBURG JACOBUS A,2018-01-01,2018-01-02,SHARED EMPLOYEE,444.44,2017
,2017 OFFICE OF THE SPEAKER,,GENERAL EXPENDITURES,PERSONNEL COMPENSATION,DETAIL,   ,   ,   ,WALTZ PAIGE M,2018-01-01,2018-01-02,DIGITAL MEDIA COORDINATOR,303.33,2017
,2017 OFFICE OF THE SPEAKER,,GENERAL EXPENDITURES,PERSONNEL COMPENSATION,DETAIL,   ,   ,   ,WEAVER KIEL P.,2018-01-01,2018-01-02,ASST TO SPEAKER FOR POLICY,934.09,2017
,2017 OFFICE OF THE SPEAKER,,GENERAL EXPENDITURES,PERSONNEL COMPENSATION,DETAIL,   ,   ,   ,WICKISER VICTORIA H,2018-01-01,2018-01-02,DIRECTOR OF SCHEDULING,622.72,2017
,2017 OFFICE OF THE SPEAKER,,GENERAL EXPENDITURES,PERSONNEL COMPENSATION,DETAIL,   ,   ,   ,YANTKO DOMINIQUE G,2018-01-01,2018-01-02,SHARED EMPLOYEE,250,2017
,2017 OFFICE OF THE SPEAKER,,GENERAL EXPENDITURES,PERSONNEL COMPENSATION,SUBTOTAL,   ,   ,   ,   ,   ,   ,PERSONNEL COMPENSATION TOTALS:,34562.38,2017
,2017 OFFICE OF THE SPEAKER,,GENERAL EXPENDITURES,TRAVEL,DETAIL,2018-01-04,AP,E0586111,STRONG ASHLEE A,2017-01-18,2017-01-18,COMMERCIAL TRANSPORTATION,365,2017
,2017 OFFICE OF THE SPEAKER,,GENERAL EXPENDITURES,TRAVEL,DETAIL,2018-01-04,AP,E0586111,STRONG ASHLEE A,2017-01-18,2017-01-18,TAXI/PARKING/TOLLS,69.81,2017
,2017 OFFICE OF THE SPEAKER,,GENERAL EXPENDITURES,TRAVEL,DETAIL,2018-01-04,AP,E0586112,STRONG ASHLEE A,2017-05-08,2017-05-09,COMMERCIAL TRANSPORTATION,330,2017
,2017 OFFICE OF THE SPEAKER,,GENERAL EXPENDITURES,TRAVEL,DETAIL,2018-01-04,AP,E0586112,STRONG ASHLEE A,2017-05-08,2017-05-09,LODGING,370.7,2017
,2017 OFFICE OF THE SPEAKER,,GENERAL EXPENDITURES,TRAVEL,DETAIL,2018-01-04,AP,E0586112,STRONG ASHLEE A,2017-05-08,2017-05-09,MEALS,17.47,2017
,2017 OFFICE OF THE SPEAKER,,GENERAL EXPENDITURES,TRAVEL,DETAIL,2018-01-04,AP,E0586112,STRONG ASHLEE A,2017-05-09,2017-05-09,TAXI/PARKING/TOLLS,10.3,2017
,2017 OFFICE OF THE SPEAKER,,GENERAL EXPENDITURES,TRAVEL,DETAIL,2018-01-04,AP,E0586724,SMITH CALEB,2017-12-21,2017-12-21,TAXI/PARKING/TOLLS,7.73,2017
,2017 OFFICE OF THE SPEAKER,,GENERAL EXPENDITURES,TRAVEL,DETAIL,2018-01-13,AP,E0588130,CALLAS GEORGE A.,2017-10-18,2017-10-20,TAXI/PARKING/TOLLS,40,2017
,2017 OFFICE OF THE SPEAKER,,GENERAL EXPENDITURES,TRAVEL,DETAIL,2018-03-06,AP,E0602051,STRONG ASHLEE A,2017-08-22,2017-08-25,COMMERCIAL TRANSPORTATION,420.1,2017
,2017 OFFICE OF THE SPEAKER,,GENERAL EXPENDITURES,TRAVEL,DETAIL,2018-03-06,AP,E0602051,STRONG ASHLEE A,2017-08-22,2017-08-24,LODGING,782.69,2017
,2017 OFFICE OF THE SPEAKER,,GENERAL EXPENDITURES,TRAVEL,DETAIL,2018-03-06,AP,E0602051,STRONG ASHLEE A,2017-08-22,2017-08-25,MEALS,42.27,2017
,2017 OFFICE OF THE SPEAKER,,GENERAL EXPENDITURES,TRAVEL,DETAIL,2018-03-06,AP,E0602051,STRONG ASHLEE A,2017-08-22,2017-08-25,TAXI/PARKING/TOLLS,49.78,2017
,2017 OFFICE OF THE SPEAKER,,GENERAL EXPENDITURES,TRAVEL,DETAIL,2018-03-28,AP,E0610262,DRESSLER JEFFREY A.,2017-11-20,2017-11-27,TAXI/PARKING/TOLLS,43,2017
,2017 OFFICE OF THE SPEAKER,,GENERAL EXPENDITURES,TRAVEL,DETAIL,2018-03-28,AP,E0610262,DRESSLER JEFFREY A.,2017-12-11,2017-12-11,TAXI/PARKING/TOLLS,23,2017
,2017 OFFICE OF THE SPEAKER,,GENERAL EXPENDITURES,TRAVEL,DETAIL,2018-03-30,AP,E0611426,BURKS JONATHAN,2017-10-02,2017-10-02,TAXI/PARKING/TOLLS,20.18,2017
,2017 OFFICE OF THE SPEAKER,,GENERAL EXPENDITURES,TRAVEL,DETAIL,2018-03-30,AP,E0611426,BURKS JONATHAN,2018-01-02,2018-01-02,TAXI/PARKING/TOLLS,24.88,2017
,2017 OFFICE OF THE SPEAKER,,GENERAL EXPENDITURES,TRAVEL,SUBTOTAL,   ,   ,   ,   ,   ,   ,TRAVEL TOTALS:,2616.91,2017
,2017 OFFICE OF THE SPEAKER,,GENERAL EXPENDITURES,RENT  COMMUNICATION  UTILITIES,DETAIL,2018-01-09,AP,E0586040,AT&T,2017-11-10,2017-12-09,TELECOMSRV/EQ/TOLL CHARGE,171.77,2017
,2017 OFFICE OF THE SPEAKER,,GENERAL EXPENDITURES,RENT  COMMUNICATION  UTILITIES,DETAIL,2018-02-13,AP,970363,AT&T,2017-11-10,2017-12-09,TELECOMSRV/EQ/TOLL CHARGE,-171.77,2017
,2017 OFFICE OF THE SPEAKER,,GENERAL EXPENDITURES,RENT  COMMUNICATION  UTILITIES,DETAIL,2018-03-06,AP,E0602051,STRONG ASHLEE A,2017-08-22,2017-08-22,UTILITIES,19.95,2017
,2017 OFFICE OF THE SPEAKER,,GENERAL EXPENDITURES,RENT  COMMUNICATION  UTILITIES,SUBTOTAL,   ,   ,   ,   ,   ,   ,RENT  COMMUNICATION  UTILITIES TOTALS:,19.95,2017
,2017 OFFICE OF THE SPEAKER,,GENERAL EXPENDITURES,OTHER SERVICES,DETAIL,2018-01-15,AP,E0586213,NEW TARGET INC,2018-01-01,2018-12-31,WEB DEV HST EMAIL & RLTD SERV,7200,2017
,2017 OFFICE OF THE SPEAKER,,GENERAL EXPENDITURES,OTHER SERVICES,SUBTOTAL,   ,   ,   ,   ,   ,   ,OTHER SERVICES TOTALS:,7200,2017
,2017 OFFICE OF THE SPEAKER,,GENERAL EXPENDITURES,SUPPLIES AND MATERIALS,DETAIL,2018-01-04,AP,E0586110,VREEBURG JACOBUS A.,2017-12-12,2017-12-12,FOOD & BEVERAGE,113.73,2017
,2017 OFFICE OF THE SPEAKER,,GENERAL EXPENDITURES,SUPPLIES AND MATERIALS,DETAIL,2018-01-15,AP,E0587745,HAGUE QUALITY WATER OF MD INC,2018-01-01,2018-12-31,WATER,3780,2017
,2017 OFFICE OF THE SPEAKER,,GENERAL EXPENDITURES,SUPPLIES AND MATERIALS,DETAIL,2018-01-16,AP,964863,CDW GOVERNMENT INC. C/O ISM IN,2017-12-27,2017-12-27,OFFICE SUPPLIES (OUTSIDE),189.2,2017
,2017 OFFICE OF THE SPEAKER,,GENERAL EXPENDITURES,SUPPLIES AND MATERIALS,DETAIL,2018-01-16,AP,964863,CDW GOVERNMENT INC. C/O ISM IN,2017-12-27,2017-12-27,OFFICE SUPPLIES (OUTSIDE) QTY - 2,196.26,2017
,2017 OFFICE OF THE SPEAKER,,GENERAL EXPENDITURES,SUPPLIES AND MATERIALS,DETAIL,2018-01-16,AP,964864,CDW GOVERNMENT INC. C/O ISM IN,2017-12-27,2017-12-27,SOFTWARE  LESS THAN  $500,331.12,2017
,2017 OFFICE OF THE SPEAKER,,GENERAL EXPENDITURES,SUPPLIES AND MATERIALS,DETAIL,2018-01-18,AP,969018,CITI PCARD-AMAZON MKTPLACE PMTS,2017-11-29,2017-12-28,FOOD & BEVERAGE,28.07,2017
,2017 OFFICE OF THE SPEAKER,,GENERAL EXPENDITURES,SUPPLIES AND MATERIALS,DETAIL,2018-01-18,AP,969018,CITI PCARD-AMAZON MKTPLACE PMTS,2017-11-29,2017-12-28,OFFICE SUPPLIES (OUTSIDE),1180.35,2017
,2017 OFFICE OF THE SPEAKER,,GENERAL EXPENDITURES,SUPPLIES AND MATERIALS,DETAIL,2018-01-18,AP,969018,CITI PCARD-APL APPLE ONLINE STORE,2017-11-29,2017-12-28,OFFICE SUPPLIES (OUTSIDE),306.68,2017
,2017 OFFICE OF THE SPEAKER,,GENERAL EXPENDITURES,SUPPLIES AND MATERIALS,DETAIL,2018-01-18,AP,969018,CITI PCARD-BUCA DI BEPPO,2017-11-29,2017-12-28,FOOD & BEVERAGE,368.33,2017
,2017 OFFICE OF THE SPEAKER,,GENERAL EXPENDITURES,SUPPLIES AND MATERIALS,DETAIL,2018-01-18,AP,969018,CITI PCARD-CAFE RIO FALLS CHURCH,2017-11-29,2017-12-28,FOOD & BEVERAGE,1502.68,2017
,2017 OFFICE OF THE SPEAKER,,GENERAL EXPENDITURES,SUPPLIES AND MATERIALS,DETAIL,2018-01-18,AP,969018,CITI PCARD-DT 656 CATERING,2017-11-29,2017-12-28,FOOD & BEVERAGE,2104.96,2017
,2017 OFFICE OF THE SPEAKER,,GENERAL EXPENDITURES,SUPPLIES AND MATERIALS,DETAIL,2018-01-18,AP,969018,CITI PCARD-QDOBA MEXICAN GRIL,2017-11-29,2017-12-28,FOOD & BEVERAGE,3193.4,2017
,2017 OFFICE OF THE SPEAKER,,GENERAL EXPENDITURES,SUPPLIES AND MATERIALS,DETAIL,2018-01-18,AP,969018,CITI PCARD-TAYLOR GOUR BALLPARK,2017-11-29,2017-12-28,FOOD & BEVERAGE,91.19,2017
,2017 OFFICE OF THE SPEAKER,,GENERAL EXPENDITURES,SUPPLIES AND MATERIALS,DETAIL,2018-01-29,AP,969509,CDW GOVERNMENT INC. C/O ISM IN,2017-12-29,2017-12-29,OFFICE SUPPLIES (OUTSIDE) QTY - 6,255.84,2017
,2017 OFFICE OF THE SPEAKER,,GENERAL EXPENDITURES,SUPPLIES AND MATERIALS,DETAIL,2018-01-29,AP,969509,CDW GOVERNMENT INC. C/O ISM IN,2017-12-29,2017-12-29,OFFICE SUPPLIES (OUTSIDE) QTY - 4,280,2017
,2017 OFFICE OF THE SPEAKER,,GENERAL EXPENDITURES,SUPPLIES AND MATERIALS,DETAIL,2018-02-06,AP,970249,ITSAVVY LLC,2018-01-02,2018-01-02,OFFICE SUPPLIES (OUTSIDE) QTY - 2,120,2017
,2017 OFFICE OF THE SPEAKER,,GENERAL EXPENDITURES,SUPPLIES AND MATERIALS,DETAIL,2018-02-19,AP,974834,CITI PCARD-NEW YORK TIMES DIGITAL,2017-12-29,2018-01-26,PUBLICATIONS/REFERENCE MAT'L,17.97,2017
,2017 OFFICE OF THE SPEAKER,,GENERAL EXPENDITURES,SUPPLIES AND MATERIALS,SUBTOTAL,   ,   ,   ,   ,   ,   ,SUPPLIES AND MATERIALS TOTALS:,14059.78,2017
,2017 OFFICE OF THE SPEAKER,,GENERAL EXPENDITURES,EQUIPMENT,DETAIL,2018-01-09,AP,964357,CBT NUGGETS LLC,2018-01-03,2019-01-03,COMPUTER SOFTW PURCH  LESS THAN $10 000 QTY - 2,1798.2,2017
,2017 OFFICE OF THE SPEAKER,,GENERAL EXPENDITURES,EQUIPMENT,DETAIL,2018-01-29,AP,969509,CDW GOVERNMENT INC. C/O ISM IN,2017-12-29,2017-12-29,COMPUTER HARDW PURCH  LESS THAN $25 000,5385.21,2017
,2017 OFFICE OF THE SPEAKER,,GENERAL EXPENDITURES,EQUIPMENT,DETAIL,2018-01-29,AP,969509,CDW GOVERNMENT INC. C/O ISM IN,2017-12-29,2017-12-29,WARRANTIES QTY - 2,1516.64,2017
,2017 OFFICE OF THE SPEAKER,,GENERAL EXPENDITURES,EQUIPMENT,DETAIL,2018-03-01,AP,975406,STORAGEHAWK,2018-01-23,2018-01-23,COMPUTER HARDW PURCH  LESS THAN $25 000,24482.39,2017
,2017 OFFICE OF THE SPEAKER,,GENERAL EXPENDITURES,EQUIPMENT,DETAIL,2018-03-01,AP,975406,STORAGEHAWK,2018-01-23,2018-01-23,MAINTENANCE / REPAIRS,5429.28,2017
,2017 OFFICE OF THE SPEAKER,,GENERAL EXPENDITURES,EQUIPMENT,DETAIL,2018-03-01,AP,975406,STORAGEHAWK,2018-01-23,2018-01-23,WARRANTIES,1313.33,2017
,2017 OFFICE OF THE SPEAKER,,GENERAL EXPENDITURES,EQUIPMENT,DETAIL,2018-03-01,AP,975408,STORAGEHAWK,2018-01-23,2018-01-23,MAINTENANCE / REPAIRS QTY - 2,35148.26,2017
,2017 OFFICE OF THE SPEAKER,,GENERAL EXPENDITURES,EQUIPMENT,DETAIL,2018-03-01,AP,975408,STORAGEHAWK,2018-01-23,2018-01-23,COMPUTER HARDW PURCH  GREATER THAN OR =$25 000,98665.42,2017
,2017 OFFICE OF THE SPEAKER,,GENERAL EXPENDITURES,EQUIPMENT,DETAIL,2018-03-01,AP,975408,STORAGEHAWK,2018-01-23,2018-01-23,WARRANTIES QTY - 2,5686.32,2017
,2017 OFFICE OF THE SPEAKER,,GENERAL EXPENDITURES,EQUIPMENT,SUBTOTAL,   ,   ,   ,   ,   ,   ,EQUIPMENT TOTALS:,179425.05,2017
,2017 OFFICE OF THE SPEAKER,,GENERAL EXPENDITURES,EQUIPMENT,SUBTOTAL,   ,   ,   ,   ,   ,   ,GENERAL EXPENDITURES TOTALS:,237884.07,2017
,2017 OFFICE OF THE SPEAKER,,GENERAL EXPENDITURES,EQUIPMENT,GRAND TOTAL FOR ORGANIZATION,   ,   ,   ,   ,   ,   ,OFFICE TOTALS: ,237884.07,2017
,2018 OFFICE OF THE MAJORITY LEADER,,GENERAL EXPENDITURES,PERSONNEL COMPENSATION,DETAIL,   ,   ,   ,BEATTY JULIA-GRACE D,2018-01-03,2018-03-31,STAFF ASSISTANT,7333.33,2018
,2018 OFFICE OF THE MAJORITY LEADER,,GENERAL EXPENDITURES,PERSONNEL COMPENSATION,DETAIL,   ,   ,   ,BIEN CHRISTOPHER A,2018-01-03,2018-03-31,FLOOR ASSISTANT,15700,2018
,2018 OFFICE OF THE MAJORITY LEADER,,GENERAL EXPENDITURES,PERSONNEL COMPENSATION,DETAIL,   ,   ,   ,BUCHANAN NATALIE L,2018-01-03,2018-03-31,DIR OF MEMBER SERVICES,32266.67,2018
,2018 OFFICE OF THE MAJORITY LEADER,,GENERAL EXPENDITURES,PERSONNEL COMPENSATION,DETAIL,   ,   ,   ,CHAMBERS KELLY A.,2018-01-03,2018-03-31,DIR OF LEGISLATIVE OPERATIONS,9288.9,2018
,2018 OFFICE OF THE MAJORITY LEADER,,GENERAL EXPENDITURES,PERSONNEL COMPENSATION,DETAIL,   ,   ,   ,CONSOLVO BRANDON S,2018-01-03,2018-03-31,SENIOR POLICY ADVISOR,27866.67,2018
,2018 OFFICE OF THE MAJORITY LEADER,,GENERAL EXPENDITURES,PERSONNEL COMPENSATION,DETAIL,   ,   ,   ,DUNHAM WILL,2018-01-03,2018-03-31,POLICY DIRECTOR,39066.67,2018
,2018 OFFICE OF THE MAJORITY LEADER,,GENERAL EXPENDITURES,PERSONNEL COMPENSATION,DETAIL,   ,   ,   ,FLORIO JOHN A,2018-01-03,2018-02-28,DEPUTY PRESS SECRETARY,11600,2018
,2018 OFFICE OF THE MAJORITY LEADER,,GENERAL EXPENDITURES,PERSONNEL COMPENSATION,DETAIL,   ,   ,   ,FLORIO JOHN A,2018-03-01,2018-03-31,STRATEGIC COMMUNICATIONS & DIG,6000,2018
,2018 OFFICE OF THE MAJORITY LEADER,,GENERAL EXPENDITURES,PERSONNEL COMPENSATION,DETAIL,   ,   ,   ,GOURDIKIAN ALEXANDRA G,2018-01-03,2018-03-31,SCHEDULER,14666.67,2018
,2018 OFFICE OF THE MAJORITY LEADER,,GENERAL EXPENDITURES,PERSONNEL COMPENSATION,DETAIL,   ,   ,   ,HILL PRESTON W,2018-01-03,2018-03-31,SPECIAL ASSISTANT,10266.67,2018
,2018 OFFICE OF THE MAJORITY LEADER,,GENERAL EXPENDITURES,PERSONNEL COMPENSATION,DETAIL,   ,   ,   ,KARR ELIZABETH B,2018-01-03,2018-03-31,CHIEF OF STAFF,42166.67,2018
,2018 OFFICE OF THE MAJORITY LEADER,,GENERAL EXPENDITURES,PERSONNEL COMPENSATION,DETAIL,   ,   ,   ,LEGANSKI JOHN G,2018-01-03,2018-03-31,DIRECTOR OF FLOOR OPERATIONS,26000,2018
,2018 OFFICE OF THE MAJORITY LEADER,,GENERAL EXPENDITURES,PERSONNEL COMPENSATION,DETAIL,   ,   ,   ,MAHAN ROGER A,2018-01-03,2018-03-31,SENIOR POLICY ADVISOR,9533.33,2018
,2018 OFFICE OF THE MAJORITY LEADER,,GENERAL EXPENDITURES,PERSONNEL COMPENSATION,DETAIL,   ,   ,   ,MEYER KATHERINE R,2018-01-03,2018-03-31,SENIOR POLICY ADVISOR,32266.67,2018
,2018 OFFICE OF THE MAJORITY LEADER,,GENERAL EXPENDITURES,PERSONNEL COMPENSATION,DETAIL,   ,   ,   ,MIN JAMES B.,2018-01-03,2018-03-31,DEPUTY CHIEF OF STAFF/COUNSEL,33000,2018
,2018 OFFICE OF THE MAJORITY LEADER,,GENERAL EXPENDITURES,PERSONNEL COMPENSATION,DETAIL,   ,   ,   ,MURRY LUKE A,2018-01-03,2018-03-31,NATIONAL SECURITY ADVISOR,32266.67,2018
,2018 OFFICE OF THE MAJORITY LEADER,,GENERAL EXPENDITURES,PERSONNEL COMPENSATION,DETAIL,   ,   ,   ,PERRINE ERIN M,2018-01-03,2018-03-31,PRESS SECRETARY,20533.33,2018
,2018 OFFICE OF THE MAJORITY LEADER,,GENERAL EXPENDITURES,PERSONNEL COMPENSATION,DETAIL,   ,   ,   ,PICOZZI JOSEPH S,2018-01-03,2018-03-31,STAFF ASSISTANT,7333.33,2018
,2018 OFFICE OF THE MAJORITY LEADER,,GENERAL EXPENDITURES,PERSONNEL COMPENSATION,DETAIL,   ,   ,   ,SPARKS MATTHEW E,2018-01-03,2018-03-31,DIRECTOR OF COMMUNICATIONS,29333.33,2018
,2018 OFFICE OF THE MAJORITY LEADER,,GENERAL EXPENDITURES,PERSONNEL COMPENSATION,DETAIL,   ,   ,   ,SPECHT BRITTAN G,2018-01-03,2018-03-31,SENIOR POLICY ADVISOR,27866.67,2018
,2018 OFFICE OF THE MAJORITY LEADER,,GENERAL EXPENDITURES,PERSONNEL COMPENSATION,DETAIL,   ,   ,   ,STIPICEVIC KRISTIN,2018-01-03,2018-03-31,EXECUTIVE ASSISTANT,12466.67,2018
,2018 OFFICE OF THE MAJORITY LEADER,,GENERAL EXPENDITURES,PERSONNEL COMPENSATION,DETAIL,   ,   ,   ,TORRES ALEC C,2018-01-03,2018-02-28,DEPUTY PRESS SECRETARY/WRITER,11600,2018
,2018 OFFICE OF THE MAJORITY LEADER,,GENERAL EXPENDITURES,PERSONNEL COMPENSATION,DETAIL,   ,   ,   ,TORRES ALEC C,2018-03-01,2018-03-31,SPEECHWRITER & CONSERVATIVE CO,6000,2018
,2018 OFFICE OF THE MAJORITY LEADER,,GENERAL EXPENDITURES,PERSONNEL COMPENSATION,SUBTOTAL,   ,   ,   ,   ,   ,   ,PERSONNEL COMPENSATION TOTALS:,464422.25,2018
,2018 OFFICE OF THE MAJORITY LEADER,,GENERAL EXPENDITURES,TRAVEL,DETAIL,2018-01-23,AP,E0588633,DUNHAM WILL,2018-01-03,2018-01-03,TAXI/PARKING/TOLLS,25.34,2018
,2018 OFFICE OF THE MAJORITY LEADER,,GENERAL EXPENDITURES,TRAVEL,DETAIL,2018-03-07,AP,E0604959,PERRINE ERIN M.,2018-02-08,2018-02-09,COMMERCIAL TRANSPORTATION,65.19,2018
,2018 OFFICE OF THE MAJORITY LEADER,,GENERAL EXPENDITURES,TRAVEL,DETAIL,2018-03-07,AP,E0604959,PERRINE ERIN M.,2018-02-11,2018-02-11,COMMERCIAL TRANSPORTATION,47,2018
,2018 OFFICE OF THE MAJORITY LEADER,,GENERAL EXPENDITURES,TRAVEL,DETAIL,2018-03-07,AP,E0604959,PERRINE ERIN M.,2018-02-08,2018-02-10,LODGING,699.88,2018
,2018 OFFICE OF THE MAJORITY LEADER,,GENERAL EXPENDITURES,TRAVEL,DETAIL,2018-03-12,AP,E0605831,MURRY LUKE A,2018-03-05,2018-03-05,TAXI/PARKING/TOLLS,28.58,2018
,2018 OFFICE OF THE MAJORITY LEADER,,GENERAL EXPENDITURES,TRAVEL,DETAIL,2018-03-16,AP,E0608020,PERRINE ERIN M.,2018-03-10,2018-03-12,COMMERCIAL TRANSPORTATION,290,2018
,2018 OFFICE OF THE MAJORITY LEADER,,GENERAL EXPENDITURES,TRAVEL,DETAIL,2018-03-16,AP,E0608020,PERRINE ERIN M.,2018-03-10,2018-03-12,LODGING,395.18,2018
,2018 OFFICE OF THE MAJORITY LEADER,,GENERAL EXPENDITURES,TRAVEL,DETAIL,2018-03-16,AP,E0608020,PERRINE ERIN M.,2018-03-11,2018-03-12,MEALS,24.48,2018
,2018 OFFICE OF THE MAJORITY LEADER,,GENERAL EXPENDITURES,TRAVEL,DETAIL,2018-03-16,AP,E0608020,PERRINE ERIN M.,2018-03-11,2018-03-11,TAXI/PARKING/TOLLS,10,2018
,2018 OFFICE OF THE MAJORITY LEADER,,GENERAL EXPENDITURES,TRAVEL,DETAIL,2018-03-21,AP,E0609083,MURRY LUKE A,2018-03-13,2018-03-15,TAXI/PARKING/TOLLS,56.47,2018
,2018 OFFICE OF THE MAJORITY LEADER,,GENERAL EXPENDITURES,TRAVEL,SUBTOTAL,   ,   ,   ,   ,   ,   ,TRAVEL TOTALS:,1642.12,2018
,2018 OFFICE OF THE MAJORITY LEADER,,GENERAL EXPENDITURES,RENT  COMMUNICATION  UTILITIES,DETAIL,2018-02-19,AP,974834,CITI PCARD-USPS PO,2017-12-29,2018-01-26,POSTAGE / COURIER / BOX RENTAL,98,2018
,2018 OFFICE OF THE MAJORITY LEADER,,GENERAL EXPENDITURES,RENT  COMMUNICATION  UTILITIES,SUBTOTAL,   ,   ,   ,   ,   ,   ,RENT  COMMUNICATION  UTILITIES TOTALS:,98,2018
,2018 OFFICE OF THE MAJORITY LEADER,,GENERAL EXPENDITURES,PRINTING AND REPRODUCTION,DETAIL,2018-01-26,GL,PIX0075057, ,2018-01-01,2018-01-31,PHOTOGRAPHIC (TRANSFER),12.8,2018
,2018 OFFICE OF THE MAJORITY LEADER,,GENERAL EXPENDITURES,PRINTING AND REPRODUCTION,DETAIL,2018-02-22,GL,PIX0075827, ,2018-02-01,2018-02-28,PHOTOGRAPHIC (TRANSFER),12.8,2018
,2018 OFFICE OF THE MAJORITY LEADER,,GENERAL EXPENDITURES,PRINTING AND REPRODUCTION,DETAIL,2018-03-26,GL,PIX0076761, ,2018-03-01,2018-03-31,PHOTOGRAPHIC (TRANSFER),19.3,2018
,2018 OFFICE OF THE MAJORITY LEADER,,GENERAL EXPENDITURES,PRINTING AND REPRODUCTION,SUBTOTAL,   ,   ,   ,   ,   ,   ,PRINTING AND REPRODUCTION TOTALS:,44.9,2018
,2018 OFFICE OF THE MAJORITY LEADER,,GENERAL EXPENDITURES,OTHER SERVICES,DETAIL,2018-03-05,AP,975577,FIRESIDE21,2018-01-01,2018-01-31,WEB DEV HST EMAIL & RLTD SERV,585,2018
,2018 OFFICE OF THE MAJORITY LEADER,,GENERAL EXPENDITURES,OTHER SERVICES,DETAIL,2018-03-30,AP,981270,FIRESIDE21,2018-02-01,2018-02-28,WEB DEV HST EMAIL & RLTD SERV,585,2018
,2018 OFFICE OF THE MAJORITY LEADER,,GENERAL EXPENDITURES,OTHER SERVICES,SUBTOTAL,   ,   ,   ,   ,   ,   ,OTHER SERVICES TOTALS:,1170,2018
,2018 OFFICE OF THE MAJORITY LEADER,,GENERAL EXPENDITURES,SUPPLIES AND MATERIALS,DETAIL,2018-01-21,AP,E0588752,BGOV LLC,2018-01-01,2018-12-31,PUBLICATIONS/REFERENCE MAT'L,5940,2018
,2018 OFFICE OF THE MAJORITY LEADER,,GENERAL EXPENDITURES,SUPPLIES AND MATERIALS,DETAIL,2018-01-24,AP,969288,BGOV LLC,2018-01-01,2018-12-31,PUBLICATIONS/REFERENCE MAT'L,-5940,2018
,2018 OFFICE OF THE MAJORITY LEADER,,GENERAL EXPENDITURES,SUPPLIES AND MATERIALS,DETAIL,2018-01-31,AP,E0594809,MIN JAMES B.,2018-01-24,2018-01-24,FOOD & BEVERAGE,567,2018
,2018 OFFICE OF THE MAJORITY LEADER,,GENERAL EXPENDITURES,SUPPLIES AND MATERIALS,DETAIL,2018-02-19,AP,974834,CITI PCARD-AMAZON MKTPLACE PMTS,2017-12-29,2018-01-26,OFFICE SUPPLIES (OUTSIDE),38.72,2018
,2018 OFFICE OF THE MAJORITY LEADER,,GENERAL EXPENDITURES,SUPPLIES AND MATERIALS,DETAIL,2018-02-19,AP,974834,CITI PCARD-AMAZON MKTPLACE PMTS W,2017-12-29,2018-01-26,OFFICE SUPPLIES (OUTSIDE),16.17,2018
,2018 OFFICE OF THE MAJORITY LEADER,,GENERAL EXPENDITURES,SUPPLIES AND MATERIALS,DETAIL,2018-02-19,AP,974834,CITI PCARD-AMAZON.COM,2017-12-29,2018-01-26,OFFICE SUPPLIES (OUTSIDE),80.9,2018
,2018 OFFICE OF THE MAJORITY LEADER,,GENERAL EXPENDITURES,SUPPLIES AND MATERIALS,DETAIL,2018-02-19,AP,974834,CITI PCARD-CHICK-FIL-A,2017-12-29,2018-01-26,FOOD & BEVERAGE,883.14,2018
,2018 OFFICE OF THE MAJORITY LEADER,,GENERAL EXPENDITURES,SUPPLIES AND MATERIALS,DETAIL,2018-02-19,AP,974834,CITI PCARD-FIRST CHOICE COFFEE SE,2017-12-29,2018-01-26,OFFICE SUPPLIES (OUTSIDE),434.09,2018
,2018 OFFICE OF THE MAJORITY LEADER,,GENERAL EXPENDITURES,SUPPLIES AND MATERIALS,DETAIL,2018-02-19,AP,974834,CITI PCARD-FTP FINANCIAL TIMES,2017-12-29,2018-01-26,OFFICE SUPPLIES (OUTSIDE),59.5,2018
,2018 OFFICE OF THE MAJORITY LEADER,,GENERAL EXPENDITURES,SUPPLIES AND MATERIALS,DETAIL,2018-02-28,AP,975516,DEER PARK,2018-01-31,2018-01-31,WATER,136.83,2018
,2018 OFFICE OF THE MAJORITY LEADER,,GENERAL EXPENDITURES,SUPPLIES AND MATERIALS,DETAIL,2018-03-08,AP,E0603678,MIN JAMES B.,2018-02-26,2018-02-26,FOOD & BEVERAGE,19.07,2018
,2018 OFFICE OF THE MAJORITY LEADER,,GENERAL EXPENDITURES,SUPPLIES AND MATERIALS,DETAIL,2018-03-08,AP,E0603678,MIN JAMES B.,2018-02-26,2018-02-26,OFFICE SUPPLIES (OUTSIDE),127.19,2018
,2018 OFFICE OF THE MAJORITY LEADER,,GENERAL EXPENDITURES,SUPPLIES AND MATERIALS,DETAIL,2018-03-15,AP,978920,CITI PCARD-AMAZON MKTPLACE PMTS,2018-01-27,2018-02-28,OFFICE SUPPLIES (OUTSIDE),55.88,2018
,2018 OFFICE OF THE MAJORITY LEADER,,GENERAL EXPENDITURES,SUPPLIES AND MATERIALS,DETAIL,2018-03-15,AP,978920,CITI PCARD-AMAZON.COM,2018-01-27,2018-02-28,OFFICE SUPPLIES (OUTSIDE),52.46,2018
,2018 OFFICE OF THE MAJORITY LEADER,,GENERAL EXPENDITURES,SUPPLIES AND MATERIALS,DETAIL,2018-03-15,AP,978920,CITI PCARD-AMAZON.COM AMZN.COM/BI,2018-01-27,2018-02-28,OFFICE SUPPLIES (OUTSIDE),32.51,2018
,2018 OFFICE OF THE MAJORITY LEADER,,GENERAL EXPENDITURES,SUPPLIES AND MATERIALS,DETAIL,2018-03-15,AP,978920,CITI PCARD-AMAZONPRIME MEMBERSHIP,2018-01-27,2018-02-28,PUBLICATIONS/REFERENCE MAT'L,12.99,2018
,2018 OFFICE OF THE MAJORITY LEADER,,GENERAL EXPENDITURES,SUPPLIES AND MATERIALS,DETAIL,2018-03-15,AP,978920,CITI PCARD-CHICK-FIL-A,2018-01-27,2018-02-28,FOOD & BEVERAGE,471.02,2018
,2018 OFFICE OF THE MAJORITY LEADER,,GENERAL EXPENDITURES,SUPPLIES AND MATERIALS,DETAIL,2018-03-15,AP,978920,CITI PCARD-CORNER BAKERY,2018-01-27,2018-02-28,FOOD & BEVERAGE,617.1,2018
,2018 OFFICE OF THE MAJORITY LEADER,,GENERAL EXPENDITURES,SUPPLIES AND MATERIALS,DETAIL,2018-03-15,AP,978920,CITI PCARD-D J WALL-ST-JOURNAL,2018-01-27,2018-02-28,PUBLICATIONS/REFERENCE MAT'L,34.89,2018
,2018 OFFICE OF THE MAJORITY LEADER,,GENERAL EXPENDITURES,SUPPLIES AND MATERIALS,DETAIL,2018-03-15,AP,978920,CITI PCARD-FIREHOOK CAPITOL HILL,2018-01-27,2018-02-28,FOOD & BEVERAGE,71.82,2018
,2018 OFFICE OF THE MAJORITY LEADER,,GENERAL EXPENDITURES,SUPPLIES AND MATERIALS,DETAIL,2018-03-15,AP,978920,CITI PCARD-FIRST CHOICE COFFEE SE,2018-01-27,2018-02-28,OFFICE SUPPLIES (OUTSIDE),915.39,2018
,2018 OFFICE OF THE MAJORITY LEADER,,GENERAL EXPENDITURES,SUPPLIES AND MATERIALS,DETAIL,2018-03-15,AP,978920,CITI PCARD-FTP FINANCIAL TIMES,2018-01-27,2018-02-28,OFFICE SUPPLIES (OUTSIDE),59.5,2018
,2018 OFFICE OF THE MAJORITY LEADER,,GENERAL EXPENDITURES,SUPPLIES AND MATERIALS,DETAIL,2018-03-15,AP,978920,CITI PCARD-LA TIMES SUBSCRIPTION,2018-01-27,2018-02-28,PUBLICATIONS/REFERENCE MAT'L,15.96,2018
,2018 OFFICE OF THE MAJORITY LEADER,,GENERAL EXPENDITURES,SUPPLIES AND MATERIALS,DETAIL,2018-03-15,AP,978920,CITI PCARD-NEW YORK TIMES DIGITAL,2018-01-27,2018-02-28,PUBLICATIONS/REFERENCE MAT'L,37.01,2018
,2018 OFFICE OF THE MAJORITY LEADER,,GENERAL EXPENDITURES,SUPPLIES AND MATERIALS,DETAIL,2018-03-15,AP,978920,CITI PCARD-ROTI MEDITERRANEAN GRI,2018-01-27,2018-02-28,FOOD & BEVERAGE,419.76,2018
,2018 OFFICE OF THE MAJORITY LEADER,,GENERAL EXPENDITURES,SUPPLIES AND MATERIALS,DETAIL,2018-03-15,AP,978920,CITI PCARD-TAYLOR GOURMET 1116H L,2018-01-27,2018-02-28,FOOD & BEVERAGE,937.35,2018
,2018 OFFICE OF THE MAJORITY LEADER,,GENERAL EXPENDITURES,SUPPLIES AND MATERIALS,DETAIL,2018-03-15,AP,978920,CITI PCARD-THE INFORMATION,2018-01-27,2018-02-28,PUBLICATIONS/REFERENCE MAT'L,39,2018
,2018 OFFICE OF THE MAJORITY LEADER,,GENERAL EXPENDITURES,SUPPLIES AND MATERIALS,DETAIL,2018-03-15,AP,978920,CITI PCARD-WE THE PIZZA,2018-01-27,2018-02-28,FOOD & BEVERAGE,176.29,2018
,2018 OFFICE OF THE MAJORITY LEADER,,GENERAL EXPENDITURES,SUPPLIES AND MATERIALS,DETAIL,2018-03-15,AP,E0608019,MIN JAMES B.,2018-03-13,2018-03-13,FOOD & BEVERAGE,14.33,2018
,2018 OFFICE OF THE MAJORITY LEADER,,GENERAL EXPENDITURES,SUPPLIES AND MATERIALS,DETAIL,2018-03-16,AP,E0608018,READYREFRESH BY NESTLE,2018-01-27,2018-02-26,WATER,188.75,2018
,2018 OFFICE OF THE MAJORITY LEADER,,GENERAL EXPENDITURES,SUPPLIES AND MATERIALS,DETAIL,2018-03-26,AP,E0609082,MIN JAMES B.,2018-03-16,2018-03-16,FOOD & BEVERAGE,366.48,2018
,2018 OFFICE OF THE MAJORITY LEADER,,GENERAL EXPENDITURES,SUPPLIES AND MATERIALS,DETAIL,2018-03-26,AP,E0610119,MIN JAMES B.,2018-03-18,2018-03-18,FOOD & BEVERAGE,12.28,2018
,2018 OFFICE OF THE MAJORITY LEADER,,GENERAL EXPENDITURES,SUPPLIES AND MATERIALS,DETAIL,2018-03-28,AP,981046,DEER PARK,2018-02-28,2018-02-28,WATER,200.82,2018
,2018 OFFICE OF THE MAJORITY LEADER,,GENERAL EXPENDITURES,SUPPLIES AND MATERIALS,SUBTOTAL,   ,   ,   ,   ,   ,   ,SUPPLIES AND MATERIALS TOTALS:,7094.2,2018
,2018 OFFICE OF THE MAJORITY LEADER,,GENERAL EXPENDITURES,SUPPLIES AND MATERIALS,SUBTOTAL,   ,   ,   ,   ,   ,   ,GENERAL EXPENDITURES TOTALS:,474471.47,2018
,2018 OFFICE OF THE MAJORITY LEADER,,GENERAL EXPENDITURES,SUPPLIES AND MATERIALS,GRAND TOTAL FOR ORGANIZATION,   ,   ,   ,   ,   ,   ,OFFICE TOTALS: ,474471.47,2018
,2017 OFFICE OF THE MAJORITY LEADER,,GENERAL EXPENDITURES,PERSONNEL COMPENSATION,DETAIL,   ,   ,   ,BEATTY JULIA-GRACE D,2018-01-01,2018-01-02,STAFF ASSISTANT,166.67,2017
,2017 OFFICE OF THE MAJORITY LEADER,,GENERAL EXPENDITURES,PERSONNEL COMPENSATION,DETAIL,   ,   ,   ,BIEN CHRISTOPHER A,2018-01-01,2018-01-02,FLOOR ASSISTANT,300,2017
,2017 OFFICE OF THE MAJORITY LEADER,,GENERAL EXPENDITURES,PERSONNEL COMPENSATION,DETAIL,   ,   ,   ,BUCHANAN NATALIE L,2018-01-01,2018-01-02,DIR OF MEMBER SERVICES,733.33,2017
,2017 OFFICE OF THE MAJORITY LEADER,,GENERAL EXPENDITURES,PERSONNEL COMPENSATION,DETAIL,   ,   ,   ,CHAMBERS KELLY A.,2018-01-01,2018-01-02,DIR OF LEGISLATIVE OPERATIONS,211.11,2017
,2017 OFFICE OF THE MAJORITY LEADER,,GENERAL EXPENDITURES,PERSONNEL COMPENSATION,DETAIL,   ,   ,   ,CONSOLVO BRANDON S,2018-01-01,2018-01-02,SENIOR POLICY ADVISOR,633.33,2017
,2017 OFFICE OF THE MAJORITY LEADER,,GENERAL EXPENDITURES,PERSONNEL COMPENSATION,DETAIL,   ,   ,   ,DUNHAM WILL,2018-01-01,2018-01-02,POLICY DIRECTOR,933.33,2017
,2017 OFFICE OF THE MAJORITY LEADER,,GENERAL EXPENDITURES,PERSONNEL COMPENSATION,DETAIL,   ,   ,   ,FLORIO JOHN A,2018-01-01,2018-01-02,DEPUTY PRESS SECRETARY,400,2017
,2017 OFFICE OF THE MAJORITY LEADER,,GENERAL EXPENDITURES,PERSONNEL COMPENSATION,DETAIL,   ,   ,   ,GOURDIKIAN ALEXANDRA G,2018-01-01,2018-01-02,SCHEDULER,333.33,2017
,2017 OFFICE OF THE MAJORITY LEADER,,GENERAL EXPENDITURES,PERSONNEL COMPENSATION,DETAIL,   ,   ,   ,HILL PRESTON W,2018-01-01,2018-01-02,SPECIAL ASSISTANT,233.33,2017
,2017 OFFICE OF THE MAJORITY LEADER,,GENERAL EXPENDITURES,PERSONNEL COMPENSATION,DETAIL,   ,   ,   ,KARR ELIZABETH B,2018-01-01,2018-01-02,CHIEF OF STAFF,958.33,2017
,2017 OFFICE OF THE MAJORITY LEADER,,GENERAL EXPENDITURES,PERSONNEL COMPENSATION,DETAIL,   ,   ,   ,LEGANSKI JOHN G,2018-01-01,2018-01-02,DIRECTOR OF FLOOR OPERATIONS,500,2017
,2017 OFFICE OF THE MAJORITY LEADER,,GENERAL EXPENDITURES,PERSONNEL COMPENSATION,DETAIL,   ,   ,   ,MAHAN ROGER A,2018-01-01,2018-01-02,SENIOR POLICY ADVISOR,216.67,2017
,2017 OFFICE OF THE MAJORITY LEADER,,GENERAL EXPENDITURES,PERSONNEL COMPENSATION,DETAIL,   ,   ,   ,MEYER KATHERINE R,2018-01-01,2018-01-02,SENIOR POLICY ADVISOR,733.33,2017
,2017 OFFICE OF THE MAJORITY LEADER,,GENERAL EXPENDITURES,PERSONNEL COMPENSATION,DETAIL,   ,   ,   ,MIN JAMES B.,2018-01-01,2018-01-02,DEPUTY CHIEF OF STAFF/COUNSEL,750,2017
,2017 OFFICE OF THE MAJORITY LEADER,,GENERAL EXPENDITURES,PERSONNEL COMPENSATION,DETAIL,   ,   ,   ,MURRY LUKE A,2018-01-01,2018-01-02,NATIONAL SECURITY ADVISOR,733.33,2017
,2017 OFFICE OF THE MAJORITY LEADER,,GENERAL EXPENDITURES,PERSONNEL COMPENSATION,DETAIL,   ,   ,   ,PERRINE ERIN M,2018-01-01,2018-01-02,PRESS SECRETARY,466.67,2017
,2017 OFFICE OF THE MAJORITY LEADER,,GENERAL EXPENDITURES,PERSONNEL COMPENSATION,DETAIL,   ,   ,   ,PICOZZI JOSEPH S,2018-01-01,2018-01-02,STAFF ASSISTANT,166.67,2017
,2017 OFFICE OF THE MAJORITY LEADER,,GENERAL EXPENDITURES,PERSONNEL COMPENSATION,DETAIL,   ,   ,   ,SPARKS MATTHEW E,2018-01-01,2018-01-02,DIRECTOR OF COMMUNICATIONS,666.67,2017
,2017 OFFICE OF THE MAJORITY LEADER,,GENERAL EXPENDITURES,PERSONNEL COMPENSATION,DETAIL,   ,   ,   ,SPECHT BRITTAN G,2018-01-01,2018-01-02,SENIOR POLICY ADVISOR,633.33,2017
,2017 OFFICE OF THE MAJORITY LEADER,,GENERAL EXPENDITURES,PERSONNEL COMPENSATION,DETAIL,   ,   ,   ,STIPICEVIC KRISTIN,2018-01-01,2018-01-02,EXECUTIVE ASSISTANT,283.33,2017
,2017 OFFICE OF THE MAJORITY LEADER,,GENERAL EXPENDITURES,PERSONNEL COMPENSATION,DETAIL,   ,   ,   ,TORRES ALEC C,2018-01-01,2018-01-02,DEPUTY PRESS SECRETARY/WRITER,400,2017
,2017 OFFICE OF THE MAJORITY LEADER,,GENERAL EXPENDITURES,PERSONNEL COMPENSATION,SUBTOTAL,   ,   ,   ,   ,   ,   ,PERSONNEL COMPENSATION TOTALS:,10452.76,2017
,2017 OFFICE OF THE MAJORITY LEADER,,GENERAL EXPENDITURES,TRAVEL,DETAIL,2018-01-15,AP,E0588629,TORRES ALEC C.,2017-11-08,2017-11-08,TAXI/PARKING/TOLLS,7.41,2017
,2017 OFFICE OF THE MAJORITY LEADER,,GENERAL EXPENDITURES,TRAVEL,DETAIL,2018-01-15,AP,E0588629,TORRES ALEC C.,2017-11-15,2017-11-15,TAXI/PARKING/TOLLS,8.47,2017
,2017 OFFICE OF THE MAJORITY LEADER,,GENERAL EXPENDITURES,TRAVEL,DETAIL,2018-01-15,AP,E0588629,TORRES ALEC C.,2017-11-29,2017-11-29,TAXI/PARKING/TOLLS,8.19,2017
,2017 OFFICE OF THE MAJORITY LEADER,,GENERAL EXPENDITURES,TRAVEL,SUBTOTAL,   ,   ,   ,   ,   ,   ,TRAVEL TOTALS:,24.07,2017
,2017 OFFICE OF THE MAJORITY LEADER,,GENERAL EXPENDITURES,RENT  COMMUNICATION  UTILITIES,DETAIL,2018-01-18,AP,969018,CITI PCARD-USPS PO,2017-11-29,2017-12-28,POSTAGE / COURIER / BOX RENTAL,49,2017
,2017 OFFICE OF THE MAJORITY LEADER,,GENERAL EXPENDITURES,RENT  COMMUNICATION  UTILITIES,SUBTOTAL,   ,   ,   ,   ,   ,   ,RENT  COMMUNICATION  UTILITIES TOTALS:,49,2017
,2017 OFFICE OF THE MAJORITY LEADER,,GENERAL EXPENDITURES,OTHER SERVICES,DETAIL,2018-01-12,AP,964714,FIRESIDE21,2017-12-01,2017-12-31,WEB DEV HST EMAIL & RLTD SERV,585,2017
,2017 OFFICE OF THE MAJORITY LEADER,,GENERAL EXPENDITURES,OTHER SERVICES,DETAIL,2018-01-18,AP,969018,CITI PCARD-SPROUT SOCIAL,2017-11-29,2017-12-28,CONSULTANT CONTRACT SERVICE,149,2017
,2017 OFFICE OF THE MAJORITY LEADER,,GENERAL EXPENDITURES,OTHER SERVICES,SUBTOTAL,   ,   ,   ,   ,   ,   ,OTHER SERVICES TOTALS:,734,2017
,2017 OFFICE OF THE MAJORITY LEADER,,GENERAL EXPENDITURES,SUPPLIES AND MATERIALS,DETAIL,2018-01-10,AP,964619,DEER PARK,2017-12-31,2017-12-31,WATER,202.71,2017
,2017 OFFICE OF THE MAJORITY LEADER,,GENERAL EXPENDITURES,SUPPLIES AND MATERIALS,DETAIL,2018-01-18,AP,969018,CITI PCARD-AMAZON MKTPLACE PMTS,2017-11-29,2017-12-28,OFFICE SUPPLIES (OUTSIDE),12.99,2017
,2017 OFFICE OF THE MAJORITY LEADER,,GENERAL EXPENDITURES,SUPPLIES AND MATERIALS,DETAIL,2018-01-18,AP,969018,CITI PCARD-AMAZON MKTPLACE PMTS W,2017-11-29,2017-12-28,OFFICE SUPPLIES (OUTSIDE),57.75,2017
,2017 OFFICE OF THE MAJORITY LEADER,,GENERAL EXPENDITURES,SUPPLIES AND MATERIALS,DETAIL,2018-01-18,AP,969018,CITI PCARD-AMAZON.COM,2017-11-29,2017-12-28,OFFICE SUPPLIES (OUTSIDE),41.74,2017
,2017 OFFICE OF THE MAJORITY LEADER,,GENERAL EXPENDITURES,SUPPLIES AND MATERIALS,DETAIL,2018-01-18,AP,969018,CITI PCARD-AMAZON.COM AMZN.COM/BI,2017-11-29,2017-12-28,OFFICE SUPPLIES (OUTSIDE),60.29,2017
,2017 OFFICE OF THE MAJORITY LEADER,,GENERAL EXPENDITURES,SUPPLIES AND MATERIALS,DETAIL,2018-01-18,AP,969018,CITI PCARD-CHICK-FIL-A,2017-11-29,2017-12-28,FOOD & BEVERAGE,630.97,2017
,2017 OFFICE OF THE MAJORITY LEADER,,GENERAL EXPENDITURES,SUPPLIES AND MATERIALS,DETAIL,2018-01-18,AP,969018,CITI PCARD-CORNER BAKERY,2017-11-29,2017-12-28,FOOD & BEVERAGE,429,2017
,2017 OFFICE OF THE MAJORITY LEADER,,GENERAL EXPENDITURES,SUPPLIES AND MATERIALS,DETAIL,2018-01-18,AP,969018,CITI PCARD-D J WALL-ST-JOURNAL,2017-11-29,2017-12-28,PUBLICATIONS/REFERENCE MAT'L,34.89,2017
,2017 OFFICE OF THE MAJORITY LEADER,,GENERAL EXPENDITURES,SUPPLIES AND MATERIALS,DETAIL,2018-01-18,AP,969018,CITI PCARD-FIRST CHOICE COFFEE SE,2017-11-29,2017-12-28,OFFICE SUPPLIES (OUTSIDE),469.21,2017
,2017 OFFICE OF THE MAJORITY LEADER,,GENERAL EXPENDITURES,SUPPLIES AND MATERIALS,DETAIL,2018-01-18,AP,969018,CITI PCARD-FTP FINANCIAL TIMES,2017-11-29,2017-12-28,OFFICE SUPPLIES (OUTSIDE),59.5,2017
,2017 OFFICE OF THE MAJORITY LEADER,,GENERAL EXPENDITURES,SUPPLIES AND MATERIALS,DETAIL,2018-01-18,AP,969018,CITI PCARD-LA TIMES SUBSCRIPTION,2017-11-29,2017-12-28,PUBLICATIONS/REFERENCE MAT'L,15.96,2017
,2017 OFFICE OF THE MAJORITY LEADER,,GENERAL EXPENDITURES,SUPPLIES AND MATERIALS,DETAIL,2018-01-18,AP,969018,CITI PCARD-NEW YORK TIMES DIGITAL,2017-11-29,2017-12-28,PUBLICATIONS/REFERENCE MAT'L,37.01,2017
,2017 OFFICE OF THE MAJORITY LEADER,,GENERAL EXPENDITURES,SUPPLIES AND MATERIALS,DETAIL,2018-01-18,AP,969018,CITI PCARD-ROTI MODERN MED,2017-11-29,2017-12-28,FOOD & BEVERAGE,419.76,2017
,2017 OFFICE OF THE MAJORITY LEADER,,GENERAL EXPENDITURES,SUPPLIES AND MATERIALS,DETAIL,2018-01-18,AP,969018,CITI PCARD-SQU SQ  THE PRETZEL BA,2017-11-29,2017-12-28,FOOD & BEVERAGE,102.3,2017
,2017 OFFICE OF THE MAJORITY LEADER,,GENERAL EXPENDITURES,SUPPLIES AND MATERIALS,DETAIL,2018-01-18,AP,969018,CITI PCARD-THE INFORMATION,2017-11-29,2017-12-28,PUBLICATIONS/REFERENCE MAT'L,39,2017
,2017 OFFICE OF THE MAJORITY LEADER,,GENERAL EXPENDITURES,SUPPLIES AND MATERIALS,DETAIL,2018-01-23,AP,E0588754,POLITICO LLC,2018-01-01,2018-12-31,PUBLICATIONS/REFERENCE MAT'L,11539.96,2017
,2017 OFFICE OF THE MAJORITY LEADER,,GENERAL EXPENDITURES,SUPPLIES AND MATERIALS,DETAIL,2018-01-24,AP,969288,BGOV LLC,2018-01-01,2018-12-31,PUBLICATIONS/REFERENCE MAT'L,5940,2017
,2017 OFFICE OF THE MAJORITY LEADER,,GENERAL EXPENDITURES,SUPPLIES AND MATERIALS,DETAIL,2018-02-19,AP,974834,CITI PCARD-AMAZONPRIME MEMBERSHIP,2017-12-29,2018-01-26,PUBLICATIONS/REFERENCE MAT'L,12.99,2017
,2017 OFFICE OF THE MAJORITY LEADER,,GENERAL EXPENDITURES,SUPPLIES AND MATERIALS,DETAIL,2018-02-19,AP,974834,CITI PCARD-D J WALL-ST-JOURNAL,2017-12-29,2018-01-26,PUBLICATIONS/REFERENCE MAT'L,34.89,2017
,2017 OFFICE OF THE MAJORITY LEADER,,GENERAL EXPENDITURES,SUPPLIES AND MATERIALS,DETAIL,2018-02-19,AP,974834,CITI PCARD-LA TIMES SUBSCRIPTION,2017-12-29,2018-01-26,PUBLICATIONS/REFERENCE MAT'L,15.96,2017
,2017 OFFICE OF THE MAJORITY LEADER,,GENERAL EXPENDITURES,SUPPLIES AND MATERIALS,DETAIL,2018-02-19,AP,974834,CITI PCARD-NEW YORK TIMES DIGITAL,2017-12-29,2018-01-26,PUBLICATIONS/REFERENCE MAT'L,37.01,2017
,2017 OFFICE OF THE MAJORITY LEADER,,GENERAL EXPENDITURES,SUPPLIES AND MATERIALS,DETAIL,2018-02-19,AP,974834,CITI PCARD-THE INFORMATION,2017-12-29,2018-01-26,PUBLICATIONS/REFERENCE MAT'L,39,2017
,2017 OFFICE OF THE MAJORITY LEADER,,GENERAL EXPENDITURES,SUPPLIES AND MATERIALS,SUBTOTAL,   ,   ,   ,   ,   ,   ,SUPPLIES AND MATERIALS TOTALS:,20232.89,2017
,2017 OFFICE OF THE MAJORITY LEADER,,GENERAL EXPENDITURES,SUPPLIES AND MATERIALS,SUBTOTAL,   ,   ,   ,   ,   ,   ,GENERAL EXPENDITURES TOTALS:,31492.72,2017
,2017 OFFICE OF THE MAJORITY LEADER,,GENERAL EXPENDITURES,SUPPLIES AND MATERIALS,GRAND TOTAL FOR ORGANIZATION,   ,   ,   ,   ,   ,   ,OFFICE TOTALS: ,31492.72,2017
,2018 OFFICE OF THE MINORITY LEADER,,GENERAL EXPENDITURES,PERSONNEL COMPENSATION,DETAIL,   ,   ,   ,AMADOR ADELA,2018-01-03,2018-03-31,POLICY ADV / MBR SVC ADV,17111.1,2018
,2018 OFFICE OF THE MINORITY LEADER,,GENERAL EXPENDITURES,PERSONNEL COMPENSATION,DETAIL,   ,   ,   ,ANDROFF BLAKE J,2018-01-03,2018-03-31,EXC DIR DEM POL & COMM CMTE,40333.33,2018
,2018 OFFICE OF THE MINORITY LEADER,,GENERAL EXPENDITURES,PERSONNEL COMPENSATION,DETAIL,   ,   ,   ,BERRET EMILY C,2018-01-03,2018-03-31,DIR OF OPERATIONS & ADVISOR,24444.44,2018
,2018 OFFICE OF THE MINORITY LEADER,,GENERAL EXPENDITURES,PERSONNEL COMPENSATION,DETAIL,   ,   ,   ,BROWN GABRIELLE I,2018-01-03,2018-03-31,PRESS SECRETARY,17111.1,2018
,2018 OFFICE OF THE MINORITY LEADER,,GENERAL EXPENDITURES,PERSONNEL COMPENSATION,DETAIL,   ,   ,   ,CAPRON MARGARET W.,2018-01-03,2018-03-31,SENIOR ADV POLICY & COMM,33270.37,2018
,2018 OFFICE OF THE MINORITY LEADER,,GENERAL EXPENDITURES,PERSONNEL COMPENSATION,DETAIL,   ,   ,   ,CHERRY STEPHANIE,2018-01-03,2018-03-31,DIRECTOR OF MEDIA AFFAIRS,19555.57,2018
,2018 OFFICE OF THE MINORITY LEADER,,GENERAL EXPENDITURES,PERSONNEL COMPENSATION,DETAIL,   ,   ,   ,CONNELLY HENRY V,2018-01-03,2018-03-31,DEPUTY COMMUNICATIONS DIRECTOR,31777.77,2018
,2018 OFFICE OF THE MINORITY LEADER,,GENERAL EXPENDITURES,PERSONNEL COMPENSATION,DETAIL,   ,   ,   ,DEGRAFF KENNETH B.,2018-01-03,2018-03-31,SENIOR POLICY ADVISOR,29777.78,2018
,2018 OFFICE OF THE MINORITY LEADER,,GENERAL EXPENDITURES,PERSONNEL COMPENSATION,DETAIL,   ,   ,   ,DEVLIN PATRICK J.,2018-01-03,2018-03-31,COMMUNICATIONS DIRECTOR,31388.89,2018
,2018 OFFICE OF THE MINORITY LEADER,,GENERAL EXPENDITURES,PERSONNEL COMPENSATION,DETAIL,   ,   ,   ,DEWHIRST DIANE,2018-01-03,2018-03-31,DEPUTY CHIEF OF STAFF,42166.67,2018
,2018 OFFICE OF THE MINORITY LEADER,,GENERAL EXPENDITURES,PERSONNEL COMPENSATION,DETAIL,   ,   ,   ,EDMONSON ROBERT D,2018-01-03,2018-03-31,CHIEF OF STAFF,17111.1,2018
,2018 OFFICE OF THE MINORITY LEADER,,GENERAL EXPENDITURES,PERSONNEL COMPENSATION,DETAIL,   ,   ,   ,ETIENNE ASHLEY D,2018-01-03,2018-03-31,COMM DIR/SENIOR ADVISOR,40333.33,2018
,2018 OFFICE OF THE MINORITY LEADER,,GENERAL EXPENDITURES,PERSONNEL COMPENSATION,DETAIL,   ,   ,   ,FISCHER JR ROBERT V.,2018-01-03,2018-03-31,ASST FLOOR CHIEF,42166.67,2018
,2018 OFFICE OF THE MINORITY LEADER,,GENERAL EXPENDITURES,PERSONNEL COMPENSATION,DETAIL,   ,   ,   ,GARRETT EMERALD P,2018-02-14,2018-03-31,STAFF ASSISTANT,4177.78,2018
,2018 OFFICE OF THE MINORITY LEADER,,GENERAL EXPENDITURES,PERSONNEL COMPENSATION,DETAIL,   ,   ,   ,GIBSON DYLAN B,2018-01-03,2018-03-31,DIGITAL DIRECTOR,15888.9,2018
,2018 OFFICE OF THE MINORITY LEADER,,GENERAL EXPENDITURES,PERSONNEL COMPENSATION,DETAIL,   ,   ,   ,GREENER APRIL L.,2018-01-03,2018-03-31,RESEARCH DIRECTOR,25666.67,2018
,2018 OFFICE OF THE MINORITY LEADER,,GENERAL EXPENDITURES,PERSONNEL COMPENSATION,DETAIL,   ,   ,   ,GRIFFIN TAYLOR T,2018-01-03,2018-03-31,PRESS SECRETARY,18333.33,2018
,2018 OFFICE OF THE MINORITY LEADER,,GENERAL EXPENDITURES,PERSONNEL COMPENSATION,DETAIL,   ,   ,   ,HAMMILL ANDREW T.,2018-01-03,2018-03-31,DEPUTY CHIEF OF STAFF,42166.67,2018
,2018 OFFICE OF THE MINORITY LEADER,,GENERAL EXPENDITURES,PERSONNEL COMPENSATION,DETAIL,   ,   ,   ,HAYNES JR WILFRED J.,2018-01-03,2018-03-31,IT DIRECTOR,25652.05,2018
,2018 OFFICE OF THE MINORITY LEADER,,GENERAL EXPENDITURES,PERSONNEL COMPENSATION,DETAIL,   ,   ,   ,HIDALGO ADRIANA N,2018-01-03,2018-03-31,SHARED EMPLOYEE,4888.9,2018
,2018 OFFICE OF THE MINORITY LEADER,,GENERAL EXPENDITURES,PERSONNEL COMPENSATION,DETAIL,   ,   ,   ,HOLMES NATHANIEL J,2018-01-03,2018-03-31,DEP DIR SCHED/ADVANCE ASSOC,15400,2018
,2018 OFFICE OF THE MINORITY LEADER,,GENERAL EXPENDITURES,PERSONNEL COMPENSATION,DETAIL,   ,   ,   ,HURWITZ ROSS B,2018-01-03,2018-03-31,DEPUTY DIR. OF SPEECHWRITING,15888.9,2018
,2018 OFFICE OF THE MINORITY LEADER,,GENERAL EXPENDITURES,PERSONNEL COMPENSATION,DETAIL,   ,   ,   ,KEATING ROSE M,2018-01-03,2018-03-31,ASST FLOOR MANAGER,31388.89,2018
,2018 OFFICE OF THE MINORITY LEADER,,GENERAL EXPENDITURES,PERSONNEL COMPENSATION,DETAIL,   ,   ,   ,KEITA KAMILAH Z,2018-01-03,2018-03-31,DEPUTY INFOMATION TECH. DIRECT,23454.49,2018
,2018 OFFICE OF THE MINORITY LEADER,,GENERAL EXPENDITURES,PERSONNEL COMPENSATION,DETAIL,   ,   ,   ,KUHN ELENA M,2018-01-03,2018-02-28,SENIOR PRESS ASSISTANT,5638.9,2018
,2018 OFFICE OF THE MINORITY LEADER,,GENERAL EXPENDITURES,PERSONNEL COMPENSATION,DETAIL,   ,   ,   ,KUHN ELENA M,2018-03-01,2018-03-31,PRESS ADVISOR,3083.33,2018
,2018 OFFICE OF THE MINORITY LEADER,,GENERAL EXPENDITURES,PERSONNEL COMPENSATION,DETAIL,   ,   ,   ,KUHN ELENA M,2018-01-01,2018-02-28,SENIOR PRESS ASSISTANT (OVERTIME),4158.31,2018
,2018 OFFICE OF THE MINORITY LEADER,,GENERAL EXPENDITURES,PERSONNEL COMPENSATION,DETAIL,   ,   ,   ,KUNDANIS GEORGE,2018-01-03,2018-03-31,DEPUTY CHIEF OF STAFF,42166.67,2018
,2018 OFFICE OF THE MINORITY LEADER,,GENERAL EXPENDITURES,PERSONNEL COMPENSATION,DETAIL,   ,   ,   ,LA ALISA M,2018-01-03,2018-03-31,SPECIAL ASST TO THE LEADER,15888.9,2018
,2018 OFFICE OF THE MINORITY LEADER,,GENERAL EXPENDITURES,PERSONNEL COMPENSATION,DETAIL,   ,   ,   ,LEE SERYEUNG,2018-01-03,2018-03-31,DEPUTY PRESS SECRETARY,12344.43,2018
,2018 OFFICE OF THE MINORITY LEADER,,GENERAL EXPENDITURES,PERSONNEL COMPENSATION,DETAIL,   ,   ,   ,LINK CRAIG C,2018-02-01,2018-03-31,LEGISLATIVE COUNSEL,13333.34,2018
,2018 OFFICE OF THE MINORITY LEADER,,GENERAL EXPENDITURES,PERSONNEL COMPENSATION,DETAIL,   ,   ,   ,LIZARRAGA JAIME E.,2018-01-03,2018-03-31,SR ADV & DIR OF MEMBER SVC,40240.93,2018
,2018 OFFICE OF THE MINORITY LEADER,,GENERAL EXPENDITURES,PERSONNEL COMPENSATION,DETAIL,   ,   ,   ,LONG MICHAEL G,2018-01-03,2018-03-31,SENIOR ADVISOR,28111.1,2018
,2018 OFFICE OF THE MINORITY LEADER,,GENERAL EXPENDITURES,PERSONNEL COMPENSATION,DETAIL,   ,   ,   ,MANGRUM PEARL J.,2018-01-03,2018-03-31,FINANCIAL ADMINISTRATOR,22255.57,2018
,2018 OFFICE OF THE MINORITY LEADER,,GENERAL EXPENDITURES,PERSONNEL COMPENSATION,DETAIL,   ,   ,   ,MANSBACH SHANA G,2018-01-03,2018-03-31,DEPUTY DIR OF SPEECHWRITING,18333.33,2018
,2018 OFFICE OF THE MINORITY LEADER,,GENERAL EXPENDITURES,PERSONNEL COMPENSATION,DETAIL,   ,   ,   ,MASON TAMIKA K,2018-01-03,2018-01-30,SR STAFF ASST SYS ADMIN,4666.67,2018
,2018 OFFICE OF THE MINORITY LEADER,,GENERAL EXPENDITURES,PERSONNEL COMPENSATION,DETAIL,   ,   ,   ,MASON TAMIKA K,2018-02-01,2018-03-31,SPECIAL ASST TO THE ASST LDR,10833.34,2018
,2018 OFFICE OF THE MINORITY LEADER,,GENERAL EXPENDITURES,PERSONNEL COMPENSATION,DETAIL,   ,   ,   ,MELTZER RICHARD,2018-01-03,2018-03-31,POLICY DIRECTOR,42166.67,2018
,2018 OFFICE OF THE MINORITY LEADER,,GENERAL EXPENDITURES,PERSONNEL COMPENSATION,DETAIL,   ,   ,   ,MONGE KATHERINE S,2018-01-03,2018-03-31,SENIOR POLICY ADVISOR,36666.67,2018
,2018 OFFICE OF THE MINORITY LEADER,,GENERAL EXPENDITURES,PERSONNEL COMPENSATION,DETAIL,   ,   ,   ,OBSCURA JULIO C,2018-01-03,2018-03-31,CREATIVE DIR/DPTY PRESS SEC,12344.43,2018
,2018 OFFICE OF THE MINORITY LEADER,,GENERAL EXPENDITURES,PERSONNEL COMPENSATION,DETAIL,   ,   ,   ,PARKER WYNDEE R.,2018-01-03,2018-03-31,SENIOR POLICY ADVISOR,42166.67,2018
,2018 OFFICE OF THE MINORITY LEADER,,GENERAL EXPENDITURES,PERSONNEL COMPENSATION,DETAIL,   ,   ,   ,PFEIFFER AMY M,2018-01-03,2018-03-31,POLICY DIRECTOR,29055.56,2018
,2018 OFFICE OF THE MINORITY LEADER,,GENERAL EXPENDITURES,PERSONNEL COMPENSATION,DETAIL,   ,   ,   ,POLZIN SAVANNAH J,2018-01-03,2018-01-30,ASST TO THE EXECUTIVE OFFICE,2916.67,2018
,2018 OFFICE OF THE MINORITY LEADER,,GENERAL EXPENDITURES,PERSONNEL COMPENSATION,DETAIL,   ,   ,   ,POLZIN SAVANNAH J,2018-02-01,2018-03-31,DEPUTY DIR OF SCHEDULING,9666.66,2018
,2018 OFFICE OF THE MINORITY LEADER,,GENERAL EXPENDITURES,PERSONNEL COMPENSATION,DETAIL,   ,   ,   ,POLZIN SAVANNAH J,2018-01-01,2018-01-31,ASST TO THE EXECUTIVE OFFICE (OVERTIME),2028.22,2018
,2018 OFFICE OF THE MINORITY LEADER,,GENERAL EXPENDITURES,PERSONNEL COMPENSATION,DETAIL,   ,   ,   ,POWELL LATRICE S,2018-01-03,2018-03-31,ASSISTANT CLOAKROOM MANAGER,18138.89,2018
,2018 OFFICE OF THE MINORITY LEADER,,GENERAL EXPENDITURES,PERSONNEL COMPENSATION,DETAIL,   ,   ,   ,POWELL LATRICE S,2018-02-01,2018-02-28,ASSISTANT CLOAKROOM MANAGER,9583.33,2018
,2018 OFFICE OF THE MINORITY LEADER,,GENERAL EXPENDITURES,PERSONNEL COMPENSATION,DETAIL,   ,   ,   ,PRICE REVA B.,2018-01-03,2018-03-31,OUTREACH DIRECTOR & ADVISOR,33214.83,2018
,2018 OFFICE OF THE MINORITY LEADER,,GENERAL EXPENDITURES,PERSONNEL COMPENSATION,DETAIL,   ,   ,   ,PRIMUS WENDELL E.,2018-01-03,2018-03-31,SENIOR POLICY ADVISOR,42166.67,2018
,2018 OFFICE OF THE MINORITY LEADER,,GENERAL EXPENDITURES,PERSONNEL COMPENSATION,DETAIL,   ,   ,   ,SMITH KELSEY L,2018-01-03,2018-03-31,DIR. OF SCHEDULING & ADVANCE,24444.43,2018
,2018 OFFICE OF THE MINORITY LEADER,,GENERAL EXPENDITURES,PERSONNEL COMPENSATION,DETAIL,   ,   ,   ,STERN KEITH L.,2018-01-03,2018-03-31,DIRECTOR OF FLOOR OPERATIONS,39111.1,2018
,2018 OFFICE OF THE MINORITY LEADER,,GENERAL EXPENDITURES,PERSONNEL COMPENSATION,DETAIL,   ,   ,   ,TECKLENBURG MICHAEL H.,2018-01-03,2018-03-31,COUNSEL,21944.44,2018
,2018 OFFICE OF THE MINORITY LEADER,,GENERAL EXPENDITURES,PERSONNEL COMPENSATION,DETAIL,   ,   ,   ,TECKLENBURG MICHAEL H.,2018-02-01,2018-02-28,COUNSEL,11833.33,2018
,2018 OFFICE OF THE MINORITY LEADER,,GENERAL EXPENDITURES,PERSONNEL COMPENSATION,DETAIL,   ,   ,   ,WATKINS YELBERTON R.,2018-01-03,2018-03-31,CHIEF OF STAFF,41166.67,2018
,2018 OFFICE OF THE MINORITY LEADER,,GENERAL EXPENDITURES,PERSONNEL COMPENSATION,DETAIL,   ,   ,   ,WEISS DANIEL,2018-01-03,2018-03-31,CHIEF OF STAFF,42166.67,2018
,2018 OFFICE OF THE MINORITY LEADER,,GENERAL EXPENDITURES,PERSONNEL COMPENSATION,DETAIL,   ,   ,   ,WEST JULIUS L,2018-01-03,2018-03-31,SENIOR ADVISOR,13030.56,2018
,2018 OFFICE OF THE MINORITY LEADER,,GENERAL EXPENDITURES,PERSONNEL COMPENSATION,DETAIL,   ,   ,   ,WEST JULIUS L,2018-02-01,2018-02-28,SENIOR ADVISOR,6416.67,2018
,2018 OFFICE OF THE MINORITY LEADER,,GENERAL EXPENDITURES,PERSONNEL COMPENSATION,DETAIL,   ,   ,   ,WILKES CHRISTINA E,2018-01-03,2018-03-31,PRESS ASSISTANT,7822.23,2018
,2018 OFFICE OF THE MINORITY LEADER,,GENERAL EXPENDITURES,PERSONNEL COMPENSATION,DETAIL,   ,   ,   ,WILKES CHRISTINA E,2018-01-01,2018-02-28,PRESS ASSISTANT (OVERTIME),2573.05,2018
,2018 OFFICE OF THE MINORITY LEADER,,GENERAL EXPENDITURES,PERSONNEL COMPENSATION,DETAIL,   ,   ,   ,WOLTERS KATE,2018-01-03,2018-03-31,DIRECTOR OF PROTOCOL,35098.8,2018
,2018 OFFICE OF THE MINORITY LEADER,,GENERAL EXPENDITURES,PERSONNEL COMPENSATION,DETAIL,   ,   ,   ,WONG STEPHANIE P,2018-03-06,2018-03-31,ASST TO THE EXECUTIVE OFFICE,2638.89,2018
,2018 OFFICE OF THE MINORITY LEADER,,GENERAL EXPENDITURES,PERSONNEL COMPENSATION,DETAIL,   ,   ,   ,YORK JEMMA D,2018-01-03,2018-03-31,PRESS ADVISOR/SENIOR WRITER,14666.67,2018
,2018 OFFICE OF THE MINORITY LEADER,,GENERAL EXPENDITURES,PERSONNEL COMPENSATION,SUBTOTAL,   ,   ,   ,   ,   ,   ,PERSONNEL COMPENSATION TOTALS:,1373538.3,2018
,2018 OFFICE OF THE MINORITY LEADER,,GENERAL EXPENDITURES,TRAVEL,DETAIL,2018-01-31,AP,E0595544,POLZIN SAVANNAH J.,2018-01-08,2018-01-21,TAXI/PARKING/TOLLS,32.04,2018
,2018 OFFICE OF THE MINORITY LEADER,,GENERAL EXPENDITURES,TRAVEL,DETAIL,2018-02-12,AP,E0598786,CITIBANK GOV CARD SERVICE,2018-01-28,2018-01-28,COMMERCIAL TRANSPORTATION,119.3,2018
,2018 OFFICE OF THE MINORITY LEADER,,GENERAL EXPENDITURES,TRAVEL,DETAIL,2018-02-13,AP,E0598784,CITIBANK GOV CARD SERVICE,2018-01-22,2018-01-22,COMMERCIAL TRANSPORTATION,258.3,2018
,2018 OFFICE OF THE MINORITY LEADER,,GENERAL EXPENDITURES,TRAVEL,DETAIL,2018-02-13,AP,E0598785,CITIBANK GOV CARD SERVICE,2018-01-24,2018-01-24,COMMERCIAL TRANSPORTATION,133.3,2018
,2018 OFFICE OF THE MINORITY LEADER,,GENERAL EXPENDITURES,TRAVEL,DETAIL,2018-02-13,AP,E0598785,CITIBANK GOV CARD SERVICE,2018-01-25,2018-01-25,COMMERCIAL TRANSPORTATION,93.3,2018
,2018 OFFICE OF THE MINORITY LEADER,,GENERAL EXPENDITURES,TRAVEL,DETAIL,2018-02-13,AP,E0598785,CITIBANK GOV CARD SERVICE,2018-01-24,2018-01-24,MEALS,10.83,2018
,2018 OFFICE OF THE MINORITY LEADER,,GENERAL EXPENDITURES,TRAVEL,DETAIL,2018-02-13,AP,E0598787,CITIBANK GOV CARD SERVICE,2018-01-11,2018-01-16,COMMERCIAL TRANSPORTATION,488.6,2018
,2018 OFFICE OF THE MINORITY LEADER,,GENERAL EXPENDITURES,TRAVEL,DETAIL,2018-02-13,AP,E0598787,CITIBANK GOV CARD SERVICE,2018-01-11,2018-01-14,LODGING,790.01,2018
,2018 OFFICE OF THE MINORITY LEADER,,GENERAL EXPENDITURES,TRAVEL,DETAIL,2018-02-13,AP,E0598787,CITIBANK GOV CARD SERVICE,2018-01-11,2018-01-14,MEALS,131.56,2018
,2018 OFFICE OF THE MINORITY LEADER,,GENERAL EXPENDITURES,TRAVEL,DETAIL,2018-02-13,AP,E0598787,CITIBANK GOV CARD SERVICE,2018-01-12,2018-01-16,TAXI/PARKING/TOLLS,52.55,2018
,2018 OFFICE OF THE MINORITY LEADER,,GENERAL EXPENDITURES,TRAVEL,DETAIL,2018-02-14,AP,E0599636,GRIFFIN TAYLOR T.,2018-01-12,2018-01-16,MEALS,248.32,2018
,2018 OFFICE OF THE MINORITY LEADER,,GENERAL EXPENDITURES,TRAVEL,DETAIL,2018-02-14,AP,E0599636,GRIFFIN TAYLOR T.,2018-01-11,2018-01-30,TAXI/PARKING/TOLLS,153.39,2018
,2018 OFFICE OF THE MINORITY LEADER,,GENERAL EXPENDITURES,TRAVEL,DETAIL,2018-03-01,AP,E0602875,SMITH KELSEY L.,2018-02-19,2018-02-19,MEALS,19.16,2018
,2018 OFFICE OF THE MINORITY LEADER,,GENERAL EXPENDITURES,TRAVEL,DETAIL,2018-03-01,AP,E0602875,SMITH KELSEY L.,2018-02-18,2018-02-19,TAXI/PARKING/TOLLS,15.6,2018
,2018 OFFICE OF THE MINORITY LEADER,,GENERAL EXPENDITURES,TRAVEL,DETAIL,2018-03-01,AP,E0602877,LA ALISA M.,2018-01-31,2018-02-08,TAXI/PARKING/TOLLS,80.73,2018
,2018 OFFICE OF THE MINORITY LEADER,,GENERAL EXPENDITURES,TRAVEL,DETAIL,2018-03-01,AP,E0602878,POLZIN SAVANNAH J.,2018-01-29,2018-01-30,TAXI/PARKING/TOLLS,30.5,2018
,2018 OFFICE OF THE MINORITY LEADER,,GENERAL EXPENDITURES,TRAVEL,DETAIL,2018-03-01,AP,E0602879,WEISS DANIEL,2018-01-23,2018-02-12,TAXI/PARKING/TOLLS,41.93,2018
,2018 OFFICE OF THE MINORITY LEADER,,GENERAL EXPENDITURES,TRAVEL,DETAIL,2018-03-01,AP,E0602880,WOLTERS KATE,2018-01-25,2018-02-13,TAXI/PARKING/TOLLS,69.95,2018
,2018 OFFICE OF THE MINORITY LEADER,,GENERAL EXPENDITURES,TRAVEL,DETAIL,2018-03-12,AP,E0606538,CITIBANK GOV CARD SERVICE,2018-02-19,2018-02-23,COMMERCIAL TRANSPORTATION,583.9,2018
,2018 OFFICE OF THE MINORITY LEADER,,GENERAL EXPENDITURES,TRAVEL,DETAIL,2018-03-12,AP,E0606538,CITIBANK GOV CARD SERVICE,2018-02-19,2018-02-21,LODGING,892.42,2018
,2018 OFFICE OF THE MINORITY LEADER,,GENERAL EXPENDITURES,TRAVEL,DETAIL,2018-03-12,AP,E0606538,CITIBANK GOV CARD SERVICE,2018-02-19,2018-02-20,MEALS,117.09,2018
,2018 OFFICE OF THE MINORITY LEADER,,GENERAL EXPENDITURES,TRAVEL,DETAIL,2018-03-12,AP,E0606538,CITIBANK GOV CARD SERVICE,2018-02-19,2018-02-24,TAXI/PARKING/TOLLS,211.16,2018
,2018 OFFICE OF THE MINORITY LEADER,,GENERAL EXPENDITURES,TRAVEL,DETAIL,2018-03-12,AP,E0606551,CITIBANK GOV CARD SERVICE,2018-01-24,2018-01-25,LODGING,791,2018
,2018 OFFICE OF THE MINORITY LEADER,,GENERAL EXPENDITURES,TRAVEL,DETAIL,2018-03-12,AP,E0606551,CITIBANK GOV CARD SERVICE,2018-01-24,2018-01-25,MEALS,67.21,2018
,2018 OFFICE OF THE MINORITY LEADER,,GENERAL EXPENDITURES,TRAVEL,DETAIL,2018-03-13,AP,E0606510,POLZIN SAVANNAH J.,2018-02-26,2018-02-28,TAXI/PARKING/TOLLS,50.28,2018
,2018 OFFICE OF THE MINORITY LEADER,,GENERAL EXPENDITURES,TRAVEL,DETAIL,2018-03-13,AP,E0606531,WEISS DANIEL,2018-01-23,2018-02-21,TAXI/PARKING/TOLLS,31,2018
,2018 OFFICE OF THE MINORITY LEADER,,GENERAL EXPENDITURES,TRAVEL,DETAIL,2018-03-13,AP,E0606568,CITIBANK GOV CARD SERVICE,2018-01-26,2018-02-20,COMMERCIAL TRANSPORTATION,620.3,2018
,2018 OFFICE OF THE MINORITY LEADER,,GENERAL EXPENDITURES,TRAVEL,DETAIL,2018-03-13,AP,E0606568,CITIBANK GOV CARD SERVICE,2018-01-26,2018-02-20,LODGING,1143.79,2018
,2018 OFFICE OF THE MINORITY LEADER,,GENERAL EXPENDITURES,TRAVEL,DETAIL,2018-03-13,AP,E0606568,CITIBANK GOV CARD SERVICE,2018-01-26,2018-02-20,MEALS,228.83,2018
,2018 OFFICE OF THE MINORITY LEADER,,GENERAL EXPENDITURES,TRAVEL,DETAIL,2018-03-13,AP,E0606568,CITIBANK GOV CARD SERVICE,2018-01-26,2018-02-20,TAXI/PARKING/TOLLS,171.92,2018
,2018 OFFICE OF THE MINORITY LEADER,,GENERAL EXPENDITURES,TRAVEL,DETAIL,2018-03-15,AP,E0607785,HIDALGO ADRIANA N.,2018-02-24,2018-02-24,MEALS,9.19,2018
,2018 OFFICE OF THE MINORITY LEADER,,GENERAL EXPENDITURES,TRAVEL,DETAIL,2018-03-15,AP,E0607785,HIDALGO ADRIANA N.,2018-02-22,2018-02-22,TAXI/PARKING/TOLLS,18.91,2018
,2018 OFFICE OF THE MINORITY LEADER,,GENERAL EXPENDITURES,TRAVEL,DETAIL,2018-03-16,AP,E0607788,CITIBANK GOV CARD SERVICE,2018-02-22,2018-02-22,MEALS,36.48,2018
,2018 OFFICE OF THE MINORITY LEADER,,GENERAL EXPENDITURES,TRAVEL,DETAIL,2018-03-16,AP,E0607788,CITIBANK GOV CARD SERVICE,2018-02-24,2018-02-24,MEALS,20.16,2018
,2018 OFFICE OF THE MINORITY LEADER,,GENERAL EXPENDITURES,TRAVEL,DETAIL,2018-03-29,AP,E0610704,LA ALISA M.,2018-02-13,2018-02-27,TAXI/PARKING/TOLLS,59.08,2018
,2018 OFFICE OF THE MINORITY LEADER,,GENERAL EXPENDITURES,TRAVEL,SUBTOTAL,   ,   ,   ,   ,   ,   ,TRAVEL TOTALS:,7822.09,2018
,2018 OFFICE OF THE MINORITY LEADER,,GENERAL EXPENDITURES,RENT  COMMUNICATION  UTILITIES,DETAIL,2018-01-31,AP,E0595535,FEDEX,2018-01-04,2018-01-04,POSTAGE / COURIER / BOX RENTAL,11.27,2018
,2018 OFFICE OF THE MINORITY LEADER,,GENERAL EXPENDITURES,RENT  COMMUNICATION  UTILITIES,DETAIL,2018-01-31,AP,E0595536,FEDEX,2018-01-04,2018-01-04,POSTAGE / COURIER / BOX RENTAL,7.98,2018
,2018 OFFICE OF THE MINORITY LEADER,,GENERAL EXPENDITURES,RENT  COMMUNICATION  UTILITIES,SUBTOTAL,   ,   ,   ,   ,   ,   ,RENT  COMMUNICATION  UTILITIES TOTALS:,19.25,2018
,2018 OFFICE OF THE MINORITY LEADER,,GENERAL EXPENDITURES,PRINTING AND REPRODUCTION,DETAIL,2018-01-26,GL,PIX0075057, ,2018-01-01,2018-01-31,PHOTOGRAPHIC (TRANSFER),103,2018
,2018 OFFICE OF THE MINORITY LEADER,,GENERAL EXPENDITURES,PRINTING AND REPRODUCTION,DETAIL,2018-02-22,GL,PIX0075827, ,2018-02-01,2018-02-28,PHOTOGRAPHIC (TRANSFER),281,2018
,2018 OFFICE OF THE MINORITY LEADER,,GENERAL EXPENDITURES,PRINTING AND REPRODUCTION,DETAIL,2018-03-15,AP,978920,CITI PCARD-FACEBK 6FBPUENZL,2018-01-27,2018-02-28,ADVERTISEMENTS,500,2018
,2018 OFFICE OF THE MINORITY LEADER,,GENERAL EXPENDITURES,PRINTING AND REPRODUCTION,DETAIL,2018-03-15,AP,978920,CITI PCARD-FACEBK QW668FA2M,2018-01-27,2018-02-28,ADVERTISEMENTS,750,2018
,2018 OFFICE OF THE MINORITY LEADER,,GENERAL EXPENDITURES,PRINTING AND REPRODUCTION,DETAIL,2018-03-15,AP,978920,CITI PCARD-FACEBK X3SJ3FSZL,2018-01-27,2018-02-28,ADVERTISEMENTS,750,2018
,2018 OFFICE OF THE MINORITY LEADER,,GENERAL EXPENDITURES,PRINTING AND REPRODUCTION,DETAIL,2018-03-15,AP,978920,CITI PCARD-TWITTER ONLINE ADS,2018-01-27,2018-02-28,ADVERTISEMENTS,5239.83,2018
,2018 OFFICE OF THE MINORITY LEADER,,GENERAL EXPENDITURES,PRINTING AND REPRODUCTION,DETAIL,2018-03-15,AP,E0607785,HIDALGO ADRIANA N.,2018-02-22,2018-02-22,PRINTING & REPRODUCTION,4.41,2018
,2018 OFFICE OF THE MINORITY LEADER,,GENERAL EXPENDITURES,PRINTING AND REPRODUCTION,DETAIL,2018-03-26,GL,PIX0076761, ,2018-03-01,2018-03-31,PHOTOGRAPHIC (TRANSFER),511.9,2018
,2018 OFFICE OF THE MINORITY LEADER,,GENERAL EXPENDITURES,PRINTING AND REPRODUCTION,SUBTOTAL,   ,   ,   ,   ,   ,   ,PRINTING AND REPRODUCTION TOTALS:,8140.14,2018
,2018 OFFICE OF THE MINORITY LEADER,,GENERAL EXPENDITURES,OTHER SERVICES,DETAIL,2018-02-01,AP,E0595542,BERNARD RAIMO,2018-01-01,2018-01-31,CONSULTANT CONTRACT SERVICE,7628,2018
,2018 OFFICE OF THE MINORITY LEADER,,GENERAL EXPENDITURES,OTHER SERVICES,DETAIL,2018-02-19,AP,974834,CITI PCARD-DNH GODADDY.COM,2017-12-29,2018-01-26,WEB DEV HST EMAIL & RLTD SERV,30.71,2018
,2018 OFFICE OF THE MINORITY LEADER,,GENERAL EXPENDITURES,OTHER SERVICES,SUBTOTAL,   ,   ,   ,   ,   ,   ,OTHER SERVICES TOTALS:,7658.71,2018
,2018 OFFICE OF THE MINORITY LEADER,,GENERAL EXPENDITURES,SUPPLIES AND MATERIALS,DETAIL,2018-01-23,AP,E0593491,CAPITOL  HOST,2018-01-10,2018-01-10,FOOD & BEVERAGE,147.84,2018
,2018 OFFICE OF THE MINORITY LEADER,,GENERAL EXPENDITURES,SUPPLIES AND MATERIALS,DETAIL,2018-01-23,AP,E0593493,BERRET EMILY C.,2018-01-10,2018-01-10,FOOD & BEVERAGE,26.1,2018
,2018 OFFICE OF THE MINORITY LEADER,,GENERAL EXPENDITURES,SUPPLIES AND MATERIALS,DETAIL,2018-01-24,AP,E0593490,CAPITOL  HOST,2018-01-10,2018-01-10,FOOD & BEVERAGE,363.12,2018
,2018 OFFICE OF THE MINORITY LEADER,,GENERAL EXPENDITURES,SUPPLIES AND MATERIALS,DETAIL,2018-01-24,AP,E0593492,MENUS CATERING INC,2018-01-10,2018-01-10,FOOD & BEVERAGE,668.9,2018
,2018 OFFICE OF THE MINORITY LEADER,,GENERAL EXPENDITURES,SUPPLIES AND MATERIALS,DETAIL,2018-01-31,AP,E0595533,CRYSTAL SPRINGS,2018-01-11,2018-01-11,FOOD & BEVERAGE,308.85,2018
,2018 OFFICE OF THE MINORITY LEADER,,GENERAL EXPENDITURES,SUPPLIES AND MATERIALS,DETAIL,2018-01-31,AP,E0595538,CAPITOL  HOST,2018-01-18,2018-01-18,FOOD & BEVERAGE,73.25,2018
,2018 OFFICE OF THE MINORITY LEADER,,GENERAL EXPENDITURES,SUPPLIES AND MATERIALS,DETAIL,2018-01-31,AP,E0595539,CAPITOL  HOST,2018-01-18,2018-01-18,FOOD & BEVERAGE,158.04,2018
,2018 OFFICE OF THE MINORITY LEADER,,GENERAL EXPENDITURES,SUPPLIES AND MATERIALS,DETAIL,2018-01-31,AP,E0595540,CAPITOL  HOST,2018-01-16,2018-01-16,FOOD & BEVERAGE,73.25,2018
,2018 OFFICE OF THE MINORITY LEADER,,GENERAL EXPENDITURES,SUPPLIES AND MATERIALS,DETAIL,2018-01-31,AP,E0595541,CAPITOL  HOST,2018-01-11,2018-01-11,FOOD & BEVERAGE,158.04,2018
,2018 OFFICE OF THE MINORITY LEADER,,GENERAL EXPENDITURES,SUPPLIES AND MATERIALS,DETAIL,2018-01-31,AP,E0595543,LIZARRAGA JAIME E.,2018-01-12,2018-01-12,FOOD & BEVERAGE,79.87,2018
,2018 OFFICE OF THE MINORITY LEADER,,GENERAL EXPENDITURES,SUPPLIES AND MATERIALS,DETAIL,2018-02-13,AP,E0599634,MENUS CATERING INC,2018-01-18,2018-01-18,FOOD & BEVERAGE,4325,2018
,2018 OFFICE OF THE MINORITY LEADER,,GENERAL EXPENDITURES,SUPPLIES AND MATERIALS,DETAIL,2018-02-13,AP,E0599635,MENUS CATERING INC,2018-02-07,2018-02-07,FOOD & BEVERAGE,668.9,2018
,2018 OFFICE OF THE MINORITY LEADER,,GENERAL EXPENDITURES,SUPPLIES AND MATERIALS,DETAIL,2018-02-19,AP,974834,CITI PCARD-BM  YOUNG CHOW,2017-12-29,2018-01-26,FOOD & BEVERAGE,291.77,2018
,2018 OFFICE OF THE MINORITY LEADER,,GENERAL EXPENDITURES,SUPPLIES AND MATERIALS,DETAIL,2018-02-19,AP,974834,CITI PCARD-FIREHOOK CAPITOL HILL,2017-12-29,2018-01-26,FOOD & BEVERAGE,26.4,2018
,2018 OFFICE OF THE MINORITY LEADER,,GENERAL EXPENDITURES,SUPPLIES AND MATERIALS,DETAIL,2018-02-19,AP,974834,CITI PCARD-GIANT,2017-12-29,2018-01-26,FOOD & BEVERAGE,16.67,2018
,2018 OFFICE OF THE MINORITY LEADER,,GENERAL EXPENDITURES,SUPPLIES AND MATERIALS,DETAIL,2018-02-19,AP,974834,CITI PCARD-TARGET,2017-12-29,2018-01-26,OFFICE SUPPLIES (OUTSIDE),459.64,2018
,2018 OFFICE OF THE MINORITY LEADER,,GENERAL EXPENDITURES,SUPPLIES AND MATERIALS,DETAIL,2018-02-19,AP,974834,CITI PCARD-WE THE PIZZA,2017-12-29,2018-01-26,FOOD & BEVERAGE,328.56,2018
,2018 OFFICE OF THE MINORITY LEADER,,GENERAL EXPENDITURES,SUPPLIES AND MATERIALS,DETAIL,2018-02-26,AP,E0602866,CAPITOL  HOST,2018-02-12,2018-02-12,FOOD & BEVERAGE,73.25,2018
,2018 OFFICE OF THE MINORITY LEADER,,GENERAL EXPENDITURES,SUPPLIES AND MATERIALS,DETAIL,2018-02-26,AP,E0602868,CAPITOL  HOST,2018-02-05,2018-02-05,FOOD & BEVERAGE,73.25,2018
,2018 OFFICE OF THE MINORITY LEADER,,GENERAL EXPENDITURES,SUPPLIES AND MATERIALS,DETAIL,2018-02-26,AP,E0602870,CAPITOL  HOST,2018-02-07,2018-02-07,FOOD & BEVERAGE,361.65,2018
,2018 OFFICE OF THE MINORITY LEADER,,GENERAL EXPENDITURES,SUPPLIES AND MATERIALS,DETAIL,2018-02-26,AP,E0602872,CAPITOL  HOST,2018-02-07,2018-02-07,FOOD & BEVERAGE,147.84,2018
,2018 OFFICE OF THE MINORITY LEADER,,GENERAL EXPENDITURES,SUPPLIES AND MATERIALS,DETAIL,2018-02-27,AP,E0602860,TOULIES EN FLEUR,2018-02-05,2018-02-26,HABITATION EXPENSE,750,2018
,2018 OFFICE OF THE MINORITY LEADER,,GENERAL EXPENDITURES,SUPPLIES AND MATERIALS,DETAIL,2018-02-27,AP,E0602861,TOULIES EN FLEUR,2018-01-02,2018-01-29,HABITATION EXPENSE,1000,2018
,2018 OFFICE OF THE MINORITY LEADER,,GENERAL EXPENDITURES,SUPPLIES AND MATERIALS,DETAIL,2018-02-28,AP,E0602863,CRYSTAL SPRINGS,2018-02-06,2018-02-06,WATER,123.79,2018
,2018 OFFICE OF THE MINORITY LEADER,,GENERAL EXPENDITURES,SUPPLIES AND MATERIALS,DETAIL,2018-02-28,AP,E0602873,MENUS CATERING INC,2018-02-14,2018-02-14,FOOD & BEVERAGE,668.9,2018
,2018 OFFICE OF THE MINORITY LEADER,,GENERAL EXPENDITURES,SUPPLIES AND MATERIALS,DETAIL,2018-03-01,AP,E0602874,OCCASIONS CATERERS INC,2018-01-30,2018-01-30,FOOD & BEVERAGE,20540,2018
,2018 OFFICE OF THE MINORITY LEADER,,GENERAL EXPENDITURES,SUPPLIES AND MATERIALS,DETAIL,2018-03-01,AP,E0602876,LIZARRAGA JAIME E.,2018-02-02,2018-02-02,FOOD & BEVERAGE,71.73,2018
,2018 OFFICE OF THE MINORITY LEADER,,GENERAL EXPENDITURES,SUPPLIES AND MATERIALS,DETAIL,2018-03-12,AP,E0606494,SOUTHWEST DISTRIBUTION INC,2018-04-01,2018-06-30,PUBLICATIONS/REFERENCE MAT'L,3817.45,2018
,2018 OFFICE OF THE MINORITY LEADER,,GENERAL EXPENDITURES,SUPPLIES AND MATERIALS,DETAIL,2018-03-12,AP,E0606518,MENUS CATERING INC,2018-02-14,2018-02-14,FOOD & BEVERAGE,3840,2018
,2018 OFFICE OF THE MINORITY LEADER,,GENERAL EXPENDITURES,SUPPLIES AND MATERIALS,DETAIL,2018-03-13,AP,E0606520,CAPITOL  HOST,2018-02-14,2018-02-14,FOOD & BEVERAGE,363.12,2018
,2018 OFFICE OF THE MINORITY LEADER,,GENERAL EXPENDITURES,SUPPLIES AND MATERIALS,DETAIL,2018-03-13,AP,E0606524,CAPITOL  HOST,2018-02-15,2018-02-15,FOOD & BEVERAGE,158.04,2018
,2018 OFFICE OF THE MINORITY LEADER,,GENERAL EXPENDITURES,SUPPLIES AND MATERIALS,DETAIL,2018-03-13,AP,E0606528,CAPITOL  HOST,2018-02-26,2018-02-26,FOOD & BEVERAGE,73.25,2018
,2018 OFFICE OF THE MINORITY LEADER,,GENERAL EXPENDITURES,SUPPLIES AND MATERIALS,DETAIL,2018-03-15,AP,978920,CITI PCARD-AMAZON MKTPLACE PMTS,2018-01-27,2018-02-28,FOOD & BEVERAGE,114.84,2018
,2018 OFFICE OF THE MINORITY LEADER,,GENERAL EXPENDITURES,SUPPLIES AND MATERIALS,DETAIL,2018-03-15,AP,978920,CITI PCARD-AMAZON.COM AMZN.COM/BI,2018-01-27,2018-02-28,OFFICE SUPPLIES (OUTSIDE),19.03,2018
,2018 OFFICE OF THE MINORITY LEADER,,GENERAL EXPENDITURES,SUPPLIES AND MATERIALS,DETAIL,2018-03-15,AP,978920,CITI PCARD-CREAMERY DD,2018-01-27,2018-02-28,FOOD & BEVERAGE,18,2018
,2018 OFFICE OF THE MINORITY LEADER,,GENERAL EXPENDITURES,SUPPLIES AND MATERIALS,DETAIL,2018-03-15,AP,978920,CITI PCARD-FIREHOOK CAPITOL HILL,2018-01-27,2018-02-28,FOOD & BEVERAGE,44.01,2018
,2018 OFFICE OF THE MINORITY LEADER,,GENERAL EXPENDITURES,SUPPLIES AND MATERIALS,DETAIL,2018-03-15,AP,978920,CITI PCARD-TARGET,2018-01-27,2018-02-28,FOOD & BEVERAGE,199.79,2018
,2018 OFFICE OF THE MINORITY LEADER,,GENERAL EXPENDITURES,SUPPLIES AND MATERIALS,DETAIL,2018-03-15,AP,978920,CITI PCARD-TARGET,2018-01-27,2018-02-28,OFFICE SUPPLIES (OUTSIDE),26.34,2018
,2018 OFFICE OF THE MINORITY LEADER,,GENERAL EXPENDITURES,SUPPLIES AND MATERIALS,DETAIL,2018-03-15,AP,978920,CITI PCARD-US CAPITAL HISTORICAL,2018-01-27,2018-02-28,OFFICE SUPPLIES (OUTSIDE),3440,2018
,2018 OFFICE OF THE MINORITY LEADER,,GENERAL EXPENDITURES,SUPPLIES AND MATERIALS,DETAIL,2018-03-15,AP,978920,CITI PCARD-USHR LONGWORTH FOOD CT,2018-01-27,2018-02-28,FOOD & BEVERAGE,22.8,2018
,2018 OFFICE OF THE MINORITY LEADER,,GENERAL EXPENDITURES,SUPPLIES AND MATERIALS,DETAIL,2018-03-15,AP,E0607785,HIDALGO ADRIANA N.,2018-02-24,2018-02-24,PUBLICATIONS/REFERENCE MAT'L,7.35,2018
,2018 OFFICE OF THE MINORITY LEADER,,GENERAL EXPENDITURES,SUPPLIES AND MATERIALS,DETAIL,2018-03-26,AP,E0610763,CAPITOL  HOST,2018-03-07,2018-03-07,FOOD & BEVERAGE,73.25,2018
,2018 OFFICE OF THE MINORITY LEADER,,GENERAL EXPENDITURES,SUPPLIES AND MATERIALS,DETAIL,2018-03-26,AP,E0610766,CAPITOL  HOST,2018-03-08,2018-03-08,FOOD & BEVERAGE,158.04,2018
,2018 OFFICE OF THE MINORITY LEADER,,GENERAL EXPENDITURES,SUPPLIES AND MATERIALS,DETAIL,2018-03-26,AP,E0610775,CRYSTAL SPRINGS,2018-02-20,2018-03-06,FOOD & BEVERAGE,229.04,2018
,2018 OFFICE OF THE MINORITY LEADER,,GENERAL EXPENDITURES,SUPPLIES AND MATERIALS,DETAIL,2018-03-28,AP,E0610703,BERRET EMILY C.,2018-03-09,2018-03-09,FOOD & BEVERAGE,219.94,2018
,2018 OFFICE OF THE MINORITY LEADER,,GENERAL EXPENDITURES,SUPPLIES AND MATERIALS,SUBTOTAL,   ,   ,   ,   ,   ,   ,SUPPLIES AND MATERIALS TOTALS:,44808.9,2018
,2018 OFFICE OF THE MINORITY LEADER,,GENERAL EXPENDITURES,SUPPLIES AND MATERIALS,SUBTOTAL,   ,   ,   ,   ,   ,   ,GENERAL EXPENDITURES TOTALS:,1441987.39,2018
,2018 OFFICE OF THE MINORITY LEADER,,GENERAL EXPENDITURES,SUPPLIES AND MATERIALS,GRAND TOTAL FOR ORGANIZATION,   ,   ,   ,   ,   ,   ,OFFICE TOTALS: ,1441987.39,2018
,2017 OFFICE OF THE MINORITY LEADER,,GENERAL EXPENDITURES,PERSONNEL COMPENSATION,DETAIL,   ,   ,   ,AMADOR ADELA,2017-10-01,2018-01-02,POLICY ADV / MBR SVC ADV,1388.89,2017
,2017 OFFICE OF THE MINORITY LEADER,,GENERAL EXPENDITURES,PERSONNEL COMPENSATION,DETAIL,   ,   ,   ,ANDROFF BLAKE J,2017-10-01,2018-01-02,EXC DIR DEM POL & COMM CMTE,1390.67,2017
,2017 OFFICE OF THE MINORITY LEADER,,GENERAL EXPENDITURES,PERSONNEL COMPENSATION,DETAIL,   ,   ,   ,BERRET EMILY C,2017-10-01,2018-01-02,SPECIAL ASST TO THE LEADER,1422.22,2017
,2017 OFFICE OF THE MINORITY LEADER,,GENERAL EXPENDITURES,PERSONNEL COMPENSATION,DETAIL,   ,   ,   ,BROWN GABRIELLE I,2017-10-01,2018-01-02,PRESS SECRETARY,888.89,2017
,2017 OFFICE OF THE MINORITY LEADER,,GENERAL EXPENDITURES,PERSONNEL COMPENSATION,DETAIL,   ,   ,   ,CAPRON MARGARET W.,2017-09-01,2018-01-02,SENIOR ADV POLICY & COMM,6737.21,2017
,2017 OFFICE OF THE MINORITY LEADER,,GENERAL EXPENDITURES,PERSONNEL COMPENSATION,DETAIL,   ,   ,   ,CHERRY STEPHANIE,2017-10-01,2018-01-02,DIRECTOR OF MEDIA AFFAIRS,1444.44,2017
,2017 OFFICE OF THE MINORITY LEADER,,GENERAL EXPENDITURES,PERSONNEL COMPENSATION,DETAIL,   ,   ,   ,CONNELLY HENRY V,2017-10-01,2018-01-02,DEPUTY COMMUNICATIONS DIRECTOR,1722.22,2017
,2017 OFFICE OF THE MINORITY LEADER,,GENERAL EXPENDITURES,PERSONNEL COMPENSATION,DETAIL,   ,   ,   ,DEGRAFF KENNETH B.,2017-09-01,2018-01-02,SENIOR POLICY ADVISOR,6638.89,2017
,2017 OFFICE OF THE MINORITY LEADER,,GENERAL EXPENDITURES,PERSONNEL COMPENSATION,DETAIL,   ,   ,   ,DEVLIN PATRICK J.,2018-01-01,2018-01-02,COMMUNICATIONS DIRECTOR,694.44,2017
,2017 OFFICE OF THE MINORITY LEADER,,GENERAL EXPENDITURES,PERSONNEL COMPENSATION,DETAIL,   ,   ,   ,DEWHIRST DIANE,2018-01-01,2018-01-02,DEPUTY CHIEF OF STAFF,958.33,2017
,2017 OFFICE OF THE MINORITY LEADER,,GENERAL EXPENDITURES,PERSONNEL COMPENSATION,DETAIL,   ,   ,   ,EDMONSON ROBERT D,2017-10-01,2018-01-02,CHIEF OF STAFF,1388.89,2017
,2017 OFFICE OF THE MINORITY LEADER,,GENERAL EXPENDITURES,PERSONNEL COMPENSATION,DETAIL,   ,   ,   ,ETIENNE ASHLEY D,2017-10-01,2018-01-02,COMM DIR/SENIOR ADVISOR,1390.67,2017
,2017 OFFICE OF THE MINORITY LEADER,,GENERAL EXPENDITURES,PERSONNEL COMPENSATION,DETAIL,   ,   ,   ,FISCHER JR ROBERT V.,2018-01-01,2018-01-02,ASST FLOOR CHIEF,958.33,2017
,2017 OFFICE OF THE MINORITY LEADER,,GENERAL EXPENDITURES,PERSONNEL COMPENSATION,DETAIL,   ,   ,   ,GIBSON DYLAN B,2017-10-01,2018-01-02,DIGITAL DIRECTOR,1361.11,2017
,2017 OFFICE OF THE MINORITY LEADER,,GENERAL EXPENDITURES,PERSONNEL COMPENSATION,DETAIL,   ,   ,   ,GREENER APRIL L.,2017-10-01,2018-01-02,RESEARCH DIRECTOR,1583.33,2017
,2017 OFFICE OF THE MINORITY LEADER,,GENERAL EXPENDITURES,PERSONNEL COMPENSATION,DETAIL,   ,   ,   ,GRIFFIN TAYLOR T,2017-10-01,2018-01-02,PRESS SECRETARY,1416.67,2017
,2017 OFFICE OF THE MINORITY LEADER,,GENERAL EXPENDITURES,PERSONNEL COMPENSATION,DETAIL,   ,   ,   ,HAMMILL ANDREW T.,2018-01-01,2018-01-02,DEPUTY CHIEF OF STAFF,958.33,2017
,2017 OFFICE OF THE MINORITY LEADER,,GENERAL EXPENDITURES,PERSONNEL COMPENSATION,DETAIL,   ,   ,   ,HAYNES JR WILFRED J.,2017-09-01,2018-01-02,IT DIRECTOR,5545.12,2017
,2017 OFFICE OF THE MINORITY LEADER,,GENERAL EXPENDITURES,PERSONNEL COMPENSATION,DETAIL,   ,   ,   ,HIDALGO ADRIANA N,2018-01-01,2018-01-02,SHARED EMPLOYEE,111.11,2017
,2017 OFFICE OF THE MINORITY LEADER,,GENERAL EXPENDITURES,PERSONNEL COMPENSATION,DETAIL,   ,   ,   ,HOLMES NATHANIEL J,2017-10-01,2018-01-02,DEP DIR SCHED/ADVANCE ASSOC,1327.78,2017
,2017 OFFICE OF THE MINORITY LEADER,,GENERAL EXPENDITURES,PERSONNEL COMPENSATION,DETAIL,   ,   ,   ,HURWITZ ROSS B,2017-10-10,2018-01-02,DEPUTY DIR. OF SPEECHWRITING,1061.11,2017
,2017 OFFICE OF THE MINORITY LEADER,,GENERAL EXPENDITURES,PERSONNEL COMPENSATION,DETAIL,   ,   ,   ,KEATING ROSE M,2017-09-01,2018-01-02,ASST FLOOR MANAGER,4694.44,2017
,2017 OFFICE OF THE MINORITY LEADER,,GENERAL EXPENDITURES,PERSONNEL COMPENSATION,DETAIL,   ,   ,   ,KEITA KAMILAH Z,2017-10-01,2018-01-02,DEPUTY INFOMATION TECH. DIRECT,4495.18,2017
,2017 OFFICE OF THE MINORITY LEADER,,GENERAL EXPENDITURES,PERSONNEL COMPENSATION,DETAIL,   ,   ,   ,KUHN ELENA M,2017-10-01,2018-01-02,SENIOR PRESS ASSISTANT,1194.44,2017
,2017 OFFICE OF THE MINORITY LEADER,,GENERAL EXPENDITURES,PERSONNEL COMPENSATION,DETAIL,   ,   ,   ,KUHN ELENA M,2017-12-01,2017-12-31,SENIOR PRESS ASSISTANT (OVERTIME),2289.46,2017
,2017 OFFICE OF THE MINORITY LEADER,,GENERAL EXPENDITURES,PERSONNEL COMPENSATION,DETAIL,   ,   ,   ,KUNDANIS GEORGE,2018-01-01,2018-01-02,DEPUTY CHIEF OF STAFF,958.33,2017
,2017 OFFICE OF THE MINORITY LEADER,,GENERAL EXPENDITURES,PERSONNEL COMPENSATION,DETAIL,   ,   ,   ,LA ALISA M,2017-10-01,2018-01-02,DEPUTY DIR. OF ADVANCE,1347.22,2017
,2017 OFFICE OF THE MINORITY LEADER,,GENERAL EXPENDITURES,PERSONNEL COMPENSATION,DETAIL,   ,   ,   ,LEE SERYEUNG,2017-10-01,2018-01-02,DEPUTY PRESS SECRETARY,1280.56,2017
,2017 OFFICE OF THE MINORITY LEADER,,GENERAL EXPENDITURES,PERSONNEL COMPENSATION,DETAIL,   ,   ,   ,LIZARRAGA JAIME E.,2017-10-01,2018-01-02,SR ADV & DIR OF MEMBER SVC,1570.57,2017
,2017 OFFICE OF THE MINORITY LEADER,,GENERAL EXPENDITURES,PERSONNEL COMPENSATION,DETAIL,   ,   ,   ,LONG MICHAEL G,2017-10-01,2018-01-02,SENIOR ADVISOR,4638.89,2017
,2017 OFFICE OF THE MINORITY LEADER,,GENERAL EXPENDITURES,PERSONNEL COMPENSATION,DETAIL,   ,   ,   ,MANGRUM PEARL J.,2017-09-01,2018-01-02,FINANCIAL ADMINISTRATOR,3494.44,2017
,2017 OFFICE OF THE MINORITY LEADER,,GENERAL EXPENDITURES,PERSONNEL COMPENSATION,DETAIL,   ,   ,   ,MANGRUM PEARL J.,2017-10-01,2017-10-31,DIR OF DIST OPS/CONSTITUENT SV,1000,2017
,2017 OFFICE OF THE MINORITY LEADER,,GENERAL EXPENDITURES,PERSONNEL COMPENSATION,DETAIL,   ,   ,   ,MANSBACH SHANA G,2017-10-01,2018-01-02,DEPUTY DIR OF SPEECHWRITING,1416.67,2017
,2017 OFFICE OF THE MINORITY LEADER,,GENERAL EXPENDITURES,PERSONNEL COMPENSATION,DETAIL,   ,   ,   ,MASON TAMIKA K,2018-01-01,2018-01-02,SR STAFF ASST SYS ADMIN,333.33,2017
,2017 OFFICE OF THE MINORITY LEADER,,GENERAL EXPENDITURES,PERSONNEL COMPENSATION,DETAIL,   ,   ,   ,MELTZER RICHARD,2018-01-01,2018-01-02,POLICY DIRECTOR,958.33,2017
,2017 OFFICE OF THE MINORITY LEADER,,GENERAL EXPENDITURES,PERSONNEL COMPENSATION,DETAIL,   ,   ,   ,MONGE KATHERINE S,2017-10-01,2018-01-02,SENIOR POLICY ADVISOR,2708.33,2017
,2017 OFFICE OF THE MINORITY LEADER,,GENERAL EXPENDITURES,PERSONNEL COMPENSATION,DETAIL,   ,   ,   ,OBSCURA JULIO C,2017-10-01,2018-01-02,CREATIVE DIR/DPTY PRESS SEC,1280.56,2017
,2017 OFFICE OF THE MINORITY LEADER,,GENERAL EXPENDITURES,PERSONNEL COMPENSATION,DETAIL,   ,   ,   ,PARKER WYNDEE R.,2018-01-01,2018-01-02,SENIOR POLICY ADVISOR,958.33,2017
,2017 OFFICE OF THE MINORITY LEADER,,GENERAL EXPENDITURES,PERSONNEL COMPENSATION,DETAIL,   ,   ,   ,PFEIFFER AMY M,2018-01-01,2018-01-02,POLICY DIRECTOR,611.11,2017
,2017 OFFICE OF THE MINORITY LEADER,,GENERAL EXPENDITURES,PERSONNEL COMPENSATION,DETAIL,   ,   ,   ,POLZIN SAVANNAH J,2017-10-01,2018-01-02,ASST TO THE EXECUTIVE OFFICE,1208.33,2017
,2017 OFFICE OF THE MINORITY LEADER,,GENERAL EXPENDITURES,PERSONNEL COMPENSATION,DETAIL,   ,   ,   ,POLZIN SAVANNAH J,2017-12-01,2017-12-31,ASST TO THE EXECUTIVE OFFICE (OVERTIME),2420.08,2017
,2017 OFFICE OF THE MINORITY LEADER,,GENERAL EXPENDITURES,PERSONNEL COMPENSATION,DETAIL,   ,   ,   ,POWELL LATRICE S,2017-10-01,2017-10-01,ASSISTANT CLOAKROOM MANAGER,-9583.33,2017
,2017 OFFICE OF THE MINORITY LEADER,,GENERAL EXPENDITURES,PERSONNEL COMPENSATION,DETAIL,   ,   ,   ,POWELL LATRICE S,2017-10-01,2018-01-02,ASSISTANT CLOAKROOM MANAGER,14194.44,2017
,2017 OFFICE OF THE MINORITY LEADER,,GENERAL EXPENDITURES,PERSONNEL COMPENSATION,DETAIL,   ,   ,   ,PRICE REVA B.,2017-09-01,2018-01-02,OUTREACH DIRECTOR & ADVISOR,6709.43,2017
,2017 OFFICE OF THE MINORITY LEADER,,GENERAL EXPENDITURES,PERSONNEL COMPENSATION,DETAIL,   ,   ,   ,PRIMUS WENDELL E.,2018-01-01,2018-01-02,SENIOR POLICY ADVISOR,958.33,2017
,2017 OFFICE OF THE MINORITY LEADER,,GENERAL EXPENDITURES,PERSONNEL COMPENSATION,DETAIL,   ,   ,   ,SMITH KELSEY L,2017-10-01,2017-10-01,DIR. OF SCHEDULING & ADVANCE,1000,2017
,2017 OFFICE OF THE MINORITY LEADER,,GENERAL EXPENDITURES,PERSONNEL COMPENSATION,DETAIL,   ,   ,   ,SMITH KELSEY L,2018-01-01,2018-01-02,DIR. OF SCHEDULING & ADVANCE,555.56,2017
,2017 OFFICE OF THE MINORITY LEADER,,GENERAL EXPENDITURES,PERSONNEL COMPENSATION,DETAIL,   ,   ,   ,SMITH KELSEY L,2017-10-01,2017-10-01,DIR. OF SCHEDULING & ADVANCE (OTHER COMPENSATION),-1000,2017
,2017 OFFICE OF THE MINORITY LEADER,,GENERAL EXPENDITURES,PERSONNEL COMPENSATION,DETAIL,   ,   ,   ,SMITH KELSEY L,2017-10-01,2017-10-01,DIR. OF SCHEDULING & ADVANCE (OTHER COMPENSATION),1000,2017
,2017 OFFICE OF THE MINORITY LEADER,,GENERAL EXPENDITURES,PERSONNEL COMPENSATION,DETAIL,   ,   ,   ,STERN KEITH L.,2017-10-01,2018-01-02,DIRECTOR OF FLOOR OPERATIONS,1738.89,2017
,2017 OFFICE OF THE MINORITY LEADER,,GENERAL EXPENDITURES,PERSONNEL COMPENSATION,DETAIL,   ,   ,   ,SURGEON BINA G,2018-01-01,2018-01-01,SPECIAL ASST TO THE LEADER,305.56,2017
,2017 OFFICE OF THE MINORITY LEADER,,GENERAL EXPENDITURES,PERSONNEL COMPENSATION,DETAIL,   ,   ,   ,SURGEON BINA G,2018-01-01,2018-01-02,SPECIAL ASST TO THE LEADER (OTHER COMPENSATION),8861.11,2017
,2017 OFFICE OF THE MINORITY LEADER,,GENERAL EXPENDITURES,PERSONNEL COMPENSATION,DETAIL,   ,   ,   ,TECKLENBURG MICHAEL H.,2017-09-01,2017-09-01,COUNSEL,-11833.33,2017
,2017 OFFICE OF THE MINORITY LEADER,,GENERAL EXPENDITURES,PERSONNEL COMPENSATION,DETAIL,   ,   ,   ,TECKLENBURG MICHAEL H.,2017-09-01,2018-01-02,COUNSEL,18555.55,2017
,2017 OFFICE OF THE MINORITY LEADER,,GENERAL EXPENDITURES,PERSONNEL COMPENSATION,DETAIL,   ,   ,   ,WATKINS YELBERTON R.,2018-01-01,2018-01-02,CHIEF OF STAFF,916.67,2017
,2017 OFFICE OF THE MINORITY LEADER,,GENERAL EXPENDITURES,PERSONNEL COMPENSATION,DETAIL,   ,   ,   ,WEISS DANIEL,2018-01-01,2018-01-02,CHIEF OF STAFF,958.33,2017
,2017 OFFICE OF THE MINORITY LEADER,,GENERAL EXPENDITURES,PERSONNEL COMPENSATION,DETAIL,   ,   ,   ,WEST JULIUS L,2017-10-01,2018-01-02,SENIOR ADVISOR,10844.45,2017
,2017 OFFICE OF THE MINORITY LEADER,,GENERAL EXPENDITURES,PERSONNEL COMPENSATION,DETAIL,   ,   ,   ,WEST JULIUS L,2017-11-01,2017-11-01,SENIOR ADVISOR,-6416.67,2017
,2017 OFFICE OF THE MINORITY LEADER,,GENERAL EXPENDITURES,PERSONNEL COMPENSATION,DETAIL,   ,   ,   ,WILKES CHRISTINA E,2017-10-01,2018-01-02,PRESS ASSISTANT,1177.78,2017
,2017 OFFICE OF THE MINORITY LEADER,,GENERAL EXPENDITURES,PERSONNEL COMPENSATION,DETAIL,   ,   ,   ,WILKES CHRISTINA E,2017-12-01,2017-12-30,PRESS ASSISTANT (OVERTIME),1990.36,2017
,2017 OFFICE OF THE MINORITY LEADER,,GENERAL EXPENDITURES,PERSONNEL COMPENSATION,DETAIL,   ,   ,   ,WOLTERS KATE,2017-10-01,2018-01-02,DIRECTOR OF PROTOCOL,1297.7,2017
,2017 OFFICE OF THE MINORITY LEADER,,GENERAL EXPENDITURES,PERSONNEL COMPENSATION,DETAIL,   ,   ,   ,YORK JEMMA D,2017-10-01,2018-01-02,PRESS ADVISOR/SENIOR WRITER,1333.33,2017
,2017 OFFICE OF THE MINORITY LEADER,,GENERAL EXPENDITURES,PERSONNEL COMPENSATION,SUBTOTAL,   ,   ,   ,   ,   ,   ,PERSONNEL COMPENSATION TOTALS:,122811.41,2017
,2017 OFFICE OF THE MINORITY LEADER,,GENERAL EXPENDITURES,TRAVEL,DETAIL,2018-01-02,AP,E0584427,LA ALISA M.,2017-10-25,2017-10-25,TAXI/PARKING/TOLLS,17.43,2017
,2017 OFFICE OF THE MINORITY LEADER,,GENERAL EXPENDITURES,TRAVEL,DETAIL,2018-01-02,AP,E0584427,LA ALISA M.,2017-11-08,2017-11-08,TAXI/PARKING/TOLLS,13.27,2017
,2017 OFFICE OF THE MINORITY LEADER,,GENERAL EXPENDITURES,TRAVEL,DETAIL,2018-01-02,AP,E0584427,LA ALISA M.,2017-12-02,2017-12-02,TAXI/PARKING/TOLLS,28.31,2017
,2017 OFFICE OF THE MINORITY LEADER,,GENERAL EXPENDITURES,TRAVEL,DETAIL,2018-01-17,AP,E0588908,CITIBANK GOV CARD SERVICE,2017-11-05,2017-11-06,COMMERCIAL TRANSPORTATION,494.39,2017
,2017 OFFICE OF THE MINORITY LEADER,,GENERAL EXPENDITURES,TRAVEL,DETAIL,2018-01-17,AP,E0588908,CITIBANK GOV CARD SERVICE,2017-10-28,2017-11-06,LODGING,67.38,2017
,2017 OFFICE OF THE MINORITY LEADER,,GENERAL EXPENDITURES,TRAVEL,DETAIL,2018-01-17,AP,E0588908,CITIBANK GOV CARD SERVICE,2017-11-05,2017-11-06,LODGING,315.27,2017
,2017 OFFICE OF THE MINORITY LEADER,,GENERAL EXPENDITURES,TRAVEL,DETAIL,2018-01-17,AP,E0588908,CITIBANK GOV CARD SERVICE,2017-10-26,2017-11-06,MEALS,149.03,2017
,2017 OFFICE OF THE MINORITY LEADER,,GENERAL EXPENDITURES,TRAVEL,DETAIL,2018-01-23,AP,E0593522,ETIENNE ASHLEY D.,2017-10-19,2017-10-22,COMMERCIAL TRANSPORTATION,337,2017
,2017 OFFICE OF THE MINORITY LEADER,,GENERAL EXPENDITURES,TRAVEL,DETAIL,2018-01-23,AP,E0593522,ETIENNE ASHLEY D.,2017-10-20,2017-10-22,MEALS,63.35,2017
,2017 OFFICE OF THE MINORITY LEADER,,GENERAL EXPENDITURES,TRAVEL,DETAIL,2018-01-23,AP,E0593522,ETIENNE ASHLEY D.,2017-10-19,2017-10-22,TAXI/PARKING/TOLLS,31.84,2017
,2017 OFFICE OF THE MINORITY LEADER,,GENERAL EXPENDITURES,TRAVEL,SUBTOTAL,   ,   ,   ,   ,   ,   ,TRAVEL TOTALS:,1517.27,2017
,2017 OFFICE OF THE MINORITY LEADER,,GENERAL EXPENDITURES,RENT  COMMUNICATION  UTILITIES,DETAIL,2018-01-23,AP,E0593499,FEDEX,2017-12-14,2017-12-14,POSTAGE / COURIER / BOX RENTAL,76.18,2017
,2017 OFFICE OF THE MINORITY LEADER,,GENERAL EXPENDITURES,RENT  COMMUNICATION  UTILITIES,DETAIL,2018-01-24,AP,E0593500,FEDEX,2017-12-14,2017-12-14,POSTAGE / COURIER / BOX RENTAL,28.99,2017
,2017 OFFICE OF THE MINORITY LEADER,,GENERAL EXPENDITURES,RENT  COMMUNICATION  UTILITIES,DETAIL,2018-03-22,AR,AC-13819,FEDERAL EXPRESS CORP          ,2017-12-14,2017-12-14,POSTAGE / COURIER / BOX RENTAL,-76.18,2017
,2017 OFFICE OF THE MINORITY LEADER,,GENERAL EXPENDITURES,RENT  COMMUNICATION  UTILITIES,SUBTOTAL,   ,   ,   ,   ,   ,   ,RENT  COMMUNICATION  UTILITIES TOTALS:,28.99,2017
,2017 OFFICE OF THE MINORITY LEADER,,GENERAL EXPENDITURES,PRINTING AND REPRODUCTION,DETAIL,2018-01-18,AP,969018,CITI PCARD-FACEBK 7STANESZL,2017-11-29,2017-12-28,ADVERTISEMENTS,639.68,2017
,2017 OFFICE OF THE MINORITY LEADER,,GENERAL EXPENDITURES,PRINTING AND REPRODUCTION,DETAIL,2018-01-18,AP,969018,CITI PCARD-FACEBK 8STANESZL,2017-11-29,2017-12-28,ADVERTISEMENTS,110.32,2017
,2017 OFFICE OF THE MINORITY LEADER,,GENERAL EXPENDITURES,PRINTING AND REPRODUCTION,DETAIL,2018-01-18,AP,969018,CITI PCARD-FACEBK 9XTWHE22M,2017-11-29,2017-12-28,ADVERTISEMENTS,655.29,2017
,2017 OFFICE OF THE MINORITY LEADER,,GENERAL EXPENDITURES,PRINTING AND REPRODUCTION,DETAIL,2018-01-18,AP,969018,CITI PCARD-FACEBK DXTWHE22M,2017-11-29,2017-12-28,ADVERTISEMENTS,94.71,2017
,2017 OFFICE OF THE MINORITY LEADER,,GENERAL EXPENDITURES,PRINTING AND REPRODUCTION,DETAIL,2018-01-18,AP,969018,CITI PCARD-FACEBK S5X67EWZL,2017-11-29,2017-12-28,ADVERTISEMENTS,699.68,2017
,2017 OFFICE OF THE MINORITY LEADER,,GENERAL EXPENDITURES,PRINTING AND REPRODUCTION,DETAIL,2018-01-18,AP,969018,CITI PCARD-FACEBK U5X67EWZL,2017-11-29,2017-12-28,ADVERTISEMENTS,50.32,2017
,2017 OFFICE OF THE MINORITY LEADER,,GENERAL EXPENDITURES,PRINTING AND REPRODUCTION,DETAIL,2018-01-18,AP,969018,CITI PCARD-FACEBK UR2SPEJ2M,2017-11-29,2017-12-28,ADVERTISEMENTS,676.73,2017
,2017 OFFICE OF THE MINORITY LEADER,,GENERAL EXPENDITURES,PRINTING AND REPRODUCTION,DETAIL,2018-01-18,AP,969018,CITI PCARD-FACEBK VR2SPEJ2M,2017-11-29,2017-12-28,ADVERTISEMENTS,73.27,2017
,2017 OFFICE OF THE MINORITY LEADER,,GENERAL EXPENDITURES,PRINTING AND REPRODUCTION,DETAIL,2018-02-19,AP,974834,CITI PCARD-FACEBK NNAMUEJ2M,2017-12-29,2017-12-30,ADVERTISEMENTS,512.58,2017
,2017 OFFICE OF THE MINORITY LEADER,,GENERAL EXPENDITURES,PRINTING AND REPRODUCTION,DETAIL,2018-02-19,AP,974834,CITI PCARD-FACEBK UNAMUEJ2M,2017-12-29,2017-12-30,ADVERTISEMENTS,87.42,2017
,2017 OFFICE OF THE MINORITY LEADER,,GENERAL EXPENDITURES,PRINTING AND REPRODUCTION,DETAIL,2018-02-19,AP,974834,CITI PCARD-TWITTER ONLINE ADS,2017-12-29,2017-12-30,ADVERTISEMENTS,269.38,2017
,2017 OFFICE OF THE MINORITY LEADER,,GENERAL EXPENDITURES,PRINTING AND REPRODUCTION,SUBTOTAL,   ,   ,   ,   ,   ,   ,PRINTING AND REPRODUCTION TOTALS:,3869.38,2017
,2017 OFFICE OF THE MINORITY LEADER,,GENERAL EXPENDITURES,OTHER SERVICES,DETAIL,2018-01-02,AP,E0584395,BERNARD RAIMO,2017-12-01,2017-12-31,CONSULTANT CONTRACT SERVICE,7628,2017
,2017 OFFICE OF THE MINORITY LEADER,,GENERAL EXPENDITURES,OTHER SERVICES,SUBTOTAL,   ,   ,   ,   ,   ,   ,OTHER SERVICES TOTALS:,7628,2017
,2017 OFFICE OF THE MINORITY LEADER,,GENERAL EXPENDITURES,SUPPLIES AND MATERIALS,DETAIL,2018-01-02,AP,964054,HAGUE QUALITY WATER OF MD INC,2018-01-01,2018-12-31,WATER,4536,2017
,2017 OFFICE OF THE MINORITY LEADER,,GENERAL EXPENDITURES,SUPPLIES AND MATERIALS,DETAIL,2018-01-05,AP,E0584408,SOUTHWEST DISTRIBUTION INC,2018-01-01,2018-03-31,PUBLICATIONS/REFERENCE MAT'L,3817.45,2017
,2017 OFFICE OF THE MINORITY LEADER,,GENERAL EXPENDITURES,SUPPLIES AND MATERIALS,DETAIL,2018-01-08,AP,E0586539,LEXISNEXIS,2018-01-01,2018-12-31,PUBLICATIONS/REFERENCE MAT'L,22308,2017
,2017 OFFICE OF THE MINORITY LEADER,,GENERAL EXPENDITURES,SUPPLIES AND MATERIALS,DETAIL,2018-01-12,AP,E0584409,NATIONAL NEWS AGENCY INC,2018-01-01,2018-12-31,PUBLICATIONS/REFERENCE MAT'L,2466.45,2017
,2017 OFFICE OF THE MINORITY LEADER,,GENERAL EXPENDITURES,SUPPLIES AND MATERIALS,DETAIL,2018-01-16,AP,E0586538,OCCASIONS CATERERS INC,2017-12-14,2017-12-14,FOOD & BEVERAGE,3757,2017
,2017 OFFICE OF THE MINORITY LEADER,,GENERAL EXPENDITURES,SUPPLIES AND MATERIALS,DETAIL,2018-01-16,AP,E0588910,CAPITOL ADVANTAGE LLC,2018-01-02,2018-01-02,PUBLICATIONS/REFERENCE MAT'L,1034,2017
,2017 OFFICE OF THE MINORITY LEADER,,GENERAL EXPENDITURES,SUPPLIES AND MATERIALS,DETAIL,2018-01-18,AP,969018,CITI PCARD-CAP MARKET CAF,2017-11-29,2017-12-28,FOOD & BEVERAGE,26,2017
,2017 OFFICE OF THE MINORITY LEADER,,GENERAL EXPENDITURES,SUPPLIES AND MATERIALS,DETAIL,2018-01-18,AP,969018,CITI PCARD-FIREHOOK CAPITOL HILL,2017-11-29,2017-12-28,FOOD & BEVERAGE,38.52,2017
,2017 OFFICE OF THE MINORITY LEADER,,GENERAL EXPENDITURES,SUPPLIES AND MATERIALS,DETAIL,2018-01-18,AP,969018,CITI PCARD-HUNAN DYNASTY,2017-11-29,2017-12-28,FOOD & BEVERAGE,100.82,2017
,2017 OFFICE OF THE MINORITY LEADER,,GENERAL EXPENDITURES,SUPPLIES AND MATERIALS,DETAIL,2018-01-18,AP,969018,CITI PCARD-USHR LONGWORTH FOOD CT,2017-11-29,2017-12-28,FOOD & BEVERAGE,60.6,2017
,2017 OFFICE OF THE MINORITY LEADER,,GENERAL EXPENDITURES,SUPPLIES AND MATERIALS,DETAIL,2018-01-18,AP,969018,CITI PCARD-WE THE PIZZA,2017-11-29,2017-12-28,FOOD & BEVERAGE,44.4,2017
,2017 OFFICE OF THE MINORITY LEADER,,GENERAL EXPENDITURES,SUPPLIES AND MATERIALS,DETAIL,2018-01-23,AP,E0593501,CAPITOL  HOST,2017-12-21,2017-12-21,FOOD & BEVERAGE,158.04,2017
,2017 OFFICE OF THE MINORITY LEADER,,GENERAL EXPENDITURES,SUPPLIES AND MATERIALS,DETAIL,2018-01-23,AP,E0593502,CAPITOL  HOST,2017-12-20,2017-12-20,FOOD & BEVERAGE,147.84,2017
,2017 OFFICE OF THE MINORITY LEADER,,GENERAL EXPENDITURES,SUPPLIES AND MATERIALS,DETAIL,2018-01-23,AP,E0593503,CAPITOL  HOST,2017-12-19,2017-12-19,FOOD & BEVERAGE,73.25,2017
,2017 OFFICE OF THE MINORITY LEADER,,GENERAL EXPENDITURES,SUPPLIES AND MATERIALS,DETAIL,2018-01-23,AP,E0593505,CAPITOL  HOST,2017-12-18,2017-12-18,FOOD & BEVERAGE,73.25,2017
,2017 OFFICE OF THE MINORITY LEADER,,GENERAL EXPENDITURES,SUPPLIES AND MATERIALS,DETAIL,2018-01-23,AP,E0593506,CAPITOL  HOST,2017-12-14,2017-12-14,FOOD & BEVERAGE,158.04,2017
,2017 OFFICE OF THE MINORITY LEADER,,GENERAL EXPENDITURES,SUPPLIES AND MATERIALS,DETAIL,2018-01-23,AP,E0593511,CAPITOL  HOST,2017-12-13,2017-12-13,FOOD & BEVERAGE,36.62,2017
,2017 OFFICE OF THE MINORITY LEADER,,GENERAL EXPENDITURES,SUPPLIES AND MATERIALS,DETAIL,2018-01-23,AP,E0593513,CAPITOL  HOST,2017-12-13,2017-12-13,FOOD & BEVERAGE,363.12,2017
,2017 OFFICE OF THE MINORITY LEADER,,GENERAL EXPENDITURES,SUPPLIES AND MATERIALS,DETAIL,2018-01-23,AP,E0593515,CAPITOL  HOST,2017-12-13,2017-12-13,FOOD & BEVERAGE,147.84,2017
,2017 OFFICE OF THE MINORITY LEADER,,GENERAL EXPENDITURES,SUPPLIES AND MATERIALS,DETAIL,2018-01-23,AP,E0593516,CAPITOL  HOST,2017-12-11,2017-12-11,FOOD & BEVERAGE,73.25,2017
,2017 OFFICE OF THE MINORITY LEADER,,GENERAL EXPENDITURES,SUPPLIES AND MATERIALS,DETAIL,2018-01-23,AP,E0593521,CAPITOL  HOST,2017-12-07,2017-12-07,FOOD & BEVERAGE,158.04,2017
,2017 OFFICE OF THE MINORITY LEADER,,GENERAL EXPENDITURES,SUPPLIES AND MATERIALS,SUBTOTAL,   ,   ,   ,   ,   ,   ,SUPPLIES AND MATERIALS TOTALS:,39578.53,2017
,2017 OFFICE OF THE MINORITY LEADER,,GENERAL EXPENDITURES,SUPPLIES AND MATERIALS,SUBTOTAL,   ,   ,   ,   ,   ,   ,GENERAL EXPENDITURES TOTALS:,175433.58,2017
,2017 OFFICE OF THE MINORITY LEADER,,GENERAL EXPENDITURES,SUPPLIES AND MATERIALS,GRAND TOTAL FOR ORGANIZATION,   ,   ,   ,   ,   ,   ,OFFICE TOTALS: ,175433.58,2017
,2018 OFFICE OF THE MAJORITY WHIP,,GENERAL EXPENDITURES,PERSONNEL COMPENSATION,DETAIL,   ,   ,   ,ACORNLEY MARK A.,2018-01-03,2018-03-31,FINANCIAL ADMINISTRATOR,3666.67,2018
,2018 OFFICE OF THE MAJORITY WHIP,,GENERAL EXPENDITURES,PERSONNEL COMPENSATION,DETAIL,   ,   ,   ,BAILEY LUCAS J,2018-01-03,2018-03-31,STAFF ASSISTANT,8800,2018
,2018 OFFICE OF THE MAJORITY WHIP,,GENERAL EXPENDITURES,PERSONNEL COMPENSATION,DETAIL,   ,   ,   ,BOND CHRISTOPHER J,2018-01-03,2018-03-31,COMMUNICATIONS DIRECTOR,30311.1,2018
,2018 OFFICE OF THE MAJORITY WHIP,,GENERAL EXPENDITURES,PERSONNEL COMPENSATION,DETAIL,   ,   ,   ,DEASE ALEXANDRA E,2018-02-01,2018-02-28,STAFF ASSISTANT,2916.67,2018
,2018 OFFICE OF THE MAJORITY WHIP,,GENERAL EXPENDITURES,PERSONNEL COMPENSATION,DETAIL,   ,   ,   ,DEASE ALEXANDRA E,2018-03-01,2018-03-31,CONSTITUENT SERVICE REP.,2916.67,2018
,2018 OFFICE OF THE MAJORITY WHIP,,GENERAL EXPENDITURES,PERSONNEL COMPENSATION,DETAIL,   ,   ,   ,FINE LAUREN R,2018-01-03,2018-03-31,PRESS SECRETARY,18861.11,2018
,2018 OFFICE OF THE MAJORITY WHIP,,GENERAL EXPENDITURES,PERSONNEL COMPENSATION,DETAIL,   ,   ,   ,GOSNELL ELLEN C,2018-01-03,2018-03-31,SCHEDULE COORDINATOR,10402.78,2018
,2018 OFFICE OF THE MAJORITY WHIP,,GENERAL EXPENDITURES,PERSONNEL COMPENSATION,DETAIL,   ,   ,   ,HAMILTON PARKER,2018-01-03,2018-03-31,COS TO THE CHIEF DEP WHIP,29333.33,2018
,2018 OFFICE OF THE MAJORITY WHIP,,GENERAL EXPENDITURES,PERSONNEL COMPENSATION,DETAIL,   ,   ,   ,HORTON BRETT H.,2018-01-03,2018-03-31,CHIEF OF STAFF,41873.33,2018
,2018 OFFICE OF THE MAJORITY WHIP,,GENERAL EXPENDITURES,PERSONNEL COMPENSATION,DETAIL,   ,   ,   ,HOWARD BENJAMIN R,2018-01-03,2018-03-31,FLOOR DIRECTOR,35444.43,2018
,2018 OFFICE OF THE MAJORITY WHIP,,GENERAL EXPENDITURES,PERSONNEL COMPENSATION,DETAIL,   ,   ,   ,HUDAK KELLEY K,2018-01-03,2018-03-31,BUSINESS COALITIONS COORD,20166.67,2018
,2018 OFFICE OF THE MAJORITY WHIP,,GENERAL EXPENDITURES,PERSONNEL COMPENSATION,DETAIL,   ,   ,   ,HUGHES WILLIAM J,2018-01-03,2018-03-31,POLICY DIRECTOR,41725.7,2018
,2018 OFFICE OF THE MAJORITY WHIP,,GENERAL EXPENDITURES,PERSONNEL COMPENSATION,DETAIL,   ,   ,   ,LEWIS WILLIAM M,2018-01-03,2018-03-31,STAFF ASSISTANT,8800,2018
,2018 OFFICE OF THE MAJORITY WHIP,,GENERAL EXPENDITURES,PERSONNEL COMPENSATION,DETAIL,   ,   ,   ,MCKEOGH KATHERINE A,2018-02-05,2018-03-31,PRESS ASSISTANT,7000,2018
,2018 OFFICE OF THE MAJORITY WHIP,,GENERAL EXPENDITURES,PERSONNEL COMPENSATION,DETAIL,   ,   ,   ,NALLS DENNIS A,2018-01-03,2018-02-28,STAFF ASSISTANT,1666.66,2018
,2018 OFFICE OF THE MAJORITY WHIP,,GENERAL EXPENDITURES,PERSONNEL COMPENSATION,DETAIL,   ,   ,   ,NALLS DENNIS A,2018-01-03,2018-03-31,STAFF ASSISTANT,9633.33,2018
,2018 OFFICE OF THE MAJORITY WHIP,,GENERAL EXPENDITURES,PERSONNEL COMPENSATION,DETAIL,   ,   ,   ,NAPIER BENJAMIN W,2018-01-03,2018-03-31,DEPUTY FLOOR DIRECTOR,18822.23,2018
,2018 OFFICE OF THE MAJORITY WHIP,,GENERAL EXPENDITURES,PERSONNEL COMPENSATION,DETAIL,   ,   ,   ,PLANNING DAVID M,2018-01-03,2018-03-31,FLOOR ASSISTANT,12222.23,2018
,2018 OFFICE OF THE MAJORITY WHIP,,GENERAL EXPENDITURES,PERSONNEL COMPENSATION,DETAIL,   ,   ,   ,POE PHILIP D,2018-01-03,2018-03-31,SPECIAL ASSISTANT TO THE CHIEF,7333.33,2018
,2018 OFFICE OF THE MAJORITY WHIP,,GENERAL EXPENDITURES,PERSONNEL COMPENSATION,DETAIL,   ,   ,   ,REISER MARTIN G,2018-01-03,2018-03-31,LEGISLATIVE COUNSEL,36958.33,2018
,2018 OFFICE OF THE MAJORITY WHIP,,GENERAL EXPENDITURES,PERSONNEL COMPENSATION,DETAIL,   ,   ,   ,REISING JOHN B,2018-01-03,2018-01-30,DIRECTOR OF OPERATIONS,1166.67,2018
,2018 OFFICE OF THE MAJORITY WHIP,,GENERAL EXPENDITURES,PERSONNEL COMPENSATION,DETAIL,   ,   ,   ,REISING JOHN B,2018-02-01,2018-03-31,DIRECTOR OF MEMBER SERVICES,6000,2018
,2018 OFFICE OF THE MAJORITY WHIP,,GENERAL EXPENDITURES,PERSONNEL COMPENSATION,DETAIL,   ,   ,   ,SADLOSKY DANIEL J,2018-01-03,2018-03-31,POLICY ASSISTANT,17600,2018
,2018 OFFICE OF THE MAJORITY WHIP,,GENERAL EXPENDITURES,PERSONNEL COMPENSATION,DETAIL,   ,   ,   ,WELKER RYLEE M,2018-01-03,2018-03-31,SPECIAL ASSISTANT TO THE CHIEF,11733.33,2018
,2018 OFFICE OF THE MAJORITY WHIP,,GENERAL EXPENDITURES,PERSONNEL COMPENSATION,DETAIL,   ,   ,   ,WIEAND JR JEFFREY L,2018-01-03,2018-03-31,COUNSEL,23222.23,2018
,2018 OFFICE OF THE MAJORITY WHIP,,GENERAL EXPENDITURES,PERSONNEL COMPENSATION,SUBTOTAL,   ,   ,   ,   ,   ,   ,PERSONNEL COMPENSATION TOTALS:,408576.8,2018
,2018 OFFICE OF THE MAJORITY WHIP,,GENERAL EXPENDITURES,TRAVEL,DETAIL,2018-01-29,AP,E0594787,NALLS DENNIS A.,2018-01-07,2018-01-08,TAXI/PARKING/TOLLS,104.85,2018
,2018 OFFICE OF THE MAJORITY WHIP,,GENERAL EXPENDITURES,TRAVEL,DETAIL,2018-02-09,AP,E0597938,PLANNING DAVID M.,2018-01-26,2018-01-26,TAXI/PARKING/TOLLS,22.4,2018
,2018 OFFICE OF THE MAJORITY WHIP,,GENERAL EXPENDITURES,TRAVEL,DETAIL,2018-02-13,AP,E0597937,LEWIS WILLIAM M.,2018-01-08,2018-01-16,PRIVATE AUTO MILEAGE,35.58,2018
,2018 OFFICE OF THE MAJORITY WHIP,,GENERAL EXPENDITURES,TRAVEL,DETAIL,2018-02-13,AP,E0597937,LEWIS WILLIAM M.,2018-01-16,2018-01-23,PRIVATE AUTO MILEAGE,65.81,2018
,2018 OFFICE OF THE MAJORITY WHIP,,GENERAL EXPENDITURES,TRAVEL,DETAIL,2018-02-13,AP,E0597937,LEWIS WILLIAM M.,2018-01-23,2018-01-29,PRIVATE AUTO MILEAGE,69.82,2018
,2018 OFFICE OF THE MAJORITY WHIP,,GENERAL EXPENDITURES,TRAVEL,DETAIL,2018-02-13,AP,E0597937,LEWIS WILLIAM M.,2018-01-24,2018-01-24,TAXI/PARKING/TOLLS,47.2,2018
,2018 OFFICE OF THE MAJORITY WHIP,,GENERAL EXPENDITURES,TRAVEL,DETAIL,2018-03-20,AP,E0609548,CITIBANK GOV CARD SERVICE,2018-01-05,2018-01-06,LODGING,104.16,2018
,2018 OFFICE OF THE MAJORITY WHIP,,GENERAL EXPENDITURES,TRAVEL,DETAIL,2018-03-21,AP,E0608947,LEWIS WILLIAM M.,2018-01-30,2018-01-30,PRIVATE AUTO MILEAGE,4.63,2018
,2018 OFFICE OF THE MAJORITY WHIP,,GENERAL EXPENDITURES,TRAVEL,DETAIL,2018-03-21,AP,E0608947,LEWIS WILLIAM M.,2018-02-05,2018-02-15,PRIVATE AUTO MILEAGE,67.58,2018
,2018 OFFICE OF THE MAJORITY WHIP,,GENERAL EXPENDITURES,TRAVEL,DETAIL,2018-03-21,AP,E0608947,LEWIS WILLIAM M.,2018-02-26,2018-02-27,PRIVATE AUTO MILEAGE,23.98,2018
,2018 OFFICE OF THE MAJORITY WHIP,,GENERAL EXPENDITURES,TRAVEL,DETAIL,2018-03-21,AP,E0608947,LEWIS WILLIAM M.,2018-03-05,2018-03-08,PRIVATE AUTO MILEAGE,19.89,2018
,2018 OFFICE OF THE MAJORITY WHIP,,GENERAL EXPENDITURES,TRAVEL,DETAIL,2018-03-22,AP,E0610121,CITIBANK GOV CARD SERVICE,2018-02-26,2018-03-13,COMMERCIAL TRANSPORTATION,1984.18,2018
,2018 OFFICE OF THE MAJORITY WHIP,,GENERAL EXPENDITURES,TRAVEL,DETAIL,2018-03-29,AP,E0610898,HORTON BRETT H.,2018-03-17,2018-03-17,CAR RENTAL,527.8,2018
,2018 OFFICE OF THE MAJORITY WHIP,,GENERAL EXPENDITURES,TRAVEL,DETAIL,2018-03-29,AP,E0610898,HORTON BRETT H.,2018-01-31,2018-01-31,PRIVATE AUTO MILEAGE,134.82,2018
,2018 OFFICE OF THE MAJORITY WHIP,,GENERAL EXPENDITURES,TRAVEL,DETAIL,2018-03-29,AP,E0610898,HORTON BRETT H.,2018-02-02,2018-02-02,PRIVATE AUTO MILEAGE,134.82,2018
,2018 OFFICE OF THE MAJORITY WHIP,,GENERAL EXPENDITURES,TRAVEL,DETAIL,2018-03-29,AP,E0610898,HORTON BRETT H.,2018-03-08,2018-03-09,PRIVATE AUTO MILEAGE,94.16,2018
,2018 OFFICE OF THE MAJORITY WHIP,,GENERAL EXPENDITURES,TRAVEL,DETAIL,2018-03-29,AP,E0610898,HORTON BRETT H.,2018-01-21,2018-03-13,TAXI/PARKING/TOLLS,221,2018
,2018 OFFICE OF THE MAJORITY WHIP,,GENERAL EXPENDITURES,TRAVEL,SUBTOTAL,   ,   ,   ,   ,   ,   ,TRAVEL TOTALS:,3662.68,2018
,2018 OFFICE OF THE MAJORITY WHIP,,GENERAL EXPENDITURES,RENT  COMMUNICATION  UTILITIES,DETAIL,2018-03-29,AP,E0610898,HORTON BRETT H.,2018-02-20,2018-02-20,POSTAGE / COURIER / BOX RENTAL,23.9,2018
,2018 OFFICE OF THE MAJORITY WHIP,,GENERAL EXPENDITURES,RENT  COMMUNICATION  UTILITIES,SUBTOTAL,   ,   ,   ,   ,   ,   ,RENT  COMMUNICATION  UTILITIES TOTALS:,23.9,2018
,2018 OFFICE OF THE MAJORITY WHIP,,GENERAL EXPENDITURES,PRINTING AND REPRODUCTION,DETAIL,2018-01-26,GL,PIX0075057, ,2018-01-01,2018-01-31,PHOTOGRAPHIC (TRANSFER),12.8,2018
,2018 OFFICE OF THE MAJORITY WHIP,,GENERAL EXPENDITURES,PRINTING AND REPRODUCTION,DETAIL,2018-02-22,GL,PIX0075827, ,2018-02-01,2018-02-28,PHOTOGRAPHIC (TRANSFER),104.1,2018
,2018 OFFICE OF THE MAJORITY WHIP,,GENERAL EXPENDITURES,PRINTING AND REPRODUCTION,DETAIL,2018-03-23,AP,E0610115,SHARP BUSINESS SYSTEMS,2017-11-29,2018-02-26,PRINTING & REPRODUCTION,820.38,2018
,2018 OFFICE OF THE MAJORITY WHIP,,GENERAL EXPENDITURES,PRINTING AND REPRODUCTION,DETAIL,2018-03-26,GL,PIX0076761, ,2018-03-01,2018-03-31,PHOTOGRAPHIC (TRANSFER),134.7,2018
,2018 OFFICE OF THE MAJORITY WHIP,,GENERAL EXPENDITURES,PRINTING AND REPRODUCTION,SUBTOTAL,   ,   ,   ,   ,   ,   ,PRINTING AND REPRODUCTION TOTALS:,1071.98,2018
,2018 OFFICE OF THE MAJORITY WHIP,,GENERAL EXPENDITURES,SUPPLIES AND MATERIALS,DETAIL,2018-01-29,AP,E0594789,QUENCH,2018-01-01,2018-01-31,WATER,46.53,2018
,2018 OFFICE OF THE MAJORITY WHIP,,GENERAL EXPENDITURES,SUPPLIES AND MATERIALS,DETAIL,2018-02-12,AP,E0597935,ICONSTITUENT LLC,2018-02-01,2018-02-28,PUBLICATIONS/REFERENCE MAT'L,500,2018
,2018 OFFICE OF THE MAJORITY WHIP,,GENERAL EXPENDITURES,SUPPLIES AND MATERIALS,DETAIL,2018-03-07,AP,E0604247,QUENCH,2018-03-01,2018-03-31,WATER,46.53,2018
,2018 OFFICE OF THE MAJORITY WHIP,,GENERAL EXPENDITURES,SUPPLIES AND MATERIALS,DETAIL,2018-03-29,AP,E0610898,HORTON BRETT H.,2018-03-13,2018-03-13,OFFICE SUPPLIES (OUTSIDE),158.81,2018
,2018 OFFICE OF THE MAJORITY WHIP,,GENERAL EXPENDITURES,SUPPLIES AND MATERIALS,SUBTOTAL,   ,   ,   ,   ,   ,   ,SUPPLIES AND MATERIALS TOTALS:,751.87,2018
,2018 OFFICE OF THE MAJORITY WHIP,,GENERAL EXPENDITURES,SUPPLIES AND MATERIALS,SUBTOTAL,   ,   ,   ,   ,   ,   ,GENERAL EXPENDITURES TOTALS:,414087.23,2018
,2018 OFFICE OF THE MAJORITY WHIP,,GENERAL EXPENDITURES,SUPPLIES AND MATERIALS,GRAND TOTAL FOR ORGANIZATION,   ,   ,   ,   ,   ,   ,OFFICE TOTALS: ,414087.23,2018
,2017 OFFICE OF THE MAJORITY WHIP,,GENERAL EXPENDITURES,PERSONNEL COMPENSATION,DETAIL,   ,   ,   ,ACORNLEY MARK A.,2018-01-01,2018-01-02,FINANCIAL ADMINISTRATOR,83.33,2017
,2017 OFFICE OF THE MAJORITY WHIP,,GENERAL EXPENDITURES,PERSONNEL COMPENSATION,DETAIL,   ,   ,   ,BAILEY LUCAS J,2018-01-01,2018-01-02,STAFF ASSISTANT,200,2017
,2017 OFFICE OF THE MAJORITY WHIP,,GENERAL EXPENDITURES,PERSONNEL COMPENSATION,DETAIL,   ,   ,   ,BOND CHRISTOPHER J,2018-01-01,2018-01-02,COMMUNICATIONS DIRECTOR,688.89,2017
,2017 OFFICE OF THE MAJORITY WHIP,,GENERAL EXPENDITURES,PERSONNEL COMPENSATION,DETAIL,   ,   ,   ,FINE LAUREN R,2018-01-01,2018-01-02,PRESS SECRETARY,388.89,2017
,2017 OFFICE OF THE MAJORITY WHIP,,GENERAL EXPENDITURES,PERSONNEL COMPENSATION,DETAIL,   ,   ,   ,GOSNELL ELLEN C,2018-01-01,2018-01-02,SCHEDULE COORDINATOR,222.22,2017
,2017 OFFICE OF THE MAJORITY WHIP,,GENERAL EXPENDITURES,PERSONNEL COMPENSATION,DETAIL,   ,   ,   ,HAMILTON PARKER,2018-01-01,2018-01-02,COS TO THE CHIEF DEP WHIP,666.67,2017
,2017 OFFICE OF THE MAJORITY WHIP,,GENERAL EXPENDITURES,PERSONNEL COMPENSATION,DETAIL,   ,   ,   ,HORTON BRETT H.,2018-01-01,2018-01-02,CHIEF OF STAFF,951.67,2017
,2017 OFFICE OF THE MAJORITY WHIP,,GENERAL EXPENDITURES,PERSONNEL COMPENSATION,DETAIL,   ,   ,   ,HOWARD BENJAMIN R,2018-01-01,2018-01-02,FLOOR DIRECTOR,805.56,2017
,2017 OFFICE OF THE MAJORITY WHIP,,GENERAL EXPENDITURES,PERSONNEL COMPENSATION,DETAIL,   ,   ,   ,HUDAK KELLEY K,2018-01-01,2018-01-02,BUSINESS COALITIONS COORD,458.33,2017
,2017 OFFICE OF THE MAJORITY WHIP,,GENERAL EXPENDITURES,PERSONNEL COMPENSATION,DETAIL,   ,   ,   ,HUGHES WILLIAM J,2018-01-01,2018-01-02,POLICY DIRECTOR,948.31,2017
,2017 OFFICE OF THE MAJORITY WHIP,,GENERAL EXPENDITURES,PERSONNEL COMPENSATION,DETAIL,   ,   ,   ,LEWIS WILLIAM M,2018-01-01,2018-01-02,STAFF ASSISTANT,200,2017
,2017 OFFICE OF THE MAJORITY WHIP,,GENERAL EXPENDITURES,PERSONNEL COMPENSATION,DETAIL,   ,   ,   ,NALLS DENNIS A,2017-10-01,2018-01-02,STAFF ASSISTANT,3532.99,2017
,2017 OFFICE OF THE MAJORITY WHIP,,GENERAL EXPENDITURES,PERSONNEL COMPENSATION,DETAIL,   ,   ,   ,NALLS DENNIS A,2017-12-01,2017-12-31,STAFF ASSISTANT,-1666.66,2017
,2017 OFFICE OF THE MAJORITY WHIP,,GENERAL EXPENDITURES,PERSONNEL COMPENSATION,DETAIL,   ,   ,   ,NAPIER BENJAMIN W,2018-01-01,2018-01-02,DEPUTY FLOOR DIRECTOR,427.78,2017
,2017 OFFICE OF THE MAJORITY WHIP,,GENERAL EXPENDITURES,PERSONNEL COMPENSATION,DETAIL,   ,   ,   ,PLANNING DAVID M,2018-01-01,2018-01-02,FLOOR ASSISTANT,277.78,2017
,2017 OFFICE OF THE MAJORITY WHIP,,GENERAL EXPENDITURES,PERSONNEL COMPENSATION,DETAIL,   ,   ,   ,POE PHILIP D,2017-12-01,2018-01-02,SPECIAL ASSISTANT TO THE CHIEF,1166.67,2017
,2017 OFFICE OF THE MAJORITY WHIP,,GENERAL EXPENDITURES,PERSONNEL COMPENSATION,DETAIL,   ,   ,   ,REISER MARTIN G,2018-01-01,2018-01-02,LEGISLATIVE COUNSEL,808.33,2017
,2017 OFFICE OF THE MAJORITY WHIP,,GENERAL EXPENDITURES,PERSONNEL COMPENSATION,DETAIL,   ,   ,   ,REISING JOHN B,2018-01-01,2018-01-02,DIRECTOR OF OPERATIONS,83.33,2017
,2017 OFFICE OF THE MAJORITY WHIP,,GENERAL EXPENDITURES,PERSONNEL COMPENSATION,DETAIL,   ,   ,   ,SADLOSKY DANIEL J,2018-01-01,2018-01-02,POLICY ASSISTANT,400,2017
,2017 OFFICE OF THE MAJORITY WHIP,,GENERAL EXPENDITURES,PERSONNEL COMPENSATION,DETAIL,   ,   ,   ,WELKER RYLEE M,2018-01-01,2018-01-02,SPECIAL ASSISTANT TO THE CHIEF,266.67,2017
,2017 OFFICE OF THE MAJORITY WHIP,,GENERAL EXPENDITURES,PERSONNEL COMPENSATION,DETAIL,   ,   ,   ,WIEAND JR JEFFREY L,2018-01-01,2018-01-02,COUNSEL,527.78,2017
,2017 OFFICE OF THE MAJORITY WHIP,,GENERAL EXPENDITURES,PERSONNEL COMPENSATION,SUBTOTAL,   ,   ,   ,   ,   ,   ,PERSONNEL COMPENSATION TOTALS:,11438.54,2017
,2017 OFFICE OF THE MAJORITY WHIP,,GENERAL EXPENDITURES,TRAVEL,DETAIL,2018-01-01,AP,E0584514,LEWIS WILLIAM M.,2017-10-23,2017-10-31,PRIVATE AUTO MILEAGE,39.86,2017
,2017 OFFICE OF THE MAJORITY WHIP,,GENERAL EXPENDITURES,TRAVEL,DETAIL,2018-01-01,AP,E0584514,LEWIS WILLIAM M.,2017-11-01,2017-11-07,PRIVATE AUTO MILEAGE,39.86,2017
,2017 OFFICE OF THE MAJORITY WHIP,,GENERAL EXPENDITURES,TRAVEL,DETAIL,2018-01-01,AP,E0584514,LEWIS WILLIAM M.,2017-11-08,2017-11-30,PRIVATE AUTO MILEAGE,41.68,2017
,2017 OFFICE OF THE MAJORITY WHIP,,GENERAL EXPENDITURES,TRAVEL,DETAIL,2018-01-01,AP,E0584514,LEWIS WILLIAM M.,2017-12-01,2017-12-01,PRIVATE AUTO MILEAGE,6.42,2017
,2017 OFFICE OF THE MAJORITY WHIP,,GENERAL EXPENDITURES,TRAVEL,DETAIL,2018-01-01,AP,E0584514,LEWIS WILLIAM M.,2017-12-01,2017-12-12,PRIVATE AUTO MILEAGE,86.67,2017
,2017 OFFICE OF THE MAJORITY WHIP,,GENERAL EXPENDITURES,TRAVEL,DETAIL,2018-01-04,AP,E0578761,GOSNELL ELLEN C.,2017-09-22,2017-09-22,LODGING,241.72,2017
,2017 OFFICE OF THE MAJORITY WHIP,,GENERAL EXPENDITURES,TRAVEL,DETAIL,2018-01-04,AP,E0578761,GOSNELL ELLEN C.,2017-09-22,2017-09-22,PRIVATE AUTO MILEAGE,3.21,2017
,2017 OFFICE OF THE MAJORITY WHIP,,GENERAL EXPENDITURES,TRAVEL,DETAIL,2018-01-04,AP,E0578761,GOSNELL ELLEN C.,2017-09-22,2017-09-24,TAXI/PARKING/TOLLS,88.43,2017
,2017 OFFICE OF THE MAJORITY WHIP,,GENERAL EXPENDITURES,TRAVEL,DETAIL,2018-01-04,AP,E0581757,FINE LAUREN R.,2017-12-10,2017-12-11,MEALS,43.07,2017
,2017 OFFICE OF THE MAJORITY WHIP,,GENERAL EXPENDITURES,TRAVEL,DETAIL,2018-01-04,AP,E0581757,FINE LAUREN R.,2017-12-10,2017-12-11,TAXI/PARKING/TOLLS,136.33,2017
,2017 OFFICE OF THE MAJORITY WHIP,,GENERAL EXPENDITURES,TRAVEL,DETAIL,2018-01-12,AP,E0584494,HORTON BRETT H.,2017-11-17,2017-11-22,LODGING,946.11,2017
,2017 OFFICE OF THE MAJORITY WHIP,,GENERAL EXPENDITURES,TRAVEL,DETAIL,2018-01-12,AP,E0584494,HORTON BRETT H.,2017-11-17,2017-11-26,CAR RENTAL,618.51,2017
,2017 OFFICE OF THE MAJORITY WHIP,,GENERAL EXPENDITURES,TRAVEL,DETAIL,2018-01-12,AP,E0584494,HORTON BRETT H.,2017-11-22,2017-11-22,GASOLINE,43.9,2017
,2017 OFFICE OF THE MAJORITY WHIP,,GENERAL EXPENDITURES,TRAVEL,DETAIL,2018-01-12,AP,E0584494,HORTON BRETT H.,2017-11-17,2017-12-14,TAXI/PARKING/TOLLS,319,2017
,2017 OFFICE OF THE MAJORITY WHIP,,GENERAL EXPENDITURES,TRAVEL,DETAIL,2018-01-29,AP,E0594788,CITIBANK GOV CARD SERVICE,2017-12-10,2017-12-11,COMMERCIAL TRANSPORTATION,238.4,2017
,2017 OFFICE OF THE MAJORITY WHIP,,GENERAL EXPENDITURES,TRAVEL,DETAIL,2018-01-29,AP,E0594788,CITIBANK GOV CARD SERVICE,2017-12-10,2017-12-11,LODGING,337.43,2017
,2017 OFFICE OF THE MAJORITY WHIP,,GENERAL EXPENDITURES,TRAVEL,DETAIL,2018-02-09,AP,E0597936,LEWIS WILLIAM M.,2017-12-13,2017-12-20,PRIVATE AUTO MILEAGE,16.69,2017
,2017 OFFICE OF THE MAJORITY WHIP,,GENERAL EXPENDITURES,TRAVEL,SUBTOTAL,   ,   ,   ,   ,   ,   ,TRAVEL TOTALS:,3247.29,2017
,2017 OFFICE OF THE MAJORITY WHIP,,GENERAL EXPENDITURES,PRINTING AND REPRODUCTION,DETAIL,2018-02-06,AP,E0596634,ACCURATE WORD LLC,2017-11-14,2017-11-14,PRINTING & REPRODUCTION,39.95,2017
,2017 OFFICE OF THE MAJORITY WHIP,,GENERAL EXPENDITURES,PRINTING AND REPRODUCTION,SUBTOTAL,   ,   ,   ,   ,   ,   ,PRINTING AND REPRODUCTION TOTALS:,39.95,2017
,2017 OFFICE OF THE MAJORITY WHIP,,GENERAL EXPENDITURES,SUPPLIES AND MATERIALS,DETAIL,2018-01-04,AP,E0581757,FINE LAUREN R.,2017-12-10,2017-12-10,FOOD & BEVERAGE,4.23,2017
,2017 OFFICE OF THE MAJORITY WHIP,,GENERAL EXPENDITURES,SUPPLIES AND MATERIALS,DETAIL,2018-01-21,AP,E0590841,CQ ROLL CALL INC,2018-01-01,2018-12-31,PUBLICATIONS/REFERENCE MAT'L,9998,2017
,2017 OFFICE OF THE MAJORITY WHIP,,GENERAL EXPENDITURES,SUPPLIES AND MATERIALS,DETAIL,2018-01-25,AP,E0594199,BGOV LLC,2018-01-01,2018-12-31,PUBLICATIONS/REFERENCE MAT'L,5940,2017
,2017 OFFICE OF THE MAJORITY WHIP,,GENERAL EXPENDITURES,SUPPLIES AND MATERIALS,DETAIL,2018-01-29,AP,E0594790,QUENCH,2017-11-01,2017-11-30,WATER,46.53,2017
,2017 OFFICE OF THE MAJORITY WHIP,,GENERAL EXPENDITURES,SUPPLIES AND MATERIALS,DETAIL,2018-01-29,AP,E0594791,QUENCH,2017-12-01,2017-12-31,WATER,46.53,2017
,2017 OFFICE OF THE MAJORITY WHIP,,GENERAL EXPENDITURES,SUPPLIES AND MATERIALS,DETAIL,2018-02-28,AP,E0602573,POLITICO LLC,2017-12-31,2018-12-30,PUBLICATIONS/REFERENCE MAT'L,16554.94,2017
,2017 OFFICE OF THE MAJORITY WHIP,,GENERAL EXPENDITURES,SUPPLIES AND MATERIALS,SUBTOTAL,   ,   ,   ,   ,   ,   ,SUPPLIES AND MATERIALS TOTALS:,32590.23,2017
,2017 OFFICE OF THE MAJORITY WHIP,,GENERAL EXPENDITURES,SUPPLIES AND MATERIALS,SUBTOTAL,   ,   ,   ,   ,   ,   ,GENERAL EXPENDITURES TOTALS:,47316.01,2017
,2017 OFFICE OF THE MAJORITY WHIP,,GENERAL EXPENDITURES,SUPPLIES AND MATERIALS,GRAND TOTAL FOR ORGANIZATION,   ,   ,   ,   ,   ,   ,OFFICE TOTALS: ,47316.01,2017
,2018 OFFICE OF THE MINORITY WHIP,,GENERAL EXPENDITURES,PERSONNEL COMPENSATION,DETAIL,   ,   ,   ,ABOUCHAR KEITH S.,2018-01-03,2018-03-31,SENIOR POLICY ADVISOR,34222.23,2018
,2018 OFFICE OF THE MINORITY WHIP,,GENERAL EXPENDITURES,PERSONNEL COMPENSATION,DETAIL,   ,   ,   ,AVILES DANIELLE R,2018-01-03,2018-03-31,DEPUTY FLOOR DIRECTOR,18333.33,2018
,2018 OFFICE OF THE MINORITY WHIP,,GENERAL EXPENDITURES,PERSONNEL COMPENSATION,DETAIL,   ,   ,   ,BAUSERMAN TRENTON D,2018-01-03,2018-03-31,SENIOR POLICY ADVISOR,29333.33,2018
,2018 OFFICE OF THE MINORITY WHIP,,GENERAL EXPENDITURES,PERSONNEL COMPENSATION,DETAIL,   ,   ,   ,BAYER JOHN S,2018-01-03,2018-03-31,STAFF ASSISTANT,6111.1,2018
,2018 OFFICE OF THE MINORITY WHIP,,GENERAL EXPENDITURES,PERSONNEL COMPENSATION,DETAIL,   ,   ,   ,BAYER JOHN S,2018-01-01,2018-02-28,STAFF ASSISTANT (OVERTIME),2956.7,2018
,2018 OFFICE OF THE MINORITY WHIP,,GENERAL EXPENDITURES,PERSONNEL COMPENSATION,DETAIL,   ,   ,   ,COLLINS MICHAEL E.,2018-01-03,2018-03-31,CHIEF DEPUTY WHIP,10388.9,2018
,2018 OFFICE OF THE MINORITY WHIP,,GENERAL EXPENDITURES,PERSONNEL COMPENSATION,DETAIL,   ,   ,   ,CORTINA JOSEPH B,2018-01-03,2018-03-08,SPECIAL ASSISTANT,5316.67,2018
,2018 OFFICE OF THE MINORITY WHIP,,GENERAL EXPENDITURES,PERSONNEL COMPENSATION,DETAIL,   ,   ,   ,CORTINA JOSEPH B,2018-01-01,2018-02-28,SPECIAL ASSISTANT (OVERTIME),1756.71,2018
,2018 OFFICE OF THE MINORITY WHIP,,GENERAL EXPENDITURES,PERSONNEL COMPENSATION,DETAIL,   ,   ,   ,COVEY-BRANDT ALEXIS,2018-01-03,2018-03-31,CHIEF OF STAFF,42166.67,2018
,2018 OFFICE OF THE MINORITY WHIP,,GENERAL EXPENDITURES,PERSONNEL COMPENSATION,DETAIL,   ,   ,   ,DWYER STEPHEN,2018-01-03,2018-03-31,DIGITAL DIR & POLICY ADV,16866.67,2018
,2018 OFFICE OF THE MINORITY WHIP,,GENERAL EXPENDITURES,PERSONNEL COMPENSATION,DETAIL,   ,   ,   ,FRY COURTNEY,2018-01-03,2018-03-31,DEP OUTREACH DIR & MEM SER ADV,30555.57,2018
,2018 OFFICE OF THE MINORITY WHIP,,GENERAL EXPENDITURES,PERSONNEL COMPENSATION,DETAIL,   ,   ,   ,GOFF SHUWANZA R,2018-01-03,2018-03-31,FLOOR DIRECTOR,30555.57,2018
,2018 OFFICE OF THE MINORITY WHIP,,GENERAL EXPENDITURES,PERSONNEL COMPENSATION,DETAIL,   ,   ,   ,GRANT KATHRYN L,2018-01-03,2018-03-31,COMM DIR AND SR ADVISOR,33000,2018
,2018 OFFICE OF THE MINORITY WHIP,,GENERAL EXPENDITURES,PERSONNEL COMPENSATION,DETAIL,   ,   ,   ,LEUSCHEN JAMES P.,2018-01-03,2018-03-31,SENIOR POLICY ADVISOR,34222.23,2018
,2018 OFFICE OF THE MINORITY WHIP,,GENERAL EXPENDITURES,PERSONNEL COMPENSATION,DETAIL,   ,   ,   ,MACDONALD CHARLENE,2018-01-03,2018-03-31,SENIOR POLICY ADVISOR,30555.57,2018
,2018 OFFICE OF THE MINORITY WHIP,,GENERAL EXPENDITURES,PERSONNEL COMPENSATION,DETAIL,   ,   ,   ,MAHR THOMAS,2018-01-03,2018-03-31,POLICY DIRECTOR,39111.1,2018
,2018 OFFICE OF THE MINORITY WHIP,,GENERAL EXPENDITURES,PERSONNEL COMPENSATION,DETAIL,   ,   ,   ,MARGOLIS SARA I,2018-01-03,2018-03-31,STAFF ASSISTANT,6111.1,2018
,2018 OFFICE OF THE MINORITY WHIP,,GENERAL EXPENDITURES,PERSONNEL COMPENSATION,DETAIL,   ,   ,   ,MARGOLIS SARA I,2018-01-01,2018-02-28,STAFF ASSISTANT (OVERTIME),1929.07,2018
,2018 OFFICE OF THE MINORITY WHIP,,GENERAL EXPENDITURES,PERSONNEL COMPENSATION,DETAIL,   ,   ,   ,MULKERRIN MARGARET A,2018-01-03,2018-03-31,PRESS AND RESEARCH ASSISTANT,12329.77,2018
,2018 OFFICE OF THE MINORITY WHIP,,GENERAL EXPENDITURES,PERSONNEL COMPENSATION,DETAIL,   ,   ,   ,NOTTER JAMES P,2018-01-03,2018-01-30,DISTRICT CHIEF OF STAFF,2800,2018
,2018 OFFICE OF THE MINORITY WHIP,,GENERAL EXPENDITURES,PERSONNEL COMPENSATION,DETAIL,   ,   ,   ,ROMICK BRIAN,2018-01-03,2018-03-31,DEPUTY CHIEF OF STAFF,41555.57,2018
,2018 OFFICE OF THE MINORITY WHIP,,GENERAL EXPENDITURES,PERSONNEL COMPENSATION,DETAIL,   ,   ,   ,ROWE DEBORAH M,2018-01-03,2018-03-31,SPECIAL ADVISER AND WHIP COORD,13688.9,2018
,2018 OFFICE OF THE MINORITY WHIP,,GENERAL EXPENDITURES,PERSONNEL COMPENSATION,DETAIL,   ,   ,   ,SAEZ MARIEL S,2018-01-03,2018-03-31,PRESS SECRETARY,2444.43,2018
,2018 OFFICE OF THE MINORITY WHIP,,GENERAL EXPENDITURES,PERSONNEL COMPENSATION,DETAIL,   ,   ,   ,SALAZAR RAYMOND J.,2018-01-03,2018-03-31,FLOOR ASSISTANT,13444.43,2018
,2018 OFFICE OF THE MINORITY WHIP,,GENERAL EXPENDITURES,PERSONNEL COMPENSATION,DETAIL,   ,   ,   ,SILVERBERG DANIEL I,2018-01-03,2018-03-31,SENIOR POLICY ADVISOR,17355.57,2018
,2018 OFFICE OF THE MINORITY WHIP,,GENERAL EXPENDITURES,PERSONNEL COMPENSATION,DETAIL,   ,   ,   ,SUGAR-CARLSGAARD JORDAN,2018-01-03,2018-03-31,DIR OF SCHED & SPECIAL EVENTS,20044.43,2018
,2018 OFFICE OF THE MINORITY WHIP,,GENERAL EXPENDITURES,PERSONNEL COMPENSATION,DETAIL,   ,   ,   ,URRABAZO CLAUDIA,2018-01-03,2018-03-31,DEP. DIR OF MBR SER & OUTR ADV,22488.9,2018
,2018 OFFICE OF THE MINORITY WHIP,,GENERAL EXPENDITURES,PERSONNEL COMPENSATION,DETAIL,   ,   ,   ,WEISSMANN ADAM,2018-01-03,2018-03-31,SPEECHWRITER,18333.33,2018
,2018 OFFICE OF THE MINORITY WHIP,,GENERAL EXPENDITURES,PERSONNEL COMPENSATION,SUBTOTAL,   ,   ,   ,   ,   ,   ,PERSONNEL COMPENSATION TOTALS:,537977.85,2018
,2018 OFFICE OF THE MINORITY WHIP,,GENERAL EXPENDITURES,RENT  COMMUNICATION  UTILITIES,DETAIL,2018-02-19,AP,974834,CITI PCARD-USPS PO,2017-12-29,2018-01-26,POSTAGE / COURIER / BOX RENTAL,8.35,2018
,2018 OFFICE OF THE MINORITY WHIP,,GENERAL EXPENDITURES,RENT  COMMUNICATION  UTILITIES,SUBTOTAL,   ,   ,   ,   ,   ,   ,RENT  COMMUNICATION  UTILITIES TOTALS:,8.35,2018
,2018 OFFICE OF THE MINORITY WHIP,,GENERAL EXPENDITURES,PRINTING AND REPRODUCTION,DETAIL,2018-03-28,AP,E0611352,DAVID L ANDRUKITIS INC,2018-02-14,2018-02-14,PRINTING & REPRODUCTION,40,2018
,2018 OFFICE OF THE MINORITY WHIP,,GENERAL EXPENDITURES,PRINTING AND REPRODUCTION,DETAIL,2018-03-28,AP,E0611353,DAVID L ANDRUKITIS INC,2018-01-24,2018-01-24,PRINTING & REPRODUCTION,40,2018
,2018 OFFICE OF THE MINORITY WHIP,,GENERAL EXPENDITURES,PRINTING AND REPRODUCTION,SUBTOTAL,   ,   ,   ,   ,   ,   ,PRINTING AND REPRODUCTION TOTALS:,80,2018
,2018 OFFICE OF THE MINORITY WHIP,,GENERAL EXPENDITURES,PRINTING AND REPRODUCTION,SUBTOTAL,   ,   ,   ,   ,   ,   ,GENERAL EXPENDITURES TOTALS:,538066.2,2018
,2018 OFFICE OF THE MINORITY WHIP,,GENERAL EXPENDITURES,PRINTING AND REPRODUCTION,GRAND TOTAL FOR ORGANIZATION,   ,   ,   ,   ,   ,   ,OFFICE TOTALS: ,538066.2,2018
,2017 OFFICE OF THE MINORITY WHIP,,GENERAL EXPENDITURES,PERSONNEL COMPENSATION,DETAIL,   ,   ,   ,ABOUCHAR KEITH S.,2018-01-01,2018-01-02,SENIOR POLICY ADVISOR,777.78,2017
,2017 OFFICE OF THE MINORITY WHIP,,GENERAL EXPENDITURES,PERSONNEL COMPENSATION,DETAIL,   ,   ,   ,AVILES DANIELLE R,2018-01-01,2018-01-02,DEPUTY FLOOR DIRECTOR,416.67,2017
,2017 OFFICE OF THE MINORITY WHIP,,GENERAL EXPENDITURES,PERSONNEL COMPENSATION,DETAIL,   ,   ,   ,BAUSERMAN TRENTON D,2018-01-01,2018-01-02,SENIOR POLICY ADVISOR,666.67,2017
,2017 OFFICE OF THE MINORITY WHIP,,GENERAL EXPENDITURES,PERSONNEL COMPENSATION,DETAIL,   ,   ,   ,BAYER JOHN S,2018-01-01,2018-01-02,STAFF ASSISTANT,138.89,2017
,2017 OFFICE OF THE MINORITY WHIP,,GENERAL EXPENDITURES,PERSONNEL COMPENSATION,DETAIL,   ,   ,   ,BAYER JOHN S,2017-12-01,2017-12-31,STAFF ASSISTANT (OVERTIME),955.52,2017
,2017 OFFICE OF THE MINORITY WHIP,,GENERAL EXPENDITURES,PERSONNEL COMPENSATION,DETAIL,   ,   ,   ,COLLINS MICHAEL E.,2018-01-01,2018-01-02,CHIEF DEPUTY WHIP,236.11,2017
,2017 OFFICE OF THE MINORITY WHIP,,GENERAL EXPENDITURES,PERSONNEL COMPENSATION,DETAIL,   ,   ,   ,CORTINA JOSEPH B,2018-01-01,2018-01-02,SPECIAL ASSISTANT,161.11,2017
,2017 OFFICE OF THE MINORITY WHIP,,GENERAL EXPENDITURES,PERSONNEL COMPENSATION,DETAIL,   ,   ,   ,CORTINA JOSEPH B,2017-12-01,2017-12-31,SPECIAL ASSISTANT (OVERTIME),690.14,2017
,2017 OFFICE OF THE MINORITY WHIP,,GENERAL EXPENDITURES,PERSONNEL COMPENSATION,DETAIL,   ,   ,   ,COVEY-BRANDT ALEXIS,2018-01-01,2018-01-02,CHIEF OF STAFF,958.33,2017
,2017 OFFICE OF THE MINORITY WHIP,,GENERAL EXPENDITURES,PERSONNEL COMPENSATION,DETAIL,   ,   ,   ,DWYER STEPHEN,2018-01-01,2018-01-02,DIGITAL DIR & POLICY ADV,383.33,2017
,2017 OFFICE OF THE MINORITY WHIP,,GENERAL EXPENDITURES,PERSONNEL COMPENSATION,DETAIL,   ,   ,   ,FRY COURTNEY,2018-01-01,2018-01-02,DEP OUTREACH DIR & MEM SER ADV,694.44,2017
,2017 OFFICE OF THE MINORITY WHIP,,GENERAL EXPENDITURES,PERSONNEL COMPENSATION,DETAIL,   ,   ,   ,GOFF SHUWANZA R,2018-01-01,2018-01-02,FLOOR DIRECTOR,694.44,2017
,2017 OFFICE OF THE MINORITY WHIP,,GENERAL EXPENDITURES,PERSONNEL COMPENSATION,DETAIL,   ,   ,   ,GRANT KATHRYN L,2018-01-01,2018-01-02,COMM DIR AND SR ADVISOR,750,2017
,2017 OFFICE OF THE MINORITY WHIP,,GENERAL EXPENDITURES,PERSONNEL COMPENSATION,DETAIL,   ,   ,   ,LEUSCHEN JAMES P.,2018-01-01,2018-01-02,SENIOR POLICY ADVISOR,777.78,2017
,2017 OFFICE OF THE MINORITY WHIP,,GENERAL EXPENDITURES,PERSONNEL COMPENSATION,DETAIL,   ,   ,   ,MACDONALD CHARLENE,2018-01-01,2018-01-02,SENIOR POLICY ADVISOR,694.44,2017
,2017 OFFICE OF THE MINORITY WHIP,,GENERAL EXPENDITURES,PERSONNEL COMPENSATION,DETAIL,   ,   ,   ,MAHR THOMAS,2018-01-01,2018-01-02,POLICY DIRECTOR,888.89,2017
,2017 OFFICE OF THE MINORITY WHIP,,GENERAL EXPENDITURES,PERSONNEL COMPENSATION,DETAIL,   ,   ,   ,MAHR THOMAS,2017-12-01,2017-12-01,POLICY DIRECTOR (OTHER COMPENSATION),700,2017
,2017 OFFICE OF THE MINORITY WHIP,,GENERAL EXPENDITURES,PERSONNEL COMPENSATION,DETAIL,   ,   ,   ,MARGOLIS SARA I,2018-01-01,2018-01-02,STAFF ASSISTANT,138.89,2017
,2017 OFFICE OF THE MINORITY WHIP,,GENERAL EXPENDITURES,PERSONNEL COMPENSATION,DETAIL,   ,   ,   ,MARGOLIS SARA I,2017-12-01,2017-12-31,STAFF ASSISTANT (OVERTIME),919.46,2017
,2017 OFFICE OF THE MINORITY WHIP,,GENERAL EXPENDITURES,PERSONNEL COMPENSATION,DETAIL,   ,   ,   ,MULKERRIN MARGARET A,2018-01-01,2018-01-02,PRESS AND RESEARCH ASSISTANT,280.22,2017
,2017 OFFICE OF THE MINORITY WHIP,,GENERAL EXPENDITURES,PERSONNEL COMPENSATION,DETAIL,   ,   ,   ,NOTTER JAMES P,2018-01-01,2018-01-02,DISTRICT CHIEF OF STAFF,200,2017
,2017 OFFICE OF THE MINORITY WHIP,,GENERAL EXPENDITURES,PERSONNEL COMPENSATION,DETAIL,   ,   ,   ,ROMICK BRIAN,2018-01-01,2018-01-02,DEPUTY CHIEF OF STAFF,944.44,2017
,2017 OFFICE OF THE MINORITY WHIP,,GENERAL EXPENDITURES,PERSONNEL COMPENSATION,DETAIL,   ,   ,   ,ROWE DEBORAH M,2018-01-01,2018-01-02,SPECIAL ADVISER AND WHIP COORD,311.11,2017
,2017 OFFICE OF THE MINORITY WHIP,,GENERAL EXPENDITURES,PERSONNEL COMPENSATION,DETAIL,   ,   ,   ,SAEZ MARIEL S,2018-01-01,2018-01-02,PRESS SECRETARY,55.56,2017
,2017 OFFICE OF THE MINORITY WHIP,,GENERAL EXPENDITURES,PERSONNEL COMPENSATION,DETAIL,   ,   ,   ,SALAZAR RAYMOND J.,2018-01-01,2018-01-02,FLOOR ASSISTANT,305.56,2017
,2017 OFFICE OF THE MINORITY WHIP,,GENERAL EXPENDITURES,PERSONNEL COMPENSATION,DETAIL,   ,   ,   ,SALAZAR RAYMOND J.,2017-11-01,2017-11-01,FLOOR ASSISTANT (OTHER COMPENSATION),2000,2017
,2017 OFFICE OF THE MINORITY WHIP,,GENERAL EXPENDITURES,PERSONNEL COMPENSATION,DETAIL,   ,   ,   ,SILVERBERG DANIEL I,2018-01-01,2018-01-02,SENIOR POLICY ADVISOR,394.44,2017
,2017 OFFICE OF THE MINORITY WHIP,,GENERAL EXPENDITURES,PERSONNEL COMPENSATION,DETAIL,   ,   ,   ,SUGAR-CARLSGAARD JORDAN,2018-01-01,2018-01-02,DIR OF SCHED & SPECIAL EVENTS,455.56,2017
,2017 OFFICE OF THE MINORITY WHIP,,GENERAL EXPENDITURES,PERSONNEL COMPENSATION,DETAIL,   ,   ,   ,URRABAZO CLAUDIA,2018-01-01,2018-01-02,DEP. DIR OF MBR SER & OUTR ADV,511.11,2017
,2017 OFFICE OF THE MINORITY WHIP,,GENERAL EXPENDITURES,PERSONNEL COMPENSATION,DETAIL,   ,   ,   ,WEISSMANN ADAM,2018-01-01,2018-01-02,SPEECHWRITER,416.67,2017
,2017 OFFICE OF THE MINORITY WHIP,,GENERAL EXPENDITURES,PERSONNEL COMPENSATION,SUBTOTAL,   ,   ,   ,   ,   ,   ,PERSONNEL COMPENSATION TOTALS:,17517.56,2017
,2017 OFFICE OF THE MINORITY WHIP,,GENERAL EXPENDITURES,TRAVEL,DETAIL,2018-01-17,AP,968807,CITIBANK GOV CARD SERVICE,2017-11-13,2017-11-13,COMMERCIAL TRANSPORTATION,618.8,2017
,2017 OFFICE OF THE MINORITY WHIP,,GENERAL EXPENDITURES,TRAVEL,DETAIL,2018-01-17,AP,968807,CITIBANK GOV CARD SERVICE,2017-11-14,2017-11-14,COMMERCIAL TRANSPORTATION,385.2,2017
,2017 OFFICE OF THE MINORITY WHIP,,GENERAL EXPENDITURES,TRAVEL,DETAIL,2018-01-17,AP,968807,CITIBANK GOV CARD SERVICE,2017-11-16,2017-11-16,COMMERCIAL TRANSPORTATION,369.2,2017
,2017 OFFICE OF THE MINORITY WHIP,,GENERAL EXPENDITURES,TRAVEL,DETAIL,2018-01-17,AP,968807,CITIBANK GOV CARD SERVICE,2017-11-17,2017-11-17,COMMERCIAL TRANSPORTATION,30,2017
,2017 OFFICE OF THE MINORITY WHIP,,GENERAL EXPENDITURES,TRAVEL,DETAIL,2018-01-17,AP,968807,CITIBANK GOV CARD SERVICE,2017-11-20,2017-11-20,COMMERCIAL TRANSPORTATION,181.8,2017
,2017 OFFICE OF THE MINORITY WHIP,,GENERAL EXPENDITURES,TRAVEL,DETAIL,2018-01-17,AP,968807,CITIBANK GOV CARD SERVICE,2017-11-13,2017-11-16,LODGING,225.63,2017
,2017 OFFICE OF THE MINORITY WHIP,,GENERAL EXPENDITURES,TRAVEL,DETAIL,2018-01-17,AP,968807,CITIBANK GOV CARD SERVICE,2017-11-14,2017-11-14,LODGING,44.22,2017
,2017 OFFICE OF THE MINORITY WHIP,,GENERAL EXPENDITURES,TRAVEL,DETAIL,2018-01-17,AP,968807,CITIBANK GOV CARD SERVICE,2017-11-18,2017-11-20,LODGING,133.28,2017
,2017 OFFICE OF THE MINORITY WHIP,,GENERAL EXPENDITURES,TRAVEL,DETAIL,2018-01-17,AP,968807,CITIBANK GOV CARD SERVICE,2017-11-19,2017-11-19,LODGING,142.23,2017
,2017 OFFICE OF THE MINORITY WHIP,,GENERAL EXPENDITURES,TRAVEL,DETAIL,2018-01-17,AP,968807,CITIBANK GOV CARD SERVICE,2017-11-19,2017-11-22,LODGING,104.16,2017
,2017 OFFICE OF THE MINORITY WHIP,,GENERAL EXPENDITURES,TRAVEL,SUBTOTAL,   ,   ,   ,   ,   ,   ,TRAVEL TOTALS:,2234.52,2017
,2017 OFFICE OF THE MINORITY WHIP,,GENERAL EXPENDITURES,RENT  COMMUNICATION  UTILITIES,DETAIL,2018-01-10,AP,964713,CITIBANK P CARD,2017-10-28,2017-11-28,POSTAGE / COURIER / BOX RENTAL,-6.65,2017
,2017 OFFICE OF THE MINORITY WHIP,,GENERAL EXPENDITURES,RENT  COMMUNICATION  UTILITIES,DETAIL,2018-01-10,AP,964713,CITIBANK P CARD,2017-10-28,2017-11-28,UTILITIES,-97.9,2017
,2017 OFFICE OF THE MINORITY WHIP,,GENERAL EXPENDITURES,RENT  COMMUNICATION  UTILITIES,DETAIL,2018-01-18,AP,969018,CITI PCARD-METROCAST MARYLAND VIR,2017-11-29,2017-12-28,TELECOMSRV/EQ/TOLL CHARGE,48.95,2017
,2017 OFFICE OF THE MINORITY WHIP,,GENERAL EXPENDITURES,RENT  COMMUNICATION  UTILITIES,SUBTOTAL,   ,   ,   ,   ,   ,   ,RENT  COMMUNICATION  UTILITIES TOTALS:,-55.6,2017
,2017 OFFICE OF THE MINORITY WHIP,,GENERAL EXPENDITURES,PRINTING AND REPRODUCTION,DETAIL,2018-01-09,AP,964699,CITIBANK P CARD,2017-09-29,2017-10-27,PRINTING & REPRODUCTION,-12.95,2017
,2017 OFFICE OF THE MINORITY WHIP,,GENERAL EXPENDITURES,PRINTING AND REPRODUCTION,DETAIL,2018-01-09,AP,964699,CITIBANK P CARD,2017-09-29,2017-10-27,ADVERTISEMENTS,-98.37,2017
,2017 OFFICE OF THE MINORITY WHIP,,GENERAL EXPENDITURES,PRINTING AND REPRODUCTION,DETAIL,2018-01-10,AP,964713,CITIBANK P CARD,2017-10-28,2017-11-28,PRINTING & REPRODUCTION,-676.86,2017
,2017 OFFICE OF THE MINORITY WHIP,,GENERAL EXPENDITURES,PRINTING AND REPRODUCTION,DETAIL,2018-01-10,AP,964713,CITIBANK P CARD,2017-10-28,2017-11-28,ADVERTISEMENTS,-113.16,2017
,2017 OFFICE OF THE MINORITY WHIP,,GENERAL EXPENDITURES,PRINTING AND REPRODUCTION,DETAIL,2018-01-21,AP,E0592372,DAVID L ANDRUKITIS INC,2017-12-07,2017-12-07,PRINTING & REPRODUCTION,757.5,2017
,2017 OFFICE OF THE MINORITY WHIP,,GENERAL EXPENDITURES,PRINTING AND REPRODUCTION,DETAIL,2018-01-21,AP,E0592373,DAVID L ANDRUKITIS INC,2017-12-20,2017-12-20,PRINTING & REPRODUCTION,3274.6,2017
,2017 OFFICE OF THE MINORITY WHIP,,GENERAL EXPENDITURES,PRINTING AND REPRODUCTION,DETAIL,2018-03-30,AP,E0611349,DAVID L ANDRUKITIS INC,2017-12-20,2017-12-20,PRINTING & REPRODUCTION,1661.25,2017
,2017 OFFICE OF THE MINORITY WHIP,,GENERAL EXPENDITURES,PRINTING AND REPRODUCTION,SUBTOTAL,   ,   ,   ,   ,   ,   ,PRINTING AND REPRODUCTION TOTALS:,4792.01,2017
,2017 OFFICE OF THE MINORITY WHIP,,GENERAL EXPENDITURES,OTHER SERVICES,DETAIL,2018-01-09,AP,964699,CITIBANK P CARD,2017-09-29,2017-10-27,NON-TECHNOLOGY SERVICE CONTR,-167.87,2017
,2017 OFFICE OF THE MINORITY WHIP,,GENERAL EXPENDITURES,OTHER SERVICES,DETAIL,2018-01-10,AP,964713,CITIBANK P CARD,2017-10-28,2017-11-28,NON-TECHNOLOGY SERVICE CONTR,-53.9,2017
,2017 OFFICE OF THE MINORITY WHIP,,GENERAL EXPENDITURES,OTHER SERVICES,DETAIL,2018-01-18,AP,969018,CITI PCARD-AMAZON WEB SERVICES,2017-11-29,2017-12-28,WEB DEV HST EMAIL & RLTD SERV,28.46,2017
,2017 OFFICE OF THE MINORITY WHIP,,GENERAL EXPENDITURES,OTHER SERVICES,DETAIL,2018-01-18,AP,969018,CITI PCARD-CANVA 01792-,2017-11-29,2017-12-28,WEB DEV HST EMAIL & RLTD SERV,10,2017
,2017 OFFICE OF THE MINORITY WHIP,,GENERAL EXPENDITURES,OTHER SERVICES,DETAIL,2018-01-18,AP,969018,CITI PCARD-CANVA FOR WORK MONTHLY,2017-11-29,2017-12-28,WEB DEV HST EMAIL & RLTD SERV,12.95,2017
,2017 OFFICE OF THE MINORITY WHIP,,GENERAL EXPENDITURES,OTHER SERVICES,DETAIL,2018-01-18,AP,969018,CITI PCARD-GOOGLE  CLOUD_00ED7D-A,2017-11-29,2017-12-28,WEB DEV HST EMAIL & RLTD SERV,82.96,2017
,2017 OFFICE OF THE MINORITY WHIP,,GENERAL EXPENDITURES,OTHER SERVICES,DETAIL,2018-01-18,AP,969018,CITI PCARD-MAILCHIMP    MISC,2017-11-29,2017-12-28,WEB DEV HST EMAIL & RLTD SERV,9,2017
,2017 OFFICE OF THE MINORITY WHIP,,GENERAL EXPENDITURES,OTHER SERVICES,DETAIL,2018-01-18,AP,969018,CITI PCARD-MAILCHIMP    MONTHLY,2017-11-29,2017-12-28,WEB DEV HST EMAIL & RLTD SERV,150,2017
,2017 OFFICE OF THE MINORITY WHIP,,GENERAL EXPENDITURES,OTHER SERVICES,DETAIL,2018-01-18,AP,969018,CITI PCARD-WWW.1AND1.COM,2017-11-29,2017-12-28,WEB DEV HST EMAIL & RLTD SERV,53.9,2017
,2017 OFFICE OF THE MINORITY WHIP,,GENERAL EXPENDITURES,OTHER SERVICES,DETAIL,2018-01-25,AP,E0594196,LEIDOS DIGITAL SOLUTIONS INC,2017-11-05,2017-12-24,WEB DEV HST EMAIL & RLTD SERV,2511.6,2017
,2017 OFFICE OF THE MINORITY WHIP,,GENERAL EXPENDITURES,OTHER SERVICES,SUBTOTAL,   ,   ,   ,   ,   ,   ,OTHER SERVICES TOTALS:,2637.1,2017
,2017 OFFICE OF THE MINORITY WHIP,,GENERAL EXPENDITURES,SUPPLIES AND MATERIALS,DETAIL,2018-01-09,AP,964699,CITIBANK P CARD,2017-09-29,2017-10-27,SOFTWARE  LESS THAN  $500,-253.67,2017
,2017 OFFICE OF THE MINORITY WHIP,,GENERAL EXPENDITURES,SUPPLIES AND MATERIALS,DETAIL,2018-01-09,AP,964699,CITIBANK P CARD,2017-09-29,2017-10-27,PUBLICATIONS/REFERENCE MAT'L,-222.99,2017
,2017 OFFICE OF THE MINORITY WHIP,,GENERAL EXPENDITURES,SUPPLIES AND MATERIALS,DETAIL,2018-01-10,AP,964713,CITIBANK P CARD,2017-10-28,2017-11-28,OFFICE SUPPLIES (OUTSIDE),-778.1,2017
,2017 OFFICE OF THE MINORITY WHIP,,GENERAL EXPENDITURES,SUPPLIES AND MATERIALS,DETAIL,2018-01-10,AP,964713,CITIBANK P CARD,2017-10-28,2017-11-28,PUBLICATIONS/REFERENCE MAT'L,-153,2017
,2017 OFFICE OF THE MINORITY WHIP,,GENERAL EXPENDITURES,SUPPLIES AND MATERIALS,DETAIL,2018-01-18,AP,969018,CITI PCARD-AMAZON MKTPLACE PMTS,2017-11-29,2017-12-28,OFFICE SUPPLIES (OUTSIDE),33.99,2017
,2017 OFFICE OF THE MINORITY WHIP,,GENERAL EXPENDITURES,SUPPLIES AND MATERIALS,DETAIL,2018-01-18,AP,969018,CITI PCARD-AMAZON.COM,2017-11-29,2017-12-28,OFFICE SUPPLIES (OUTSIDE),13.99,2017
,2017 OFFICE OF THE MINORITY WHIP,,GENERAL EXPENDITURES,SUPPLIES AND MATERIALS,SUBTOTAL,   ,   ,   ,   ,   ,   ,SUPPLIES AND MATERIALS TOTALS:,-1359.78,2017
,2017 OFFICE OF THE MINORITY WHIP,,GENERAL EXPENDITURES,SUPPLIES AND MATERIALS,SUBTOTAL,   ,   ,   ,   ,   ,   ,GENERAL EXPENDITURES TOTALS:,25765.81,2017
,2017 OFFICE OF THE MINORITY WHIP,,GENERAL EXPENDITURES,SUPPLIES AND MATERIALS,GRAND TOTAL FOR ORGANIZATION,   ,   ,   ,   ,   ,   ,OFFICE TOTALS: ,25765.81,2017
,2018 DEMOCRATIC CAUCUS,,GENERAL EXPENDITURES,PERSONNEL COMPENSATION,DETAIL,   ,   ,   ,BACKEMEYER COURTNEY G,2018-01-03,2018-03-31,DIR OF STARTEGIC COMM,22000,2018
,2018 DEMOCRATIC CAUCUS,,GENERAL EXPENDITURES,PERSONNEL COMPENSATION,DETAIL,   ,   ,   ,BERNER ALAINA L,2018-01-03,2018-03-31,PRESS ASSISTANT,8555.56,2018
,2018 DEMOCRATIC CAUCUS,,GENERAL EXPENDITURES,PERSONNEL COMPENSATION,DETAIL,   ,   ,   ,CARRILLO MANUEL J,2018-01-03,2018-03-31,DIRECTOR OF OPERATIONS,14177.77,2018
,2018 DEMOCRATIC CAUCUS,,GENERAL EXPENDITURES,PERSONNEL COMPENSATION,DETAIL,   ,   ,   ,CASEY KEVIN,2018-01-03,2018-03-31,DIRECTOR OF POLICY,31777.77,2018
,2018 DEMOCRATIC CAUCUS,,GENERAL EXPENDITURES,PERSONNEL COMPENSATION,DETAIL,   ,   ,   ,ELLISON MELISSA J,2018-01-03,2018-03-31,LEGISLATIVE DIR./VICE CHAIR,19555.57,2018
,2018 DEMOCRATIC CAUCUS,,GENERAL EXPENDITURES,PERSONNEL COMPENSATION,DETAIL,   ,   ,   ,FISHER SULKALA MARGARET L,2018-01-03,2018-03-31,CHIEF OF STAFF/VICE CHAIR,39111.1,2018
,2018 DEMOCRATIC CAUCUS,,GENERAL EXPENDITURES,PERSONNEL COMPENSATION,DETAIL,   ,   ,   ,FRENCH LAUREN N,2018-01-03,2018-03-31,COMMUNICATIONS DIRECTOR,14666.67,2018
,2018 DEMOCRATIC CAUCUS,,GENERAL EXPENDITURES,PERSONNEL COMPENSATION,DETAIL,   ,   ,   ,GOLDBERG NICOLE E.,2018-01-03,2018-03-31,SR. CAUCUS POLICY ADVISOR,16622.23,2018
,2018 DEMOCRATIC CAUCUS,,GENERAL EXPENDITURES,PERSONNEL COMPENSATION,DETAIL,   ,   ,   ,HORTA CHRISTOFER,2018-01-03,2018-03-31,STAFF ASSISTANT,7333.33,2018
,2018 DEMOCRATIC CAUCUS,,GENERAL EXPENDITURES,PERSONNEL COMPENSATION,DETAIL,   ,   ,   ,HORTA CHRISTOFER,2018-01-01,2018-02-28,STAFF ASSISTANT (OVERTIME),2667.09,2018
,2018 DEMOCRATIC CAUCUS,,GENERAL EXPENDITURES,PERSONNEL COMPENSATION,DETAIL,   ,   ,   ,JACKSON AUDRA L,2018-03-03,2018-03-31,OUTREACH & SPECIAL PROJ COORD,3577.78,2018
,2018 DEMOCRATIC CAUCUS,,GENERAL EXPENDITURES,PERSONNEL COMPENSATION,DETAIL,   ,   ,   ,KEATING KATHERINE E.,2018-01-03,2018-03-31,CHIEF OF STAFF,23527.77,2018
,2018 DEMOCRATIC CAUCUS,,GENERAL EXPENDITURES,PERSONNEL COMPENSATION,DETAIL,   ,   ,   ,KELLEY PATRICK R,2018-01-03,2018-03-31,SENIOR ADVISOR/VICE CHAIR,30555.57,2018
,2018 DEMOCRATIC CAUCUS,,GENERAL EXPENDITURES,PERSONNEL COMPENSATION,DETAIL,   ,   ,   ,LOPEZ-SANDOVAL ELIZABETH,2018-01-03,2018-03-31,PRESS SEC&DIR OF HISPANIC MEDI,12222.23,2018
,2018 DEMOCRATIC CAUCUS,,GENERAL EXPENDITURES,PERSONNEL COMPENSATION,DETAIL,   ,   ,   ,NGUYEN ALEXANDER D,2018-01-03,2018-03-31,COMMUNICATIONS DIRECTOR/VICE C,14666.67,2018
,2018 DEMOCRATIC CAUCUS,,GENERAL EXPENDITURES,PERSONNEL COMPENSATION,DETAIL,   ,   ,   ,PERRY TROY A,2018-01-03,2018-03-31,DIR. OF MEMBER SERVICES & OUTR,20777.77,2018
,2018 DEMOCRATIC CAUCUS,,GENERAL EXPENDITURES,PERSONNEL COMPENSATION,DETAIL,   ,   ,   ,SACHSE ANDREW M,2018-01-03,2018-03-31,OUTREACH AND MEMBER SERVICES,8555.56,2018
,2018 DEMOCRATIC CAUCUS,,GENERAL EXPENDITURES,PERSONNEL COMPENSATION,DETAIL,   ,   ,   ,SANCHEZ CARLOS S.,2018-01-03,2018-03-31,EXECUTIVE DIRECTOR,37888.9,2018
,2018 DEMOCRATIC CAUCUS,,GENERAL EXPENDITURES,PERSONNEL COMPENSATION,DETAIL,   ,   ,   ,SCHUMACHER MATTHEW J,2018-01-03,2018-03-31,DIGITAL DIRECTOR,13055.56,2018
,2018 DEMOCRATIC CAUCUS,,GENERAL EXPENDITURES,PERSONNEL COMPENSATION,DETAIL,   ,   ,   ,SMITH SHANE T,2018-01-03,2018-03-31,OUTREACH & MEMBERS SVCS. ASST,10511.1,2018
,2018 DEMOCRATIC CAUCUS,,GENERAL EXPENDITURES,PERSONNEL COMPENSATION,SUBTOTAL,   ,   ,   ,   ,   ,   ,PERSONNEL COMPENSATION TOTALS:,351806,2018
,2018 DEMOCRATIC CAUCUS,,GENERAL EXPENDITURES,TRAVEL,DETAIL,2018-01-24,AP,E0594028,CARRILLO MANUEL J.,2018-01-08,2018-01-08,TAXI/PARKING/TOLLS,7.63,2018
,2018 DEMOCRATIC CAUCUS,,GENERAL EXPENDITURES,TRAVEL,DETAIL,2018-01-24,AP,E0594028,CARRILLO MANUEL J.,2018-01-09,2018-01-09,TAXI/PARKING/TOLLS,7.62,2018
,2018 DEMOCRATIC CAUCUS,,GENERAL EXPENDITURES,TRAVEL,DETAIL,2018-01-24,AP,E0594144,CARRILLO MANUEL J.,2018-01-16,2018-01-21,TAXI/PARKING/TOLLS,50.44,2018
,2018 DEMOCRATIC CAUCUS,,GENERAL EXPENDITURES,TRAVEL,DETAIL,2018-01-31,AP,E0595604,CARRILLO MANUEL J.,2018-01-29,2018-01-29,TAXI/PARKING/TOLLS,7.46,2018
,2018 DEMOCRATIC CAUCUS,,GENERAL EXPENDITURES,TRAVEL,DETAIL,2018-01-31,AP,E0595604,CARRILLO MANUEL J.,2018-01-30,2018-01-30,TAXI/PARKING/TOLLS,15.16,2018
,2018 DEMOCRATIC CAUCUS,,GENERAL EXPENDITURES,TRAVEL,DETAIL,2018-02-06,AP,E0595564,CITIBANK GOV CARD SERVICE,2018-01-19,2018-01-19,MEALS,29.37,2018
,2018 DEMOCRATIC CAUCUS,,GENERAL EXPENDITURES,TRAVEL,DETAIL,2018-03-05,AP,E0603549,COHEN NICOLE E.,2018-02-05,2018-02-07,TAXI/PARKING/TOLLS,70.96,2018
,2018 DEMOCRATIC CAUCUS,,GENERAL EXPENDITURES,TRAVEL,DETAIL,2018-03-07,AP,E0603551,NGUYEN ALEXANDER D,2018-02-13,2018-02-13,GASOLINE,32.62,2018
,2018 DEMOCRATIC CAUCUS,,GENERAL EXPENDITURES,TRAVEL,DETAIL,2018-03-07,AP,E0603552,HORTA CHRISTOFER,2018-02-02,2018-02-12,TAXI/PARKING/TOLLS,78.98,2018
,2018 DEMOCRATIC CAUCUS,,GENERAL EXPENDITURES,TRAVEL,DETAIL,2018-03-13,AP,E0605451,SCHUMACHER MATTHEW J.,2018-02-05,2018-02-09,CAR RENTAL,426.11,2018
,2018 DEMOCRATIC CAUCUS,,GENERAL EXPENDITURES,TRAVEL,DETAIL,2018-03-13,AP,E0605451,SCHUMACHER MATTHEW J.,2018-02-07,2018-02-07,GASOLINE,14.74,2018
,2018 DEMOCRATIC CAUCUS,,GENERAL EXPENDITURES,TRAVEL,DETAIL,2018-03-13,AP,E0605642,CARRILLO MANUEL J.,2018-02-01,2018-03-06,TAXI/PARKING/TOLLS,205.57,2018
,2018 DEMOCRATIC CAUCUS,,GENERAL EXPENDITURES,TRAVEL,DETAIL,2018-03-16,AP,E0607632,CITIBANK GOV CARD SERVICE,2018-02-05,2018-02-09,CAR RENTAL,3444.7,2018
,2018 DEMOCRATIC CAUCUS,,GENERAL EXPENDITURES,TRAVEL,DETAIL,2018-03-16,AP,E0607734,NGUYEN ALEXANDER D,2018-02-05,2018-02-09,CAR RENTAL,381.55,2018
,2018 DEMOCRATIC CAUCUS,,GENERAL EXPENDITURES,TRAVEL,DETAIL,2018-03-26,AP,E0610789,CARRILLO MANUEL J.,2018-03-13,2018-03-21,TAXI/PARKING/TOLLS,63.7,2018
,2018 DEMOCRATIC CAUCUS,,GENERAL EXPENDITURES,TRAVEL,SUBTOTAL,   ,   ,   ,   ,   ,   ,TRAVEL TOTALS:,4836.61,2018
,2018 DEMOCRATIC CAUCUS,,GENERAL EXPENDITURES,RENT  COMMUNICATION  UTILITIES,DETAIL,2018-02-19,AP,974834,CITI PCARD-CAPITOL HOST (RIDGEWEL,2017-12-29,2018-01-26,TEMPORARY SPACE RENTAL,250,2018
,2018 DEMOCRATIC CAUCUS,,GENERAL EXPENDITURES,RENT  COMMUNICATION  UTILITIES,DETAIL,2018-03-15,AP,978920,CITI PCARD-CAPITOL HOST (RIDGEWEL,2018-01-27,2018-02-28,TEMPORARY SPACE RENTAL,250,2018
,2018 DEMOCRATIC CAUCUS,,GENERAL EXPENDITURES,RENT  COMMUNICATION  UTILITIES,DETAIL,2018-03-15,AP,978920,CITI PCARD-FEDEX,2018-01-27,2018-02-28,POSTAGE / COURIER / BOX RENTAL,66.8,2018
,2018 DEMOCRATIC CAUCUS,,GENERAL EXPENDITURES,RENT  COMMUNICATION  UTILITIES,DETAIL,2018-03-15,AP,978920,CITI PCARD-FEDEXOFFICE,2018-01-27,2018-02-28,POSTAGE / COURIER / BOX RENTAL,26.94,2018
,2018 DEMOCRATIC CAUCUS,,GENERAL EXPENDITURES,RENT  COMMUNICATION  UTILITIES,SUBTOTAL,   ,   ,   ,   ,   ,   ,RENT  COMMUNICATION  UTILITIES TOTALS:,593.74,2018
,2018 DEMOCRATIC CAUCUS,,GENERAL EXPENDITURES,OTHER SERVICES,DETAIL,2018-03-15,AP,978920,CITI PCARD-CAPITOL HOST (RIDGEWEL,2018-01-27,2018-02-28,LAUNDRY SERVICES,250,2018
,2018 DEMOCRATIC CAUCUS,,GENERAL EXPENDITURES,OTHER SERVICES,DETAIL,2018-03-15,AP,978920,CITI PCARD-CLASSICLEANERS-LONGWOR,2018-01-27,2018-02-28,LAUNDRY SERVICES,135.92,2018
,2018 DEMOCRATIC CAUCUS,,GENERAL EXPENDITURES,OTHER SERVICES,SUBTOTAL,   ,   ,   ,   ,   ,   ,OTHER SERVICES TOTALS:,385.92,2018
,2018 DEMOCRATIC CAUCUS,,GENERAL EXPENDITURES,SUPPLIES AND MATERIALS,DETAIL,2018-01-24,AP,E0594145,CONGRESS CATERING LLC,2018-01-17,2018-01-17,FOOD & BEVERAGE,1294.5,2018
,2018 DEMOCRATIC CAUCUS,,GENERAL EXPENDITURES,SUPPLIES AND MATERIALS,DETAIL,2018-01-24,AP,E0594146,CONGRESS CATERING LLC,2018-01-20,2018-01-20,FOOD & BEVERAGE,2193.5,2018
,2018 DEMOCRATIC CAUCUS,,GENERAL EXPENDITURES,SUPPLIES AND MATERIALS,DETAIL,2018-01-24,AP,E0594202,CONGRESS CATERING LLC,2018-01-10,2018-01-10,FOOD & BEVERAGE,2027,2018
,2018 DEMOCRATIC CAUCUS,,GENERAL EXPENDITURES,SUPPLIES AND MATERIALS,DETAIL,2018-01-24,AP,E0594203,CONGRESS CATERING LLC,2018-01-09,2018-01-09,FOOD & BEVERAGE,1342,2018
,2018 DEMOCRATIC CAUCUS,,GENERAL EXPENDITURES,SUPPLIES AND MATERIALS,DETAIL,2018-01-31,AP,970531,POLITICO LLC,2018-02-01,2020-01-31,PUBLICATIONS/REFERENCE MAT'L,12315,2018
,2018 DEMOCRATIC CAUCUS,,GENERAL EXPENDITURES,SUPPLIES AND MATERIALS,DETAIL,2018-01-31,AP,E0595583,CONGRESS CATERING LLC,2018-01-29,2018-01-29,FOOD & BEVERAGE,3870,2018
,2018 DEMOCRATIC CAUCUS,,GENERAL EXPENDITURES,SUPPLIES AND MATERIALS,DETAIL,2018-02-19,AP,974834,CITI PCARD-AMAZON MKTPLACE PMTS,2017-12-29,2018-01-26,FOOD & BEVERAGE,1799.24,2018
,2018 DEMOCRATIC CAUCUS,,GENERAL EXPENDITURES,SUPPLIES AND MATERIALS,DETAIL,2018-02-19,AP,974834,CITI PCARD-AMAZON MKTPLACE PMTS W,2017-12-29,2018-01-26,FOOD & BEVERAGE,707.51,2018
,2018 DEMOCRATIC CAUCUS,,GENERAL EXPENDITURES,SUPPLIES AND MATERIALS,DETAIL,2018-02-19,AP,974834,CITI PCARD-AMAZON.COM,2017-12-29,2018-01-26,FOOD & BEVERAGE,157.15,2018
,2018 DEMOCRATIC CAUCUS,,GENERAL EXPENDITURES,SUPPLIES AND MATERIALS,DETAIL,2018-02-19,AP,974834,CITI PCARD-BETHESDA BAGELS OF DUP,2017-12-29,2018-01-26,FOOD & BEVERAGE,290,2018
,2018 DEMOCRATIC CAUCUS,,GENERAL EXPENDITURES,SUPPLIES AND MATERIALS,DETAIL,2018-02-19,AP,974834,CITI PCARD-CARMINE'S- DC,2017-12-29,2018-01-26,FOOD & BEVERAGE,2982.62,2018
,2018 DEMOCRATIC CAUCUS,,GENERAL EXPENDITURES,SUPPLIES AND MATERIALS,DETAIL,2018-02-19,AP,974834,CITI PCARD-CREAMERY DD,2017-12-29,2018-01-26,FOOD & BEVERAGE,36,2018
,2018 DEMOCRATIC CAUCUS,,GENERAL EXPENDITURES,SUPPLIES AND MATERIALS,DETAIL,2018-02-19,AP,974834,CITI PCARD-FIREHOOK CAPITOL HILL,2017-12-29,2018-01-26,FOOD & BEVERAGE,48,2018
,2018 DEMOCRATIC CAUCUS,,GENERAL EXPENDITURES,SUPPLIES AND MATERIALS,DETAIL,2018-02-19,AP,974834,CITI PCARD-HARRIS TEETER,2017-12-29,2018-01-26,FOOD & BEVERAGE,1207.39,2018
,2018 DEMOCRATIC CAUCUS,,GENERAL EXPENDITURES,SUPPLIES AND MATERIALS,DETAIL,2018-02-19,AP,974834,CITI PCARD-HARRISTEETER,2017-12-29,2018-01-26,FOOD & BEVERAGE,229.44,2018
,2018 DEMOCRATIC CAUCUS,,GENERAL EXPENDITURES,SUPPLIES AND MATERIALS,DETAIL,2018-02-19,AP,974834,CITI PCARD-WE THE PIZZA,2017-12-29,2018-01-26,FOOD & BEVERAGE,602.53,2018
,2018 DEMOCRATIC CAUCUS,,GENERAL EXPENDITURES,SUPPLIES AND MATERIALS,DETAIL,2018-02-20,AP,974882,POLITICO LLC,2018-02-01,2020-01-31,PUBLICATIONS/REFERENCE MAT'L,-12315,2018
,2018 DEMOCRATIC CAUCUS,,GENERAL EXPENDITURES,SUPPLIES AND MATERIALS,DETAIL,2018-02-28,AP,975516,DEER PARK,2018-01-31,2018-01-31,WATER,143.74,2018
,2018 DEMOCRATIC CAUCUS,,GENERAL EXPENDITURES,SUPPLIES AND MATERIALS,DETAIL,2018-03-06,AP,E0603546,CONGRESS CATERING LLC,2018-02-27,2018-02-27,FOOD & BEVERAGE,1372,2018
,2018 DEMOCRATIC CAUCUS,,GENERAL EXPENDITURES,SUPPLIES AND MATERIALS,DETAIL,2018-03-06,AP,E0603548,CONGRESS CATERING LLC,2018-02-27,2018-02-27,FOOD & BEVERAGE,1244.5,2018
,2018 DEMOCRATIC CAUCUS,,GENERAL EXPENDITURES,SUPPLIES AND MATERIALS,DETAIL,2018-03-06,AP,E0603550,CONGRESS CATERING LLC,2018-02-06,2018-02-06,FOOD & BEVERAGE,1471.5,2018
,2018 DEMOCRATIC CAUCUS,,GENERAL EXPENDITURES,SUPPLIES AND MATERIALS,DETAIL,2018-03-13,AP,E0605451,SCHUMACHER MATTHEW J.,2018-02-05,2018-02-05,OFFICE SUPPLIES (OUTSIDE),15.76,2018
,2018 DEMOCRATIC CAUCUS,,GENERAL EXPENDITURES,SUPPLIES AND MATERIALS,DETAIL,2018-03-15,AP,978920,CITI PCARD-AMAZON MKTPLACE PMTS,2018-01-27,2018-02-28,FOOD & BEVERAGE,227.25,2018
,2018 DEMOCRATIC CAUCUS,,GENERAL EXPENDITURES,SUPPLIES AND MATERIALS,DETAIL,2018-03-15,AP,978920,CITI PCARD-AMAZON MKTPLACE PMTS W,2018-01-27,2018-02-28,FOOD & BEVERAGE,76.3,2018
,2018 DEMOCRATIC CAUCUS,,GENERAL EXPENDITURES,SUPPLIES AND MATERIALS,DETAIL,2018-03-15,AP,978920,CITI PCARD-AMAZON MKTPLACE PMTS W,2018-01-27,2018-02-28,OFFICE SUPPLIES (OUTSIDE),21.98,2018
,2018 DEMOCRATIC CAUCUS,,GENERAL EXPENDITURES,SUPPLIES AND MATERIALS,DETAIL,2018-03-15,AP,978920,CITI PCARD-AMAZON.COM,2018-01-27,2018-02-28,FOOD & BEVERAGE,203.59,2018
,2018 DEMOCRATIC CAUCUS,,GENERAL EXPENDITURES,SUPPLIES AND MATERIALS,DETAIL,2018-03-15,AP,978920,CITI PCARD-BETHESDA BAGELS OF DUP,2018-01-27,2018-02-28,FOOD & BEVERAGE,1417.8,2018
,2018 DEMOCRATIC CAUCUS,,GENERAL EXPENDITURES,SUPPLIES AND MATERIALS,DETAIL,2018-03-15,AP,978920,CITI PCARD-CREAMERY DD,2018-01-27,2018-02-28,FOOD & BEVERAGE,18,2018
,2018 DEMOCRATIC CAUCUS,,GENERAL EXPENDITURES,SUPPLIES AND MATERIALS,DETAIL,2018-03-15,AP,978920,CITI PCARD-FIREHOOK CAPITOL HILL,2018-01-27,2018-02-28,FOOD & BEVERAGE,35,2018
,2018 DEMOCRATIC CAUCUS,,GENERAL EXPENDITURES,SUPPLIES AND MATERIALS,DETAIL,2018-03-15,AP,978920,CITI PCARD-HARRIS TEETER,2018-01-27,2018-02-28,FOOD & BEVERAGE,1883.47,2018
,2018 DEMOCRATIC CAUCUS,,GENERAL EXPENDITURES,SUPPLIES AND MATERIALS,DETAIL,2018-03-15,AP,978920,CITI PCARD-LEVELUP POTBELLY,2018-01-27,2018-02-28,FOOD & BEVERAGE,89.49,2018
,2018 DEMOCRATIC CAUCUS,,GENERAL EXPENDITURES,SUPPLIES AND MATERIALS,DETAIL,2018-03-15,AP,978920,CITI PCARD-MEI WAH RESTAURANT,2018-01-27,2018-02-28,FOOD & BEVERAGE,733.7,2018
,2018 DEMOCRATIC CAUCUS,,GENERAL EXPENDITURES,SUPPLIES AND MATERIALS,DETAIL,2018-03-15,AP,978920,CITI PCARD-MI CASITA BAKERY,2018-01-27,2018-02-28,FOOD & BEVERAGE,30,2018
,2018 DEMOCRATIC CAUCUS,,GENERAL EXPENDITURES,SUPPLIES AND MATERIALS,DETAIL,2018-03-15,AP,978920,CITI PCARD-POTBELLY,2018-01-27,2018-02-28,FOOD & BEVERAGE,430.49,2018
,2018 DEMOCRATIC CAUCUS,,GENERAL EXPENDITURES,SUPPLIES AND MATERIALS,DETAIL,2018-03-15,AP,978920,CITI PCARD-STAPLES,2018-01-27,2018-02-28,OFFICE SUPPLIES (OUTSIDE),653.08,2018
,2018 DEMOCRATIC CAUCUS,,GENERAL EXPENDITURES,SUPPLIES AND MATERIALS,DETAIL,2018-03-15,AP,978920,CITI PCARD-WE THE PIZZA,2018-01-27,2018-02-28,FOOD & BEVERAGE,181.2,2018
,2018 DEMOCRATIC CAUCUS,,GENERAL EXPENDITURES,SUPPLIES AND MATERIALS,DETAIL,2018-03-15,AP,978920,CITI PCARD-YES ORGANIC #9 8TH ST,2018-01-27,2018-02-28,FOOD & BEVERAGE,19.74,2018
,2018 DEMOCRATIC CAUCUS,,GENERAL EXPENDITURES,SUPPLIES AND MATERIALS,DETAIL,2018-03-16,AP,E0607632,CITIBANK GOV CARD SERVICE,2018-02-03,2018-02-07,FOOD & BEVERAGE,850.62,2018
,2018 DEMOCRATIC CAUCUS,,GENERAL EXPENDITURES,SUPPLIES AND MATERIALS,DETAIL,2018-03-26,AP,E0603547,CONGRESS CATERING LLC,2018-02-13,2018-02-13,FOOD & BEVERAGE,5515,2018
,2018 DEMOCRATIC CAUCUS,,GENERAL EXPENDITURES,SUPPLIES AND MATERIALS,DETAIL,2018-03-26,AP,E0610783,CONGRESS CATERING LLC,2018-03-19,2018-03-19,FOOD & BEVERAGE,3637.5,2018
,2018 DEMOCRATIC CAUCUS,,GENERAL EXPENDITURES,SUPPLIES AND MATERIALS,DETAIL,2018-03-26,AP,E0610784,CONGRESS CATERING LLC,2018-03-20,2018-03-20,FOOD & BEVERAGE,1342,2018
,2018 DEMOCRATIC CAUCUS,,GENERAL EXPENDITURES,SUPPLIES AND MATERIALS,DETAIL,2018-03-26,AP,E0610785,CONGRESS CATERING LLC,2018-03-21,2018-03-21,FOOD & BEVERAGE,1617,2018
,2018 DEMOCRATIC CAUCUS,,GENERAL EXPENDITURES,SUPPLIES AND MATERIALS,DETAIL,2018-03-28,AP,981046,DEER PARK,2018-02-28,2018-02-28,WATER,29.99,2018
,2018 DEMOCRATIC CAUCUS,,GENERAL EXPENDITURES,SUPPLIES AND MATERIALS,SUBTOTAL,   ,   ,   ,   ,   ,   ,SUPPLIES AND MATERIALS TOTALS:,42047.58,2018
,2018 DEMOCRATIC CAUCUS,,GENERAL EXPENDITURES,SUPPLIES AND MATERIALS,SUBTOTAL,   ,   ,   ,   ,   ,   ,GENERAL EXPENDITURES TOTALS:,399669.85,2018
,2018 DEMOCRATIC CAUCUS,,GENERAL EXPENDITURES,SUPPLIES AND MATERIALS,GRAND TOTAL FOR ORGANIZATION,   ,   ,   ,   ,   ,   ,OFFICE TOTALS: ,399669.85,2018
,2017 DEMOCRATIC CAUCUS,,GENERAL EXPENDITURES,PERSONNEL COMPENSATION,DETAIL,   ,   ,   ,BACKEMEYER COURTNEY G,2018-01-01,2018-01-02,DIR OF STARTEGIC COMM,935.62,2017
,2017 DEMOCRATIC CAUCUS,,GENERAL EXPENDITURES,PERSONNEL COMPENSATION,DETAIL,   ,   ,   ,BERNER ALAINA L,2018-01-01,2018-01-02,PRESS ASSISTANT,935.62,2017
,2017 DEMOCRATIC CAUCUS,,GENERAL EXPENDITURES,PERSONNEL COMPENSATION,DETAIL,   ,   ,   ,CARRILLO MANUEL J,2018-01-01,2018-01-02,DIRECTOR OF OPERATIONS,935.62,2017
,2017 DEMOCRATIC CAUCUS,,GENERAL EXPENDITURES,PERSONNEL COMPENSATION,DETAIL,   ,   ,   ,CASEY KEVIN,2018-01-01,2018-01-02,DIRECTOR OF POLICY,935.62,2017
,2017 DEMOCRATIC CAUCUS,,GENERAL EXPENDITURES,PERSONNEL COMPENSATION,DETAIL,   ,   ,   ,ELLISON MELISSA J,2017-12-01,2018-01-02,LEGISLATIVE DIR./VICE CHAIR,4478.68,2017
,2017 DEMOCRATIC CAUCUS,,GENERAL EXPENDITURES,PERSONNEL COMPENSATION,DETAIL,   ,   ,   ,FISHER SULKALA MARGARET L,2018-01-01,2018-01-02,CHIEF OF STAFF/VICE CHAIR,888.89,2017
,2017 DEMOCRATIC CAUCUS,,GENERAL EXPENDITURES,PERSONNEL COMPENSATION,DETAIL,   ,   ,   ,FRENCH LAUREN N,2017-12-01,2018-01-02,COMMUNICATIONS DIRECTOR,2824.53,2017
,2017 DEMOCRATIC CAUCUS,,GENERAL EXPENDITURES,PERSONNEL COMPENSATION,DETAIL,   ,   ,   ,GOLDBERG NICOLE E.,2017-12-01,2018-01-02,SR. CAUCUS POLICY ADVISOR,2935.62,2017
,2017 DEMOCRATIC CAUCUS,,GENERAL EXPENDITURES,PERSONNEL COMPENSATION,DETAIL,   ,   ,   ,HORTA CHRISTOFER,2017-12-01,2018-01-02,STAFF ASSISTANT,2880.08,2017
,2017 DEMOCRATIC CAUCUS,,GENERAL EXPENDITURES,PERSONNEL COMPENSATION,DETAIL,   ,   ,   ,HORTA CHRISTOFER,2017-12-01,2017-12-31,STAFF ASSISTANT (OVERTIME),1168.26,2017
,2017 DEMOCRATIC CAUCUS,,GENERAL EXPENDITURES,PERSONNEL COMPENSATION,DETAIL,   ,   ,   ,KEATING KATHERINE E.,2018-01-01,2018-01-02,CHIEF OF STAFF,534.72,2017
,2017 DEMOCRATIC CAUCUS,,GENERAL EXPENDITURES,PERSONNEL COMPENSATION,DETAIL,   ,   ,   ,KELLEY PATRICK R,2017-12-01,2018-01-02,SENIOR ADVISOR/VICE CHAIR,2671.82,2017
,2017 DEMOCRATIC CAUCUS,,GENERAL EXPENDITURES,PERSONNEL COMPENSATION,DETAIL,   ,   ,   ,LOPEZ-SANDOVAL ELIZABETH,2018-01-01,2018-01-02,PRESS SEC&DIR OF HISPANIC MEDI,935.62,2017
,2017 DEMOCRATIC CAUCUS,,GENERAL EXPENDITURES,PERSONNEL COMPENSATION,DETAIL,   ,   ,   ,NGUYEN ALEXANDER D,2017-12-01,2018-01-02,COMMUNICATIONS DIRECTOR/VICE C,4784.58,2017
,2017 DEMOCRATIC CAUCUS,,GENERAL EXPENDITURES,PERSONNEL COMPENSATION,DETAIL,   ,   ,   ,PERRY TROY A,2018-01-01,2018-01-02,DIR. OF MEMBER SERVICES & OUTR,880.08,2017
,2017 DEMOCRATIC CAUCUS,,GENERAL EXPENDITURES,PERSONNEL COMPENSATION,DETAIL,   ,   ,   ,SACHSE ANDREW M,2017-12-01,2018-01-02,OUTREACH AND MEMBER SERVICES,2935.62,2017
,2017 DEMOCRATIC CAUCUS,,GENERAL EXPENDITURES,PERSONNEL COMPENSATION,DETAIL,   ,   ,   ,SANCHEZ CARLOS S.,2017-12-01,2018-01-02,EXECUTIVE DIRECTOR,2416.66,2017
,2017 DEMOCRATIC CAUCUS,,GENERAL EXPENDITURES,PERSONNEL COMPENSATION,DETAIL,   ,   ,   ,SCHUMACHER MATTHEW J,2018-01-01,2018-01-02,DIGITAL DIRECTOR,935.62,2017
,2017 DEMOCRATIC CAUCUS,,GENERAL EXPENDITURES,PERSONNEL COMPENSATION,DETAIL,   ,   ,   ,SMITH SHANE T,2018-01-01,2018-01-02,OUTREACH & MEMBERS SVCS. ASST,880.08,2017
,2017 DEMOCRATIC CAUCUS,,GENERAL EXPENDITURES,PERSONNEL COMPENSATION,DETAIL,   ,   ,   ,WOODRUM JEREMY S,2017-12-01,2017-12-01,DEPUTY CHIEF OF STAFF,2000,2017
,2017 DEMOCRATIC CAUCUS,,GENERAL EXPENDITURES,PERSONNEL COMPENSATION,SUBTOTAL,   ,   ,   ,   ,   ,   ,PERSONNEL COMPENSATION TOTALS:,37893.34,2017
,2017 DEMOCRATIC CAUCUS,,GENERAL EXPENDITURES,TRAVEL,DETAIL,2018-01-12,AP,E0590338,CARRILLO MANUEL J.,2017-12-18,2017-12-18,TAXI/PARKING/TOLLS,9.06,2017
,2017 DEMOCRATIC CAUCUS,,GENERAL EXPENDITURES,TRAVEL,SUBTOTAL,   ,   ,   ,   ,   ,   ,TRAVEL TOTALS:,9.06,2017
,2017 DEMOCRATIC CAUCUS,,GENERAL EXPENDITURES,PRINTING AND REPRODUCTION,DETAIL,2018-01-05,AP,E0588060,ACCURATE WORD LLC,2017-12-29,2017-12-29,PRINTING & REPRODUCTION,69.95,2017
,2017 DEMOCRATIC CAUCUS,,GENERAL EXPENDITURES,PRINTING AND REPRODUCTION,DETAIL,2018-01-24,AP,E0594147,ACCURATE WORD LLC,2018-01-02,2018-01-02,PRINTING & REPRODUCTION,1618,2017
,2017 DEMOCRATIC CAUCUS,,GENERAL EXPENDITURES,PRINTING AND REPRODUCTION,SUBTOTAL,   ,   ,   ,   ,   ,   ,PRINTING AND REPRODUCTION TOTALS:,1687.95,2017
,2017 DEMOCRATIC CAUCUS,,GENERAL EXPENDITURES,SUPPLIES AND MATERIALS,DETAIL,2018-01-03,AP,E0584179,XEROX CORPORATION,2017-01-11,2017-01-12,OFFICE SUPPLIES (OUTSIDE),1347.95,2017
,2017 DEMOCRATIC CAUCUS,,GENERAL EXPENDITURES,SUPPLIES AND MATERIALS,DETAIL,2018-01-04,AP,E0580972,OCCASIONS CATERERS INC,2017-12-07,2017-12-07,FOOD & BEVERAGE,11105.88,2017
,2017 DEMOCRATIC CAUCUS,,GENERAL EXPENDITURES,SUPPLIES AND MATERIALS,DETAIL,2018-01-06,AP,E0588076,CITIBANK GOV CARD SERVICE,2017-12-14,2017-12-14,FOOD & BEVERAGE,31,2017
,2017 DEMOCRATIC CAUCUS,,GENERAL EXPENDITURES,SUPPLIES AND MATERIALS,DETAIL,2018-01-08,AP,E0584173,CONGRESS CATERING LLC,2017-12-19,2017-12-19,FOOD & BEVERAGE,1862,2017
,2017 DEMOCRATIC CAUCUS,,GENERAL EXPENDITURES,SUPPLIES AND MATERIALS,DETAIL,2018-01-10,AP,964619,DEER PARK,2017-12-31,2017-12-31,WATER,29.99,2017
,2017 DEMOCRATIC CAUCUS,,GENERAL EXPENDITURES,SUPPLIES AND MATERIALS,DETAIL,2018-01-12,AP,E0584174,CONGRESS CATERING LLC,2017-12-20,2017-12-20,FOOD & BEVERAGE,7676,2017
,2017 DEMOCRATIC CAUCUS,,GENERAL EXPENDITURES,SUPPLIES AND MATERIALS,DETAIL,2018-01-13,AP,E0588061,XEROX CORPORATION,2017-10-10,2017-10-10,OFFICE SUPPLIES (OUTSIDE),240,2017
,2017 DEMOCRATIC CAUCUS,,GENERAL EXPENDITURES,SUPPLIES AND MATERIALS,DETAIL,2018-01-16,AP,E0584176,NEOPOST USA INC,2017-08-09,2017-08-09,OFFICE SUPPLIES (OUTSIDE),2506,2017
,2017 DEMOCRATIC CAUCUS,,GENERAL EXPENDITURES,SUPPLIES AND MATERIALS,DETAIL,2018-01-18,AP,969018,CITI PCARD-AMAZON MKTPLACE PMTS,2017-11-29,2017-12-28,FOOD & BEVERAGE,293.03,2017
,2017 DEMOCRATIC CAUCUS,,GENERAL EXPENDITURES,SUPPLIES AND MATERIALS,DETAIL,2018-01-18,AP,969018,CITI PCARD-AMAZON MKTPLACE PMTS,2017-11-29,2017-12-28,OFFICE SUPPLIES (OUTSIDE),1993.73,2017
,2017 DEMOCRATIC CAUCUS,,GENERAL EXPENDITURES,SUPPLIES AND MATERIALS,DETAIL,2018-01-18,AP,969018,CITI PCARD-AMAZON MKTPLACE PMTS W,2017-11-29,2017-12-28,OFFICE SUPPLIES (OUTSIDE),90.25,2017
,2017 DEMOCRATIC CAUCUS,,GENERAL EXPENDITURES,SUPPLIES AND MATERIALS,DETAIL,2018-01-18,AP,969018,CITI PCARD-AMAZON.COM,2017-11-29,2017-12-28,FOOD & BEVERAGE,177.51,2017
,2017 DEMOCRATIC CAUCUS,,GENERAL EXPENDITURES,SUPPLIES AND MATERIALS,DETAIL,2018-01-18,AP,969018,CITI PCARD-AMAZON.COM,2017-11-29,2017-12-28,OFFICE SUPPLIES (OUTSIDE),60.75,2017
,2017 DEMOCRATIC CAUCUS,,GENERAL EXPENDITURES,SUPPLIES AND MATERIALS,DETAIL,2018-01-18,AP,969018,CITI PCARD-AMAZON.COM AMZN.COM/BI,2017-11-29,2017-12-28,FOOD & BEVERAGE,33.2,2017
,2017 DEMOCRATIC CAUCUS,,GENERAL EXPENDITURES,SUPPLIES AND MATERIALS,DETAIL,2018-01-18,AP,969018,CITI PCARD-AMAZON.COM AMZN.COM/BI,2017-11-29,2017-12-28,OFFICE SUPPLIES (OUTSIDE),14.99,2017
,2017 DEMOCRATIC CAUCUS,,GENERAL EXPENDITURES,SUPPLIES AND MATERIALS,DETAIL,2018-01-18,AP,969018,CITI PCARD-AMAZON.COM WWW.AMAZON.,2017-11-29,2017-12-28,OFFICE SUPPLIES (OUTSIDE),169.61,2017
,2017 DEMOCRATIC CAUCUS,,GENERAL EXPENDITURES,SUPPLIES AND MATERIALS,DETAIL,2018-01-18,AP,969018,CITI PCARD-B&H PHOTO 800-606-,2017-11-29,2017-12-28,OFFICE SUPPLIES (OUTSIDE),951.73,2017
,2017 DEMOCRATIC CAUCUS,,GENERAL EXPENDITURES,SUPPLIES AND MATERIALS,DETAIL,2018-01-18,AP,969018,CITI PCARD-CAPITOL HOST (RIDGEWEL,2017-11-29,2017-12-28,FOOD & BEVERAGE,1334.6,2017
,2017 DEMOCRATIC CAUCUS,,GENERAL EXPENDITURES,SUPPLIES AND MATERIALS,DETAIL,2018-01-18,AP,969018,CITI PCARD-CREAMERY DD,2017-11-29,2017-12-28,FOOD & BEVERAGE,82,2017
,2017 DEMOCRATIC CAUCUS,,GENERAL EXPENDITURES,SUPPLIES AND MATERIALS,DETAIL,2018-01-18,AP,969018,CITI PCARD-HARRIS TEETER,2017-11-29,2017-12-28,FOOD & BEVERAGE,1044.06,2017
,2017 DEMOCRATIC CAUCUS,,GENERAL EXPENDITURES,SUPPLIES AND MATERIALS,DETAIL,2018-01-18,AP,969018,CITI PCARD-MEI WAH RESTAURANT,2017-11-29,2017-12-28,FOOD & BEVERAGE,1427.2,2017
,2017 DEMOCRATIC CAUCUS,,GENERAL EXPENDITURES,SUPPLIES AND MATERIALS,DETAIL,2018-01-18,AP,969018,CITI PCARD-SAINT GERMAIN CATERING,2017-11-29,2017-12-28,FOOD & BEVERAGE,1597.48,2017
,2017 DEMOCRATIC CAUCUS,,GENERAL EXPENDITURES,SUPPLIES AND MATERIALS,DETAIL,2018-01-18,AP,969018,CITI PCARD-SQU SQ  COMPASS COFFEE,2017-11-29,2017-12-28,OFFICE SUPPLIES (OUTSIDE),132.63,2017
,2017 DEMOCRATIC CAUCUS,,GENERAL EXPENDITURES,SUPPLIES AND MATERIALS,DETAIL,2018-01-18,AP,969018,CITI PCARD-WE THE PIZZA,2017-11-29,2017-12-28,FOOD & BEVERAGE,210.9,2017
,2017 DEMOCRATIC CAUCUS,,GENERAL EXPENDITURES,SUPPLIES AND MATERIALS,DETAIL,2018-01-23,AP,E0586042,POLITICO LLC,2018-02-01,2020-01-31,PUBLICATIONS/REFERENCE MAT'L,12315,2017
,2017 DEMOCRATIC CAUCUS,,GENERAL EXPENDITURES,SUPPLIES AND MATERIALS,DETAIL,2018-01-31,AP,970531,POLITICO LLC,2018-02-01,2020-01-31,PUBLICATIONS/REFERENCE MAT'L,-12315,2017
,2017 DEMOCRATIC CAUCUS,,GENERAL EXPENDITURES,SUPPLIES AND MATERIALS,DETAIL,2018-02-20,AP,974882,POLITICO LLC,2018-02-01,2020-01-31,PUBLICATIONS/REFERENCE MAT'L,12315,2017
,2017 DEMOCRATIC CAUCUS,,GENERAL EXPENDITURES,SUPPLIES AND MATERIALS,SUBTOTAL,   ,   ,   ,   ,   ,   ,SUPPLIES AND MATERIALS TOTALS:,46727.49,2017
,2017 DEMOCRATIC CAUCUS,,GENERAL EXPENDITURES,SUPPLIES AND MATERIALS,SUBTOTAL,   ,   ,   ,   ,   ,   ,GENERAL EXPENDITURES TOTALS:,86317.84,2017
,2017 DEMOCRATIC CAUCUS,,GENERAL EXPENDITURES,SUPPLIES AND MATERIALS,GRAND TOTAL FOR ORGANIZATION,   ,   ,   ,   ,   ,   ,OFFICE TOTALS: ,86317.84,2017
,2018 REPUBLICAN CONFERENCE,,GENERAL EXPENDITURES,PERSONNEL COMPENSATION,DETAIL,   ,   ,   ,BRANTLEY KATELYN R,2018-01-03,2018-03-31,DIGITAL DIRECTOR,28111.1,2018
,2018 REPUBLICAN CONFERENCE,,GENERAL EXPENDITURES,PERSONNEL COMPENSATION,DETAIL,   ,   ,   ,CROCKER NICHOLAS L,2018-01-03,2018-03-31,MEMBER SERVICES COORDINATOR,14666.67,2018
,2018 REPUBLICAN CONFERENCE,,GENERAL EXPENDITURES,PERSONNEL COMPENSATION,DETAIL,   ,   ,   ,DEUTSCH JEREMY,2018-01-03,2018-03-31,CHIEF OF STAFF,40412.5,2018
,2018 REPUBLICAN CONFERENCE,,GENERAL EXPENDITURES,PERSONNEL COMPENSATION,DETAIL,   ,   ,   ,FINE GAVRIELA R,2018-01-03,2018-03-31,STAFF ASSIST/EXC ASSIST TO COS,9176.4,2018
,2018 REPUBLICAN CONFERENCE,,GENERAL EXPENDITURES,PERSONNEL COMPENSATION,DETAIL,   ,   ,   ,HALL MIKAYLA M,2018-01-03,2018-03-31,SPEECH WRITER,13444.43,2018
,2018 REPUBLICAN CONFERENCE,,GENERAL EXPENDITURES,PERSONNEL COMPENSATION,DETAIL,   ,   ,   ,HAUCK KARA,2018-01-03,2018-03-31,COMMUNICATIONS DIRECTOR,25761.11,2018
,2018 REPUBLICAN CONFERENCE,,GENERAL EXPENDITURES,PERSONNEL COMPENSATION,DETAIL,   ,   ,   ,HNAT OLIVIA R,2018-01-03,2018-03-31,NATIONAL PRESS SECRETARY,17111.1,2018
,2018 REPUBLICAN CONFERENCE,,GENERAL EXPENDITURES,PERSONNEL COMPENSATION,DETAIL,   ,   ,   ,HODSON NATHAN M,2018-01-03,2018-03-31,DEPUTY CHIEF OF STAFF,42166.67,2018
,2018 REPUBLICAN CONFERENCE,,GENERAL EXPENDITURES,PERSONNEL COMPENSATION,DETAIL,   ,   ,   ,JOHNSON STEVEN R,2018-01-03,2018-02-09,STAFF ASSISTANT,3340.27,2018
,2018 REPUBLICAN CONFERENCE,,GENERAL EXPENDITURES,PERSONNEL COMPENSATION,DETAIL,   ,   ,   ,KING EMILY P,2018-01-03,2018-03-31,SCHEDULER,15277.77,2018
,2018 REPUBLICAN CONFERENCE,,GENERAL EXPENDITURES,PERSONNEL COMPENSATION,DETAIL,   ,   ,   ,PAQUETTE CHERIE L,2018-01-05,2018-03-31,MEDIA AFFAIRS & EVENTS MANAGER,20066.67,2018
,2018 REPUBLICAN CONFERENCE,,GENERAL EXPENDITURES,PERSONNEL COMPENSATION,DETAIL,   ,   ,   ,ROGERS SARAH E,2018-01-03,2018-03-31,DIRECTOR OF MEMBER SERVICES,32388.9,2018
,2018 REPUBLICAN CONFERENCE,,GENERAL EXPENDITURES,PERSONNEL COMPENSATION,DETAIL,   ,   ,   ,ROOS AMBER E,2018-01-03,2018-03-31,FINANCE ASSISTANT,1882.23,2018
,2018 REPUBLICAN CONFERENCE,,GENERAL EXPENDITURES,PERSONNEL COMPENSATION,DETAIL,   ,   ,   ,ROSS JOHN E.,2018-01-03,2018-03-31,FINANCE DIRECTOR,2389.43,2018
,2018 REPUBLICAN CONFERENCE,,GENERAL EXPENDITURES,PERSONNEL COMPENSATION,DETAIL,   ,   ,   ,SMENTEK DAVID,2018-01-03,2018-03-31,POLICY COORDINATOR,7333.33,2018
,2018 REPUBLICAN CONFERENCE,,GENERAL EXPENDITURES,PERSONNEL COMPENSATION,DETAIL,   ,   ,   ,STEELE SOPHIA A,2018-01-03,2018-03-31,SPECIAL ASSISTANT,7944.43,2018
,2018 REPUBLICAN CONFERENCE,,GENERAL EXPENDITURES,PERSONNEL COMPENSATION,DETAIL,   ,   ,   ,THORNE DRAY A,2018-01-03,2018-03-31,SYSTEMS ADMINISTRATOR,21022.23,2018
,2018 REPUBLICAN CONFERENCE,,GENERAL EXPENDITURES,PERSONNEL COMPENSATION,SUBTOTAL,   ,   ,   ,   ,   ,   ,PERSONNEL COMPENSATION TOTALS:,302495.24,2018
,2018 REPUBLICAN CONFERENCE,,GENERAL EXPENDITURES,TRAVEL,DETAIL,2018-01-24,AP,E0593747,HODSON NATHAN,2018-01-04,2018-01-04,MEALS,82.77,2018
,2018 REPUBLICAN CONFERENCE,,GENERAL EXPENDITURES,TRAVEL,DETAIL,2018-01-24,AP,E0593747,HODSON NATHAN,2018-01-04,2018-01-04,PRIVATE AUTO MILEAGE,274.86,2018
,2018 REPUBLICAN CONFERENCE,,GENERAL EXPENDITURES,TRAVEL,DETAIL,2018-02-24,AP,E0602414,CITIBANK GOV CARD SERVICE,2018-01-04,2018-01-17,TAXI/PARKING/TOLLS,47.8,2018
,2018 REPUBLICAN CONFERENCE,,GENERAL EXPENDITURES,TRAVEL,SUBTOTAL,   ,   ,   ,   ,   ,   ,TRAVEL TOTALS:,405.43,2018
,2018 REPUBLICAN CONFERENCE,,GENERAL EXPENDITURES,RENT  COMMUNICATION  UTILITIES,DETAIL,2018-03-01,AP,E0603310,FEDEX,2018-01-29,2018-01-29,POSTAGE / COURIER / BOX RENTAL,26.28,2018
,2018 REPUBLICAN CONFERENCE,,GENERAL EXPENDITURES,RENT  COMMUNICATION  UTILITIES,DETAIL,2018-03-30,GL,GRP0076932, ,2018-03-01,2018-03-31,HIR GRAPHICS (TRANSFER),73,2018
,2018 REPUBLICAN CONFERENCE,,GENERAL EXPENDITURES,RENT  COMMUNICATION  UTILITIES,SUBTOTAL,   ,   ,   ,   ,   ,   ,RENT  COMMUNICATION  UTILITIES TOTALS:,99.28,2018
,2018 REPUBLICAN CONFERENCE,,GENERAL EXPENDITURES,PRINTING AND REPRODUCTION,DETAIL,2018-02-19,AP,974834,CITI PCARD-FACEBK FTRMQEN2V,2017-12-29,2018-01-26,ADVERTISEMENTS,428.57,2018
,2018 REPUBLICAN CONFERENCE,,GENERAL EXPENDITURES,PRINTING AND REPRODUCTION,DETAIL,2018-02-19,AP,974834,CITI PCARD-FACEBK RVWP8EJ2V,2017-12-29,2018-01-26,ADVERTISEMENTS,391.17,2018
,2018 REPUBLICAN CONFERENCE,,GENERAL EXPENDITURES,PRINTING AND REPRODUCTION,DETAIL,2018-02-19,AP,974834,CITI PCARD-FACEBK WDRUDEJ2V,2017-12-29,2018-01-26,ADVERTISEMENTS,750,2018
,2018 REPUBLICAN CONFERENCE,,GENERAL EXPENDITURES,PRINTING AND REPRODUCTION,DETAIL,2018-03-15,AP,978920,CITI PCARD-FACEBK 3RJ7QEE2V,2018-01-27,2018-02-28,ADVERTISEMENTS,750,2018
,2018 REPUBLICAN CONFERENCE,,GENERAL EXPENDITURES,PRINTING AND REPRODUCTION,DETAIL,2018-03-15,AP,978920,CITI PCARD-FACEBK 86Q2YE62V,2018-01-27,2018-02-28,ADVERTISEMENTS,750,2018
,2018 REPUBLICAN CONFERENCE,,GENERAL EXPENDITURES,PRINTING AND REPRODUCTION,DETAIL,2018-03-15,AP,978920,CITI PCARD-FACEBK VB67ZEWZU,2018-01-27,2018-02-28,ADVERTISEMENTS,247.24,2018
,2018 REPUBLICAN CONFERENCE,,GENERAL EXPENDITURES,PRINTING AND REPRODUCTION,DETAIL,2018-03-15,AP,978920,CITI PCARD-FACEBK WT8FFFA2V,2018-01-27,2018-02-28,ADVERTISEMENTS,750,2018
,2018 REPUBLICAN CONFERENCE,,GENERAL EXPENDITURES,PRINTING AND REPRODUCTION,DETAIL,2018-03-15,AP,978920,CITI PCARD-FEDEXOFFICE,2018-01-27,2018-02-28,PRINTING & REPRODUCTION,227.84,2018
,2018 REPUBLICAN CONFERENCE,,GENERAL EXPENDITURES,PRINTING AND REPRODUCTION,DETAIL,2018-03-15,AP,978920,CITI PCARD-NPRINT GRAPHIX,2018-01-27,2018-02-28,PRINTING & REPRODUCTION,466.76,2018
,2018 REPUBLICAN CONFERENCE,,GENERAL EXPENDITURES,PRINTING AND REPRODUCTION,SUBTOTAL,   ,   ,   ,   ,   ,   ,PRINTING AND REPRODUCTION TOTALS:,4761.58,2018
,2018 REPUBLICAN CONFERENCE,,GENERAL EXPENDITURES,OTHER SERVICES,DETAIL,2018-03-22,AP,E0609111,ELEVEN11 GROUP LLC,2018-04-01,2018-04-30,WEB DEV HST EMAIL & RLTD SERV,2545,2018
,2018 REPUBLICAN CONFERENCE,,GENERAL EXPENDITURES,OTHER SERVICES,SUBTOTAL,   ,   ,   ,   ,   ,   ,OTHER SERVICES TOTALS:,2545,2018
,2018 REPUBLICAN CONFERENCE,,GENERAL EXPENDITURES,SUPPLIES AND MATERIALS,DETAIL,2018-01-12,AP,E0587100,HAGUE QUALITY WATER OF MD INC,2018-01-01,2018-01-31,WATER,63,2018
,2018 REPUBLICAN CONFERENCE,,GENERAL EXPENDITURES,SUPPLIES AND MATERIALS,DETAIL,2018-01-23,AP,E0592568,CROCKER NICHOLAS L.,2018-01-12,2018-01-16,FOOD & BEVERAGE,466.89,2018
,2018 REPUBLICAN CONFERENCE,,GENERAL EXPENDITURES,SUPPLIES AND MATERIALS,DETAIL,2018-01-24,AP,E0593985,ARAMARK REFRESHMENT SERVICES,2018-01-12,2018-01-12,FOOD & BEVERAGE,638.19,2018
,2018 REPUBLICAN CONFERENCE,,GENERAL EXPENDITURES,SUPPLIES AND MATERIALS,DETAIL,2018-01-24,AP,E0593987,CROCKER NICHOLAS L.,2018-01-05,2018-01-05,FOOD & BEVERAGE,391.12,2018
,2018 REPUBLICAN CONFERENCE,,GENERAL EXPENDITURES,SUPPLIES AND MATERIALS,DETAIL,2018-01-26,AP,E0594371,CROCKER NICHOLAS L.,2018-01-24,2018-01-24,FOOD & BEVERAGE,1715.77,2018
,2018 REPUBLICAN CONFERENCE,,GENERAL EXPENDITURES,SUPPLIES AND MATERIALS,DETAIL,2018-01-31,AP,970362,HAGUE QUALITY WATER OF MD INC,2018-01-01,2018-01-31,WATER,-63,2018
,2018 REPUBLICAN CONFERENCE,,GENERAL EXPENDITURES,SUPPLIES AND MATERIALS,DETAIL,2018-02-05,AP,E0596839,HAGUE QUALITY WATER OF MD INC,2018-02-01,2018-02-28,WATER,63,2018
,2018 REPUBLICAN CONFERENCE,,GENERAL EXPENDITURES,SUPPLIES AND MATERIALS,DETAIL,2018-02-19,AP,974834,CITI PCARD-ADOBE SYSTEMS INC,2017-12-29,2018-01-26,SOFTWARE  LESS THAN  $500,518.1,2018
,2018 REPUBLICAN CONFERENCE,,GENERAL EXPENDITURES,SUPPLIES AND MATERIALS,DETAIL,2018-02-19,AP,974834,CITI PCARD-AMAZON MKTPLACE PMTS,2017-12-29,2018-01-26,OFFICE SUPPLIES (OUTSIDE),678.49,2018
,2018 REPUBLICAN CONFERENCE,,GENERAL EXPENDITURES,SUPPLIES AND MATERIALS,DETAIL,2018-02-19,AP,974834,CITI PCARD-AMAZON MKTPLACE PMTS W,2017-12-29,2018-01-26,OFFICE SUPPLIES (OUTSIDE),104.47,2018
,2018 REPUBLICAN CONFERENCE,,GENERAL EXPENDITURES,SUPPLIES AND MATERIALS,DETAIL,2018-02-19,AP,974834,CITI PCARD-AMAZON.COM,2017-12-29,2018-01-26,OFFICE SUPPLIES (OUTSIDE),434.86,2018
,2018 REPUBLICAN CONFERENCE,,GENERAL EXPENDITURES,SUPPLIES AND MATERIALS,DETAIL,2018-02-19,AP,974834,CITI PCARD-CARMINE'S- DC,2017-12-29,2018-01-26,FOOD & BEVERAGE,2498.6,2018
,2018 REPUBLICAN CONFERENCE,,GENERAL EXPENDITURES,SUPPLIES AND MATERIALS,DETAIL,2018-02-19,AP,974834,CITI PCARD-CATERING AUBONPAIN,2017-12-29,2018-01-26,FOOD & BEVERAGE,1015.07,2018
,2018 REPUBLICAN CONFERENCE,,GENERAL EXPENDITURES,SUPPLIES AND MATERIALS,DETAIL,2018-02-19,AP,974834,CITI PCARD-CHICK-FIL-A,2017-12-29,2018-01-26,FOOD & BEVERAGE,2850.75,2018
,2018 REPUBLICAN CONFERENCE,,GENERAL EXPENDITURES,SUPPLIES AND MATERIALS,DETAIL,2018-02-19,AP,974834,CITI PCARD-CORNER BAKERY,2017-12-29,2018-01-26,FOOD & BEVERAGE,3327,2018
,2018 REPUBLICAN CONFERENCE,,GENERAL EXPENDITURES,SUPPLIES AND MATERIALS,DETAIL,2018-02-19,AP,974834,CITI PCARD-DD/BR #335717 Q,2017-12-29,2018-01-26,FOOD & BEVERAGE,521.68,2018
,2018 REPUBLICAN CONFERENCE,,GENERAL EXPENDITURES,SUPPLIES AND MATERIALS,DETAIL,2018-02-19,AP,974834,CITI PCARD-GIANT,2017-12-29,2018-01-26,FOOD & BEVERAGE,243.14,2018
,2018 REPUBLICAN CONFERENCE,,GENERAL EXPENDITURES,SUPPLIES AND MATERIALS,DETAIL,2018-02-19,AP,974834,CITI PCARD-LEVELUP POTBELLY,2017-12-29,2018-01-26,FOOD & BEVERAGE,227.25,2018
,2018 REPUBLICAN CONFERENCE,,GENERAL EXPENDITURES,SUPPLIES AND MATERIALS,DETAIL,2018-02-19,AP,974834,CITI PCARD-LEVELUP SWEETGREEN,2017-12-29,2018-01-26,FOOD & BEVERAGE,268.36,2018
,2018 REPUBLICAN CONFERENCE,,GENERAL EXPENDITURES,SUPPLIES AND MATERIALS,DETAIL,2018-02-19,AP,974834,CITI PCARD-ROTI MODERN MED,2017-12-29,2018-01-26,FOOD & BEVERAGE,248,2018
,2018 REPUBLICAN CONFERENCE,,GENERAL EXPENDITURES,SUPPLIES AND MATERIALS,DETAIL,2018-02-19,AP,974834,CITI PCARD-SHOPPERS FOOD / PHAR,2017-12-29,2018-01-26,FOOD & BEVERAGE,5.82,2018
,2018 REPUBLICAN CONFERENCE,,GENERAL EXPENDITURES,SUPPLIES AND MATERIALS,DETAIL,2018-02-19,AP,974834,CITI PCARD-SQ  SQ  GREEK CATERING,2017-12-29,2018-01-26,FOOD & BEVERAGE,293.7,2018
,2018 REPUBLICAN CONFERENCE,,GENERAL EXPENDITURES,SUPPLIES AND MATERIALS,DETAIL,2018-02-19,AP,974834,CITI PCARD-ZAPIER.COM/CHARGE,2017-12-29,2018-01-26,SOFTWARE  LESS THAN  $500,75,2018
,2018 REPUBLICAN CONFERENCE,,GENERAL EXPENDITURES,SUPPLIES AND MATERIALS,DETAIL,2018-02-23,AP,E0602415,ARAMARK REFRESHMENT SERVICES,2018-01-01,2018-01-31,FOOD & BEVERAGE,1296,2018
,2018 REPUBLICAN CONFERENCE,,GENERAL EXPENDITURES,SUPPLIES AND MATERIALS,DETAIL,2018-02-28,AP,975516,DEER PARK,2018-01-31,2018-01-31,WATER,728.5,2018
,2018 REPUBLICAN CONFERENCE,,GENERAL EXPENDITURES,SUPPLIES AND MATERIALS,DETAIL,2018-03-12,AP,E0606519,HAGUE QUALITY WATER OF MD INC,2018-03-01,2018-03-31,WATER,63,2018
,2018 REPUBLICAN CONFERENCE,,GENERAL EXPENDITURES,SUPPLIES AND MATERIALS,DETAIL,2018-03-15,AP,978920,CITI PCARD-ADOBE SYSTEMS INC,2018-01-27,2018-02-28,SOFTWARE  LESS THAN  $500,518.1,2018
,2018 REPUBLICAN CONFERENCE,,GENERAL EXPENDITURES,SUPPLIES AND MATERIALS,DETAIL,2018-03-15,AP,978920,CITI PCARD-CATERING AUBONPAIN,2018-01-27,2018-02-28,FOOD & BEVERAGE,2378.18,2018
,2018 REPUBLICAN CONFERENCE,,GENERAL EXPENDITURES,SUPPLIES AND MATERIALS,DETAIL,2018-03-15,AP,978920,CITI PCARD-CHICK-FIL-A,2018-01-27,2018-02-28,FOOD & BEVERAGE,2370.3,2018
,2018 REPUBLICAN CONFERENCE,,GENERAL EXPENDITURES,SUPPLIES AND MATERIALS,DETAIL,2018-03-15,AP,978920,CITI PCARD-CORNER BAKERY,2018-01-27,2018-02-28,FOOD & BEVERAGE,2923.8,2018
,2018 REPUBLICAN CONFERENCE,,GENERAL EXPENDITURES,SUPPLIES AND MATERIALS,DETAIL,2018-03-15,AP,978920,CITI PCARD-CREAMERY DD,2018-01-27,2018-02-28,FOOD & BEVERAGE,34,2018
,2018 REPUBLICAN CONFERENCE,,GENERAL EXPENDITURES,SUPPLIES AND MATERIALS,DETAIL,2018-03-15,AP,978920,CITI PCARD-DT 656 CATERING,2018-01-27,2018-02-28,FOOD & BEVERAGE,1946.7,2018
,2018 REPUBLICAN CONFERENCE,,GENERAL EXPENDITURES,SUPPLIES AND MATERIALS,DETAIL,2018-03-15,AP,978920,CITI PCARD-LEVELUP POTBELLY,2018-01-27,2018-02-28,FOOD & BEVERAGE,1550.17,2018
,2018 REPUBLICAN CONFERENCE,,GENERAL EXPENDITURES,SUPPLIES AND MATERIALS,DETAIL,2018-03-15,AP,978920,CITI PCARD-ROTI MEDITERRANEAN GRI,2018-01-27,2018-02-28,FOOD & BEVERAGE,326.48,2018
,2018 REPUBLICAN CONFERENCE,,GENERAL EXPENDITURES,SUPPLIES AND MATERIALS,DETAIL,2018-03-15,AP,978920,CITI PCARD-SQ      SQ  ZORBAS CAF,2018-01-27,2018-02-28,FOOD & BEVERAGE,475.75,2018
,2018 REPUBLICAN CONFERENCE,,GENERAL EXPENDITURES,SUPPLIES AND MATERIALS,DETAIL,2018-03-15,AP,978920,CITI PCARD-SQ  SQ  BBQ BUS CATERI,2018-01-27,2018-02-28,FOOD & BEVERAGE,2065,2018
,2018 REPUBLICAN CONFERENCE,,GENERAL EXPENDITURES,SUPPLIES AND MATERIALS,DETAIL,2018-03-15,AP,978920,CITI PCARD-WE THE PIZZA,2018-01-27,2018-02-28,FOOD & BEVERAGE,182.04,2018
,2018 REPUBLICAN CONFERENCE,,GENERAL EXPENDITURES,SUPPLIES AND MATERIALS,DETAIL,2018-03-15,AP,978920,CITI PCARD-ZAPIER.COM/CHARGE,2018-01-27,2018-02-28,SOFTWARE  LESS THAN  $500,75,2018
,2018 REPUBLICAN CONFERENCE,,GENERAL EXPENDITURES,SUPPLIES AND MATERIALS,DETAIL,2018-03-26,AP,E0610729,ARAMARK REFRESHMENT SERVICES,2018-02-02,2018-02-02,FOOD & BEVERAGE,601.58,2018
,2018 REPUBLICAN CONFERENCE,,GENERAL EXPENDITURES,SUPPLIES AND MATERIALS,DETAIL,2018-03-26,AP,E0610740,ARAMARK REFRESHMENT SERVICES,2018-02-20,2018-02-20,WATER,66.49,2018
,2018 REPUBLICAN CONFERENCE,,GENERAL EXPENDITURES,SUPPLIES AND MATERIALS,DETAIL,2018-03-26,AP,E0610741,ARAMARK REFRESHMENT SERVICES,2018-03-05,2018-03-05,FOOD & BEVERAGE,605.92,2018
,2018 REPUBLICAN CONFERENCE,,GENERAL EXPENDITURES,SUPPLIES AND MATERIALS,DETAIL,2018-03-27,AP,981040,CITIBANK P CARD,2017-12-29,2018-01-26,OFFICE SUPPLIES (OUTSIDE),-1217.82,2018
,2018 REPUBLICAN CONFERENCE,,GENERAL EXPENDITURES,SUPPLIES AND MATERIALS,DETAIL,2018-03-28,AP,981046,DEER PARK,2018-02-28,2018-02-28,WATER,154.65,2018
,2018 REPUBLICAN CONFERENCE,,GENERAL EXPENDITURES,SUPPLIES AND MATERIALS,SUBTOTAL,   ,   ,   ,   ,   ,   ,SUPPLIES AND MATERIALS TOTALS:,33729.1,2018
,2018 REPUBLICAN CONFERENCE,,GENERAL EXPENDITURES,EQUIPMENT,DETAIL,2018-03-12,AP,E0605702,GULF PARTYLINE CORPORATION,2018-02-28,2018-02-28,COMPUTER SOFTW PURCH  LESS THAN $10 000,2500,2018
,2018 REPUBLICAN CONFERENCE,,GENERAL EXPENDITURES,EQUIPMENT,SUBTOTAL,   ,   ,   ,   ,   ,   ,EQUIPMENT TOTALS:,2500,2018
,2018 REPUBLICAN CONFERENCE,,GENERAL EXPENDITURES,EQUIPMENT,SUBTOTAL,   ,   ,   ,   ,   ,   ,GENERAL EXPENDITURES TOTALS:,346535.63,2018
,2018 REPUBLICAN CONFERENCE,,GENERAL EXPENDITURES,EQUIPMENT,GRAND TOTAL FOR ORGANIZATION,   ,   ,   ,   ,   ,   ,OFFICE TOTALS: ,346535.63,2018
,2017 REPUBLICAN CONFERENCE,,GENERAL EXPENDITURES,PERSONNEL COMPENSATION,DETAIL,   ,   ,   ,BARKLEY RACHEL K,2017-12-01,2017-12-31,DIRECTOR OF OUTREACH (OTHER COMPENSATION),375,2017
,2017 REPUBLICAN CONFERENCE,,GENERAL EXPENDITURES,PERSONNEL COMPENSATION,DETAIL,   ,   ,   ,BRANTLEY KATELYN R,2018-01-01,2018-01-02,DIGITAL DIRECTOR,638.89,2017
,2017 REPUBLICAN CONFERENCE,,GENERAL EXPENDITURES,PERSONNEL COMPENSATION,DETAIL,   ,   ,   ,CROCKER NICHOLAS L,2018-01-01,2018-01-02,MEMBER SERVICES COORDINATOR,333.33,2017
,2017 REPUBLICAN CONFERENCE,,GENERAL EXPENDITURES,PERSONNEL COMPENSATION,DETAIL,   ,   ,   ,DEUTSCH JEREMY,2018-01-01,2018-01-02,CHIEF OF STAFF,941.67,2017
,2017 REPUBLICAN CONFERENCE,,GENERAL EXPENDITURES,PERSONNEL COMPENSATION,DETAIL,   ,   ,   ,FINE GAVRIELA R,2018-01-01,2018-01-02,STAFF ASSIST/EXC ASSIST TO COS,198.61,2017
,2017 REPUBLICAN CONFERENCE,,GENERAL EXPENDITURES,PERSONNEL COMPENSATION,DETAIL,   ,   ,   ,HALL MIKAYLA M,2018-01-01,2018-01-02,SPEECH WRITER,305.56,2017
,2017 REPUBLICAN CONFERENCE,,GENERAL EXPENDITURES,PERSONNEL COMPENSATION,DETAIL,   ,   ,   ,HAUCK KARA,2018-01-01,2018-01-02,COMMUNICATIONS DIRECTOR,572.22,2017
,2017 REPUBLICAN CONFERENCE,,GENERAL EXPENDITURES,PERSONNEL COMPENSATION,DETAIL,   ,   ,   ,HAUCK KARA,2018-01-01,2018-01-02,COMMUNICATIONS DIRECTOR (OTHER COMPENSATION),1000,2017
,2017 REPUBLICAN CONFERENCE,,GENERAL EXPENDITURES,PERSONNEL COMPENSATION,DETAIL,   ,   ,   ,HNAT OLIVIA R,2018-01-01,2018-01-02,NATIONAL PRESS SECRETARY,388.89,2017
,2017 REPUBLICAN CONFERENCE,,GENERAL EXPENDITURES,PERSONNEL COMPENSATION,DETAIL,   ,   ,   ,HODSON NATHAN M,2018-01-01,2018-01-02,DEPUTY CHIEF OF STAFF,958.33,2017
,2017 REPUBLICAN CONFERENCE,,GENERAL EXPENDITURES,PERSONNEL COMPENSATION,DETAIL,   ,   ,   ,JOHNSON STEVEN R,2018-01-01,2018-01-02,STAFF ASSISTANT,180.56,2017
,2017 REPUBLICAN CONFERENCE,,GENERAL EXPENDITURES,PERSONNEL COMPENSATION,DETAIL,   ,   ,   ,KING EMILY P,2018-01-01,2018-01-02,SCHEDULER,326.39,2017
,2017 REPUBLICAN CONFERENCE,,GENERAL EXPENDITURES,PERSONNEL COMPENSATION,DETAIL,   ,   ,   ,ROGERS SARAH E,2018-01-01,2018-01-02,DIRECTOR OF MEMBER SERVICES,736.11,2017
,2017 REPUBLICAN CONFERENCE,,GENERAL EXPENDITURES,PERSONNEL COMPENSATION,DETAIL,   ,   ,   ,ROGERS SARAH E,2018-01-01,2018-01-02,DIRECTOR OF MEMBER SERVICES (OTHER COMPENSATION),1000,2017
,2017 REPUBLICAN CONFERENCE,,GENERAL EXPENDITURES,PERSONNEL COMPENSATION,DETAIL,   ,   ,   ,ROOS AMBER E,2018-01-01,2018-01-02,FINANCE ASSISTANT,42.78,2017
,2017 REPUBLICAN CONFERENCE,,GENERAL EXPENDITURES,PERSONNEL COMPENSATION,DETAIL,   ,   ,   ,ROSS JOHN E.,2018-01-01,2018-01-02,FINANCE DIRECTOR,54.31,2017
,2017 REPUBLICAN CONFERENCE,,GENERAL EXPENDITURES,PERSONNEL COMPENSATION,DETAIL,   ,   ,   ,SMENTEK DAVID,2018-01-01,2018-01-02,POLICY COORDINATOR,166.67,2017
,2017 REPUBLICAN CONFERENCE,,GENERAL EXPENDITURES,PERSONNEL COMPENSATION,DETAIL,   ,   ,   ,STEELE SOPHIA A,2018-01-01,2018-01-02,SPECIAL ASSISTANT,180.56,2017
,2017 REPUBLICAN CONFERENCE,,GENERAL EXPENDITURES,PERSONNEL COMPENSATION,DETAIL,   ,   ,   ,THORNE DRAY A,2018-01-01,2018-01-02,SYSTEMS ADMINISTRATOR,477.78,2017
,2017 REPUBLICAN CONFERENCE,,GENERAL EXPENDITURES,PERSONNEL COMPENSATION,SUBTOTAL,   ,   ,   ,   ,   ,   ,PERSONNEL COMPENSATION TOTALS:,8877.66,2017
,2017 REPUBLICAN CONFERENCE,,GENERAL EXPENDITURES,TRAVEL,DETAIL,2018-01-10,AP,E0589376,CITIBANK GOV CARD SERVICE,2017-12-06,2017-12-20,TAXI/PARKING/TOLLS,62.33,2017
,2017 REPUBLICAN CONFERENCE,,GENERAL EXPENDITURES,TRAVEL,DETAIL,2018-01-11,AP,E0586002,BARKLEY RACHEL K.,2017-12-07,2017-12-08,COMMERCIAL TRANSPORTATION,319.4,2017
,2017 REPUBLICAN CONFERENCE,,GENERAL EXPENDITURES,TRAVEL,DETAIL,2018-01-11,AP,E0586002,BARKLEY RACHEL K.,2017-12-07,2017-12-08,LODGING,289.47,2017
,2017 REPUBLICAN CONFERENCE,,GENERAL EXPENDITURES,TRAVEL,DETAIL,2018-01-11,AP,E0586002,BARKLEY RACHEL K.,2017-12-07,2017-12-08,TAXI/PARKING/TOLLS,50,2017
,2017 REPUBLICAN CONFERENCE,,GENERAL EXPENDITURES,TRAVEL,SUBTOTAL,   ,   ,   ,   ,   ,   ,TRAVEL TOTALS:,721.2,2017
,2017 REPUBLICAN CONFERENCE,,GENERAL EXPENDITURES,PRINTING AND REPRODUCTION,DETAIL,2018-01-18,AP,969018,CITI PCARD-FACEBK 3636AEE2V,2017-11-29,2017-12-28,ADVERTISEMENTS,750,2017
,2017 REPUBLICAN CONFERENCE,,GENERAL EXPENDITURES,PRINTING AND REPRODUCTION,DETAIL,2018-01-18,AP,969018,CITI PCARD-FACEBK 96BCPE62V,2017-11-29,2017-12-28,ADVERTISEMENTS,750,2017
,2017 REPUBLICAN CONFERENCE,,GENERAL EXPENDITURES,PRINTING AND REPRODUCTION,DETAIL,2018-01-18,AP,969018,CITI PCARD-FACEBK AAQD8ES2V,2017-11-29,2017-12-28,ADVERTISEMENTS,750,2017
,2017 REPUBLICAN CONFERENCE,,GENERAL EXPENDITURES,PRINTING AND REPRODUCTION,DETAIL,2018-01-18,AP,969018,CITI PCARD-FACEBK RX8JDES2V,2017-11-29,2017-12-28,ADVERTISEMENTS,750,2017
,2017 REPUBLICAN CONFERENCE,,GENERAL EXPENDITURES,PRINTING AND REPRODUCTION,DETAIL,2018-01-18,AP,969018,CITI PCARD-FACEBK XDQX7ES2V,2017-11-29,2017-12-28,ADVERTISEMENTS,227.67,2017
,2017 REPUBLICAN CONFERENCE,,GENERAL EXPENDITURES,PRINTING AND REPRODUCTION,DETAIL,2018-02-19,AP,974834,CITI PCARD-FACEBK FTRMQEN2V,2017-12-29,2017-12-30,ADVERTISEMENTS,321.43,2017
,2017 REPUBLICAN CONFERENCE,,GENERAL EXPENDITURES,PRINTING AND REPRODUCTION,DETAIL,2018-02-19,AP,974834,CITI PCARD-FACEBK MRX4MEN2V,2017-12-29,2017-12-30,ADVERTISEMENTS,750,2017
,2017 REPUBLICAN CONFERENCE,,GENERAL EXPENDITURES,PRINTING AND REPRODUCTION,SUBTOTAL,   ,   ,   ,   ,   ,   ,PRINTING AND REPRODUCTION TOTALS:,4299.1,2017
